{"text_format":"1","workbook":"xlsx","n_sheets":5,"sheets":["Cerere de Finantare","Anexa 1 HG_907","Anexa 2 HG_907","Anexa 3 HG_907","Sheet1"],"not_rendered":{"charts":0,"images":1,"macros":1,"external_links":0,"defined_names":2,"comments":0,"pivot_tables":0},"unopened":[],"bounds":{"document_bytes":16777216,"sheet_cells":100000,"rows_first":2000,"rows_last":500,"rows_between":2000,"halvings":0,"cell_chars":16384,"cell_head_chars":4096},"cells_cut":1,"cells_raw":0,"read":"whole","date_system":"1900"}

{"sheet":"Cerere de Finantare","index":0,"n_rows":1196,"n_cols":62,"rows_kept":1196,"cut":false,"hidden":false,"merged":[[1185,21,1185,59],[1193,13,1193,34],[1099,17,1099,49],[1099,50,1099,60],[1100,17,1100,49],[1100,50,1100,60],[1101,17,1101,49],[1101,50,1101,60],[1093,0,1099,16],[1102,17,1102,49],[1102,50,1102,60],[1098,17,1098,49],[1098,50,1098,60],[827,4,827,50],[829,4,829,50],[831,4,831,50],[832,4,832,50],[835,4,835,50],[837,4,837,50],[839,4,839,50],[840,4,840,50],[1090,0,1092,16],[1090,17,1090,49],[1090,50,1090,60],[1091,17,1091,49],[1091,50,1091,60],[1092,17,1092,49],[1092,50,1092,60],[1093,17,1093,49],[1093,50,1093,60],[1095,17,1095,49],[1095,50,1095,60],[1096,17,1096,49],[1096,50,1096,60],[1097,17,1097,49],[1097,50,1097,60],[1084,17,1084,49],[1084,50,1084,60],[1085,17,1085,49],[1085,50,1085,60],[1086,17,1086,49],[1086,50,1086,60],[1087,17,1087,49],[1087,50,1087,60],[1088,17,1088,49],[1088,50,1088,60],[1089,17,1089,49],[1089,50,1089,60],[1029,3,1029,60],[1049,0,1049,2],[1022,1,1022,28],[1051,1,1051,31],[1058,0,1058,16],[1059,0,1059,16],[1060,17,1063,28],[1060,29,1061,40],[1062,29,1063,40],[1060,41,1060,49],[1061,41,1061,49],[1062,41,1062,49],[1063,41,1063,49],[1060,0,1064,16],[1094,50,1094,60],[1081,50,1081,60],[1082,17,1082,49],[1082,50,1082,60],[1083,17,1083,49],[1083,50,1083,60],[1080,50,1080,60],[1077,0,1089,16],[1062,50,1062,60],[999,0,999,6],[999,7,999,25],[999,26,999,32],[999,33,999,39],[999,40,999,46],[999,47,999,53],[999,54,999,60],[1000,0,1000,6],[1000,7,1000,25],[1000,26,1000,32],[1000,33,1000,39],[1000,40,1000,46],[1000,47,1000,53],[1000,54,1000,60],[1001,0,1001,6],[1001,7,1001,25],[1001,26,1001,32],[1001,33,1001,39],[1001,40,1001,46],[1001,47,1001,53],[1001,54,1001,60],[1036,5,1036,60],[1037,5,1037,60],[1038,5,1038,60],[1039,5,1039,60],[1040,5,1040,60],[1041,5,1041,60],[1042,5,1042,60],[1002,0,1002,6],[1002,7,1002,25],[1002,26,1002,32],[997,0,997,6],[997,7,997,25],[997,26,997,32],[997,33,997,39],[997,40,997,46],[997,47,997,53],[997,54,997,60],[998,0,998,6],[998,7,998,25],[998,26,998,32],[998,33,998,39],[998,40,998,46],[998,47,998,53],[998,54,998,60],[1005,0,1012,60],[1013,0,1014,60],[1061,50,1061,60],[1002,33,1002,39],[1002,40,1002,46],[1002,47,1002,53],[1002,54,1002,60],[1004,0,1004,60],[1052,1,1052,31],[1051,41,1051,52],[1052,41,1052,50],[1044,5,1044,60],[1045,5,1045,60],[1046,5,1046,60],[1047,5,1047,60],[1022,31,1022,59],[1060,50,1060,60],[1024,3,1025,60],[994,0,994,6],[994,7,994,25],[994,26,994,32],[994,33,994,39],[994,40,994,46],[994,47,994,53],[994,54,994,60],[995,0,995,6],[995,7,995,25],[995,26,995,32],[995,33,995,39],[995,40,995,46],[995,47,995,53],[995,54,995,60],[996,0,996,6],[996,7,996,25],[996,26,996,32],[996,33,996,39],[996,40,996,46],[996,47,996,53],[996,54,996,60],[991,0,991,6],[991,7,991,25],[991,26,991,32],[991,33,991,39],[991,40,991,46],[991,47,991,53],[991,54,991,60],[992,0,992,6],[992,7,992,25],[992,26,992,32],[992,33,992,39],[992,40,992,46],[992,47,992,53],[992,54,992,60],[993,0,993,6],[993,7,993,25],[993,26,993,32],[993,33,993,39],[993,40,993,46],[993,47,993,53],[993,54,993,60],[988,0,988,6],[988,7,988,25],[988,26,988,32],[988,33,988,39],[988,40,988,46],[988,47,988,53],[988,54,988,60],[989,0,989,6],[989,7,989,25],[989,26,989,32],[989,33,989,39],[989,40,989,46],[989,47,989,53],[989,54,989,60],[990,0,990,6],[990,7,990,25],[990,26,990,32],[990,33,990,39],[990,40,990,46],[990,47,990,53],[990,54,990,60],[985,0,985,6],[985,7,985,25],[985,26,985,32],[985,33,985,39],[985,40,985,46],[985,47,985,53],[985,54,985,60],[986,0,986,6],[986,7,986,25],[986,26,986,32],[986,33,986,39],[986,40,986,46],[986,47,986,53],[986,54,986,60],[987,0,987,6],[987,7,987,25],[987,26,987,32],[987,33,987,39],[987,40,987,46],[987,47,987,53],[987,54,987,60],[982,0,982,6],[982,7,982,25],[982,26,982,32],[982,33,982,39],[982,40,982,46],[982,47,982,53],[982,54,982,60],[983,0,983,6],[983,7,983,25],[983,26,983,32],[983,33,983,39],[983,40,983,46],[983,47,983,53],[983,54,983,60],[984,0,984,6],[984,7,984,25],[984,26,984,32],[984,33,984,39],[984,40,984,46],[984,47,984,53],[984,54,984,60],[979,0,979,6],[979,7,979,25],[979,26,979,32],[979,33,979,39],[979,40,979,46],[979,47,979,53],[979,54,979,60],[980,0,980,6],[980,7,980,25],[980,26,980,32],[980,33,980,39],[980,40,980,46],[980,47,980,53],[980,54,980,60],[981,0,981,6],[981,7,981,25],[981,26,981,32],[981,33,981,39],[981,40,981,46],[981,47,981,53],[981,54,981,60],[974,0,974,60],[976,0,976,6],[976,7,976,25],[976,26,976,32],[976,33,976,39],[976,40,976,46],[976,47,976,53],[976,54,976,60],[977,0,977,6],[977,7,977,25],[977,26,977,32],[977,33,977,39],[977,40,977,46],[977,47,977,53],[977,54,977,60],[978,0,978,6],[978,7,978,25],[978,26,978,32],[978,33,978,39],[978,40,978,46],[978,47,978,53],[978,54,978,60],[968,7,968,21],[969,7,969,21],[970,7,970,21],[971,7,971,21],[967,0,971,6],[967,33,971,39],[967,40,971,46],[967,47,971,53],[967,54,971,60],[967,26,971,32],[972,0,972,6],[972,7,972,25],[972,26,972,32],[972,33,972,39],[972,40,972,46],[972,47,972,53],[972,54,972,60],[967,7,967,25],[964,0,964,6],[964,7,964,25],[964,26,964,32],[964,33,964,39],[964,40,964,46],[964,47,964,53],[964,54,964,60],[965,0,965,6],[965,7,965,25],[965,26,965,32],[965,33,965,39],[965,40,965,46],[965,47,965,53],[965,54,965,60],[966,0,966,6],[966,7,966,25],[966,26,966,32],[966,33,966,39],[966,40,966,46],[966,47,966,53],[966,54,966,60],[961,0,961,6],[961,7,961,25],[961,26,961,32],[961,33,961,39],[961,40,961,46],[961,47,961,53],[961,54,961,60],[962,0,962,6],[962,7,962,25],[962,26,962,32],[962,33,962,39],[962,40,962,46],[962,47,962,53],[962,54,962,60],[963,0,963,6],[963,7,963,25],[963,26,963,32],[963,33,963,39],[963,40,963,46],[963,47,963,53],[963,54,963,60],[958,0,958,6],[958,7,958,25],[958,26,958,32],[958,33,958,39],[958,40,958,46],[958,47,958,53],[958,54,958,60],[959,0,959,6],[959,7,959,25],[959,26,959,32],[959,33,959,39],[959,40,959,46],[959,47,959,53],[959,54,959,60],[960,0,960,6],[960,7,960,25],[960,26,960,32],[960,33,960,39],[960,40,960,46],[960,47,960,53],[960,54,960,60],[955,0,955,6],[955,7,955,25],[955,26,955,32],[955,33,955,39],[955,40,955,46],[955,47,955,53],[955,54,955,60],[956,0,956,6],[956,7,956,25],[956,26,956,32],[956,33,956,39],[956,40,956,46],[956,47,956,53],[956,54,956,60],[957,0,957,6],[957,7,957,25],[957,26,957,32],[957,33,957,39],[957,40,957,46],[957,47,957,53],[957,54,957,60],[952,0,952,6],[952,7,952,25],[952,26,952,32],[952,33,952,39],[952,40,952,46],[952,47,952,53],[952,54,952,60],[953,0,953,6],[953,7,953,25],[953,26,953,32],[953,33,953,39],[953,40,953,46],[953,47,953,53],[953,54,953,60],[954,0,954,6],[954,7,954,25],[954,26,954,32],[954,33,954,39],[954,40,954,46],[954,47,954,53],[954,54,954,60],[949,0,949,6],[949,7,949,25],[949,26,949,32],[949,33,949,39],[949,40,949,46],[949,47,949,53],[949,54,949,60],[950,0,950,6],[950,7,950,25],[950,26,950,32],[950,33,950,39],[950,40,950,46],[950,47,950,53],[950,54,950,60],[951,0,951,6],[951,7,951,25],[951,26,951,32],[951,33,951,39],[951,40,951,46],[951,47,951,53],[951,54,951,60],[946,0,946,6],[946,7,946,25],[946,26,946,32],[946,33,946,39],[946,40,946,46],[946,47,946,53],[946,54,946,60],[947,0,947,6],[947,7,947,25],[947,26,947,32],[947,33,947,39],[947,40,947,46],[947,47,947,53],[947,54,947,60],[948,0,948,6],[948,7,948,25],[948,26,948,32],[948,33,948,39],[948,40,948,46],[948,47,948,53],[948,54,948,60],[943,0,943,6],[943,7,943,25],[943,26,943,32],[943,33,943,39],[943,40,943,46],[943,47,943,53],[943,54,943,60],[944,0,944,6],[944,7,944,25],[944,26,944,32],[944,33,944,39],[944,40,944,46],[944,47,944,53],[944,54,944,60],[945,0,945,6],[945,7,945,25],[945,26,945,32],[945,33,945,39],[945,40,945,46],[945,47,945,53],[945,54,945,60],[940,0,940,6],[940,7,940,25],[940,26,940,32],[940,33,940,39],[940,40,940,46],[940,47,940,53],[940,54,940,60],[941,0,941,6],[941,7,941,25],[941,26,941,32],[941,33,941,39],[941,40,941,46],[941,47,941,53],[941,54,941,60],[942,0,942,6],[942,7,942,25],[942,26,942,32],[942,33,942,39],[942,40,942,46],[942,47,942,53],[942,54,942,60],[937,0,937,6],[937,7,937,25],[937,26,937,32],[937,33,937,39],[937,40,937,46],[937,47,937,53],[937,54,937,60],[938,0,938,6],[938,7,938,25],[938,26,938,32],[938,33,938,39],[938,40,938,46],[938,47,938,53],[938,54,938,60],[939,0,939,6],[939,7,939,25],[939,26,939,32],[939,33,939,39],[939,40,939,46],[939,47,939,53],[939,54,939,60],[934,0,934,6],[934,7,934,25],[934,26,934,32],[934,33,934,39],[934,40,934,46],[934,47,934,53],[934,54,934,60],[935,0,935,6],[935,7,935,25],[935,26,935,32],[935,33,935,39],[935,40,935,46],[935,47,935,53],[935,54,935,60],[936,0,936,6],[936,7,936,25],[936,26,936,32],[936,33,936,39],[936,40,936,46],[936,47,936,53],[936,54,936,60],[931,0,931,6],[931,7,931,25],[931,26,931,32],[931,33,931,39],[931,40,931,46],[931,47,931,53],[931,54,931,60],[932,0,932,6],[932,7,932,25],[932,26,932,32],[932,33,932,39],[932,40,932,46],[932,47,932,53],[932,54,932,60],[933,0,933,6],[933,7,933,25],[933,26,933,32],[933,33,933,39],[933,40,933,46],[933,47,933,53],[933,54,933,60],[928,7,928,25],[928,26,928,32],[928,33,928,39],[928,40,928,46],[928,47,928,53],[928,54,928,60],[929,0,929,6],[929,7,929,25],[929,26,929,32],[929,33,929,39],[929,40,929,46],[929,47,929,53],[929,54,929,60],[930,0,930,6],[930,7,930,25],[930,26,930,32],[930,33,930,39],[930,40,930,46],[930,47,930,53],[930,54,930,60],[882,30,882,34],[879,35,879,41],[910,35,910,41],[910,42,910,49],[910,50,910,54],[910,55,910,60],[911,30,911,34],[911,35,911,41],[911,55,911,60],[912,0,912,29],[912,30,912,34],[912,35,912,41],[912,42,912,49],[922,47,922,53],[922,54,922,60],[923,0,923,6],[923,7,923,25],[923,26,923,32],[923,33,923,39],[923,40,923,46],[923,47,923,53],[923,54,923,60],[919,0,919,60],[920,54,920,60],[920,47,920,53],[920,0,920,6],[920,7,920,25],[920,26,920,32],[920,33,920,39],[920,40,920,46],[921,0,921,6],[921,7,921,25],[875,50,875,54],[875,55,875,60],[906,0,906,29],[906,30,906,34],[906,35,906,41],[906,42,906,49],[906,50,906,54],[906,55,906,60],[907,0,907,29],[907,30,907,34],[907,35,907,41],[907,42,907,49],[907,50,907,54],[907,55,907,60],[910,30,910,34],[881,0,881,29],[882,0,882,29],[879,50,879,54],[879,55,879,60],[880,50,880,54],[880,55,880,60],[881,50,881,54],[881,55,881,60],[882,50,882,54],[882,55,882,60],[879,42,879,49],[880,42,880,49],[881,42,881,49],[882,42,882,49],[879,30,879,34],[880,30,880,34],[881,30,881,34],[866,0,866,29],[868,0,868,29],[880,35,880,41],[881,35,881,41],[882,35,882,41],[867,0,867,16],[867,17,867,18],[869,0,870,54],[869,55,869,60],[870,55,870,60],[871,0,871,60],[872,30,872,34],[872,35,872,41],[872,42,872,49],[876,0,876,29],[876,30,876,34],[876,35,876,41],[876,42,876,49],[876,50,876,54],[876,55,876,60],[879,0,879,29],[880,0,880,29],[877,35,877,41],[878,35,878,41],[877,42,877,49],[878,42,878,49],[877,0,877,28],[878,0,878,28],[875,0,875,29],[875,30,875,34],[875,35,875,41],[875,42,875,49],[873,0,873,29],[874,0,874,29],[874,30,874,34],[874,35,874,41],[874,42,874,49],[874,50,874,54],[874,55,874,60],[872,0,872,29],[864,30,867,60],[855,0,855,3],[855,4,855,41],[855,42,855,50],[855,51,855,60],[856,0,856,3],[856,4,856,41],[856,42,856,50],[856,51,856,60],[857,0,857,3],[857,4,857,41],[857,42,857,50],[857,51,857,60],[858,0,858,41],[858,42,858,50],[858,51,858,60],[859,0,859,41],[859,42,859,50],[859,51,859,60],[860,0,860,41],[860,42,860,60],[863,0,863,29],[862,30,863,60],[865,0,865,29],[850,0,850,3],[850,4,850,41],[850,42,850,50],[850,51,850,60],[851,0,851,3],[851,4,851,41],[851,42,851,50],[851,51,851,60],[852,0,852,3],[852,4,852,41],[852,42,852,50],[852,51,852,60],[853,0,853,3],[853,4,853,41],[853,42,853,50],[853,51,853,60],[854,0,854,3],[854,4,854,41],[854,42,854,50],[854,51,854,60],[847,0,847,3],[847,4,847,41],[847,42,847,50],[847,51,847,60],[848,0,848,3],[848,4,848,41],[848,42,848,50],[848,51,848,60],[849,0,849,3],[849,4,849,41],[849,42,849,50],[849,51,849,60],[843,0,843,3],[843,4,843,41],[843,42,843,50],[843,51,843,60],[844,0,844,3],[844,4,844,41],[844,42,844,50],[844,51,844,60],[845,0,845,3],[845,4,845,41],[845,42,845,50],[845,51,845,60],[846,0,846,3],[846,4,846,41],[846,42,846,50],[846,51,846,60],[838,0,838,3],[838,4,838,41],[838,42,838,50],[838,51,838,60],[839,51,839,60],[840,0,840,3],[840,51,840,60],[825,4,825,60],[833,4,833,60],[841,0,841,3],[841,4,841,41],[842,0,842,3],[842,4,842,41],[842,42,842,50],[842,51,842,60],[835,0,835,3],[835,51,835,60],[831,51,831,60],[832,0,832,3],[832,51,832,60],[836,0,836,3],[836,4,836,41],[836,42,836,50],[836,51,836,60],[837,0,837,3],[837,51,837,60],[830,0,830,3],[830,4,830,41],[830,42,830,50],[830,51,830,60],[829,0,829,3],[829,51,829,60],[827,0,827,3],[827,51,827,60],[828,0,828,3],[828,4,828,41],[828,42,828,50],[828,51,828,60],[833,0,833,3],[834,0,834,3],[834,4,834,41],[834,42,834,50],[834,51,834,60],[815,0,815,3],[815,4,815,41],[815,42,815,50],[815,51,815,60],[817,0,817,3],[817,4,817,41],[817,42,817,50],[817,51,817,60],[818,0,818,3],[818,4,818,41],[818,42,818,50],[818,51,818,60],[819,0,819,3],[819,4,819,41],[819,42,819,50],[819,51,819,60],[816,51,816,60],[824,0,824,3],[824,4,824,41],[824,42,824,50],[824,51,824,60],[825,0,825,3],[826,0,826,3],[826,4,826,41],[826,42,826,50],[826,51,826,60],[812,51,812,60],[814,0,814,3],[814,4,814,41],[814,42,814,50],[814,51,814,60],[813,0,813,3],[820,0,820,3],[820,4,820,41],[820,42,820,50],[820,51,820,60],[816,0,816,3],[816,4,816,41],[816,42,816,50],[822,42,822,50],[822,51,822,60],[823,4,823,41],[823,42,823,50],[823,51,823,60],[822,0,822,3],[822,4,822,41],[812,0,812,3],[812,4,812,41],[812,42,812,50],[821,0,821,3],[821,4,821,41],[821,42,821,50],[821,51,821,60],[807,0,807,3],[807,4,807,41],[807,42,807,50],[807,51,807,60],[800,42,800,50],[808,42,808,50],[808,51,808,60],[801,4,801,41],[801,42,801,50],[801,51,801,60],[803,0,803,3],[803,4,803,41],[792,4,792,41],[792,42,792,50],[792,51,792,60],[798,0,798,3],[798,4,798,41],[800,0,800,3],[800,4,800,41],[806,0,806,3],[806,4,806,41],[806,42,806,50],[804,4,804,41],[804,42,804,50],[804,51,804,60],[782,42,782,60],[783,42,783,50],[783,51,783,60],[782,0,782,41],[783,0,783,41],[784,0,784,41],[788,4,788,41],[788,0,788,3],[784,42,784,50],[785,0,785,60],[786,4,786,41],[786,42,786,50],[786,51,786,60],[789,0,789,3],[784,51,784,60],[787,0,787,60],[786,0,786,3],[811,51,811,60],[810,0,810,3],[810,4,810,41],[810,42,810,50],[810,51,810,60],[799,0,799,60],[802,0,802,3],[802,4,802,41],[802,42,802,50],[802,51,802,60],[801,0,801,3],[806,51,806,60],[809,4,809,41],[809,42,809,50],[809,51,809,60],[789,4,789,41],[789,42,789,50],[789,51,789,60],[790,0,790,3],[790,4,790,41],[790,42,790,50],[790,51,790,60],[791,0,791,3],[791,4,791,41],[791,42,791,50],[791,51,791,60],[792,0,792,3],[800,51,800,60],[805,0,805,3],[805,4,805,41],[805,42,805,50],[805,51,805,60],[813,4,813,41],[813,42,813,50],[813,51,813,60],[793,0,793,3],[793,4,793,41],[793,42,793,50],[793,51,793,60],[794,0,794,3],[794,4,794,41],[794,42,794,50],[794,51,794,60],[795,0,795,3],[795,4,795,41],[795,42,795,50],[795,51,795,60],[796,0,796,3],[796,4,796,41],[796,42,796,50],[796,51,796,60],[797,0,797,3],[804,0,804,3],[808,0,808,3],[808,4,808,41],[797,42,797,50],[797,51,797,60],[797,4,797,41],[803,42,803,50],[803,51,803,60],[809,0,809,3],[811,0,811,3],[811,4,811,41],[811,42,811,50],[1023,0,1023,60],[922,7,922,25],[922,26,922,32],[922,33,922,39],[922,40,922,46],[1016,0,1016,60],[924,0,924,6],[924,7,924,25],[924,26,924,32],[924,33,924,39],[924,40,924,46],[924,47,924,53],[1017,0,1017,60],[1019,0,1019,60],[924,54,924,60],[925,0,925,6],[925,7,925,25],[925,26,925,32],[925,33,925,39],[925,40,925,46],[925,47,925,53],[925,54,925,60],[1021,0,1021,60],[1018,1,1018,34],[1020,1,1020,59],[927,7,927,25],[927,26,927,32],[927,33,927,39],[927,40,927,46],[927,47,927,53],[927,54,927,60],[928,0,928,6],[914,55,914,60],[1050,0,1050,60],[1048,0,1048,2],[1035,0,1035,2],[1036,0,1036,2],[1037,0,1037,2],[1038,0,1038,2],[1039,0,1039,2],[1040,0,1040,2],[1041,0,1041,2],[1042,0,1042,2],[1043,0,1043,2],[1044,0,1044,2],[1045,0,1045,2],[1046,0,1046,2],[1047,0,1047,2],[1030,3,1030,60],[1031,3,1031,60]],"merged_total":3478,"flags":["merged_cut"]}
[null,null,null,null,null,null,"MINISTERUL AGRICULTURII ŞI DEZVOLTĂRII RURALE",null,null,null,null,null,null,null,null,null,null,null,null,null,null,null,null,null,null,null,null,null,null,null,null,null,null,null,null,null,null,null,null,null,null,null,null,null,null,null,null,null,null,null,null,null,null,null,null,null,null,null,null,null,null,5]
[null,null,null,null,null,null,"AGENŢIA PENTRU FINANŢAREA INVESTIŢIILOR RURALE",null,null,null,null,null,null,null,null,null,null,null,null,null,null,null,null,null,null,null,null,null,null,null,null,null,null,null,null,null,null,null,null,null,null,null,null,null,null,null,null,null,null,null,null,null,null,null,null,null,null,null,null,null,null,3]
[null,null,null,null,null,null,null,null,null,null,null,null,null,null,null,null,null,null,null,null,null,null,null,null,null,null,null,null,null,null,null,null,null,null,null,null,null,null,null,null,null,null,null,null,null,null,null,null,null,null,null,null,null,null,null,null,null,null,null,null,null,1]
[null,null,null,null,null,null,null,null,null,null,null,null,null,null,null,null,null,null,null,null,null,null,null,null,null,null,null,null,null,null,null,null,null,null,null,null,null,null,null,null,null,null,"SECŢIUNE GENERALĂ",null,null,null,null,null,null,null,null,null,null,null,null,null,null,null,null,null,null,1]
[null,null,null,null,null,null,null,null,null,null,null,null,null,null,null,null,null,null,null,null,null,null,null,null,null,null,null,null,null,null,null,null,null,null,null,null,null,null,null,null,null,null,null,null,null,null,null,null,null,null,null,null,null,null,null,null,null,null,null,null,null,5]
["DATE DE ÎNREGISTRARE",null,null,null,null,null,null,null,null,null,null,null,null,null,null,null,null,null,null,null,null,null,null,null,null,null,null,null,null,null,null,null,null,null,null,null,"NUME ŞI PRENUME DIRECTOR OJFIR/",null,null,null,null,null,null,null,null,null,null,null,null,null,null,null,null,null,null,null,null,null,null,null,null,5]
[null,null,null,null,null,null,null,null,null,null,null,null,null,null,null,null,null,null,null,null,null,null,null,null,null,null,null,null,null,null,null,null,null,null,null,null,"DIRECTOR GENERAL ADJUNCT CRFIR"]
["Se completează de către Agenția pentru Finanțarea Investițiilor Rurale - Oficiul"]
["Judeţean/ Centrul Regional - Programul FEADR pentru cereri de finanţare"]
[null,null,null,null,null,null,null,null,null,null,null,null,null,null,null,null,null,null,null,null,null,null,null,null,null,null,null,null,null,null,null,null,null,null,null,null,"Semnătura Director OJFIR/Director General Adjunct CRFIR"]
["OJFIR/CRFIR"]
[null,null,null,null,null,null,null,null,null,null,null,null,null,null,null,null,null,null,null,null,null,null,null,null,null,null,null,null,null,null,null,null,null,null,null,null,"Ştampila CRFIR"]
["Număr "]
["înregistrare"]
[]
[]
[]
[]
["Data Înregistrării"]
["Numele şi prenumele persoanei care înregistrează"]
["Semnătura:"]
["Data primirii cererii de finanţare la contractare:"]
["Se completează de către solicitant"]
["A PREZENTARE GENERALĂ"]
[]
[null,"A1 Măsura:",null,null,null,null,null,null,null,null,"Sub-măsura 19.2"]
[null,null,null,null,null,null,null,null,null,null,"\"Sprijin pentru înființarea și dezvoltarea de structuri asociative în teritoriul G.A.L. Codrii Herței\""]
[]
[null,"A2 Nume prenume / Denumire solicitant:"]
[]
[null,"A3 Titlu proiect:"]
[]
[]
[]
[]
[null,"A4 Descrierea succintă a proiectului:"]
[]
[]
[]
[]
[]
[]
[]
[]
[]
[]
[]
[null,null,"A5 Amplasarea proiectului:"]
[]
["Regiunea de dezvoltare:",null,null,null,null,null,null,null,null,null,null,null,null,null,null,null,null,null,null,null,null,null,null,null,null,null,null,"Judeţ:"]
[]
[null,"Obiectivele investiţiei",null,null,null,null,null,null,null,null,null,null,null,null,null,"Judeţ",null,null,null,null,null,null,null,null,null,null,null,"Comună/Oraş",null,null,null,null,null,null,null,null,null,null,null,"Sat/Sector",null,null,null,null,null,null,null,null,null,null,"Sat/Sector"]
[]
[]
[]
[]
[]
[]
[]
[]
[]
[]
[]
[]
[]
[]
[]
[]
[]
[]
[]
[]
[]
[]
[]
[]
[]
[]
[]
[]
[]
[]
[]
[]
[]
[]
[]
[]
[]
[]
[]
[]
[null,"A6 Date despre tipul de proiect şi beneficiar:",null,null,null,null,null,null,null,null,null,null,null,null,null,null,null,null,null,null,null,null,null,null,null,null,null,null,null,null,null,null,null,null,null,null,null,null,null,null,"A 6.5 Sectoare vizate prin proiect"]
[]
[null,"A 6.1",null,null,null,null,"Proiect cu construcţii-montaj",null,null,null,null,null,null,null,null,null,null,null,null,null,null,null,"A 6.3",null,null,null,null,"Beneficiar public",null,null,null,null,null,null,null,null,null,null,null,null,null,null,null,null,null,"animal"]
[null,null,null,null,null,null,"Proiect fără construcţii-montaj",null,null,null,null,null,null,null,null,null,null,null,null,null,null,null,null,null,null,null,null,"Beneficiar privat",null,null,null,null,null,null,null,null,null,null,null,null,null,null,null,null,null,"vegetal"]
[null,null,null,null,null,null,null,null,null,null,null,null,null,null,null,null,null,null,null,null,null,null,null,null,null,null,null,null,null,null,null,null,null,null,null,null,null,null,null,null,null,null,null,null,null,"ferma de familie"]
[null,"A 6.2",null,null,null,null,"Modernizare şi/sau Extindere",null,null,null,null,null,null,null,null,null,null,null,null,null,null,null,"A 6.4",null,null,"Prescorare",null,null,null,null,null,null,null,null,null,null,null,null,null,null,null,null,null,null,null,"zonă montană"]
[null,null,null,null,null,null,"Investiţie nouă"]
[]
[]
[]
[]
[]
[null,null,null,null,null,null,null,null,null,null,null,null,null,"Proiect tehnic",null,null,null,null,null,null,null,null,null,"Acord de mediu",null,null,null,null,null,null,null,null,null,null,null,null,"Aviz Natura2000"]
[]
[null,"Denumire consultant:"]
[null,null,null,null,null,null,null,null,null,null,null,null,null,null,null,null,null,null,null,null,null,null,null,null,null,null,null,null,null,null,"CUI"]
[]
[null,null,null,null,null,null,null,null,null,null,null,null,null,null,null,null,null,null,null,null,null,null,null,null,null,null,null,null,null,null,"Nr. Înreg. ONRC"]
[]
[null,"Denumire proiectant:"]
[null,null,null,null,null,null,null,null,null,null,null,null,null,null,null,null,null,null,null,null,null,null,null,null,null,null,null,null,null,null,"CUI"]
[]
[null,null,null,null,null,null,null,null,null,null,null,null,null,null,null,null,null,null,null,null,null,null,null,null,null,null,null,null,null,null,"Nr. Înreg. ONRC"]
[]
[null,"Detaliere criterii de selecţie îndeplinite"]
[]
[]
[]
[]
[]
[]
[]
[]
[]
[]
["B INFORMAŢII PRIVIND SOLICITANTUL"]
["B1 Descrierea solicitantului"]
["B1.1 Informaţii privind solicitantul"]
[null,"Data înființării / Data de naştere",null,null,null,null,null,null,null,null,null,null,null,null,null,null,null,null,null,"Cod Unic de Înregistrare și/sau Codul de",null,null,null,null,null,null,null,null,null,null,null,null,null,null,null,null,null,null,null,null,null,null,null,"Statut juridic al solicitantului"]
[null,null,null,null,null,null,null,null,null,null,null,null,null,null,null,null,null,null,null,"Înregistrare Fiscală"]
[]
[]
[null,"Număr de înregistrare în registrul comerțului / Registrul asociaţiilor şi fundaţiilor"]
[]
[null,"Codul CAEN al activităţii/activităţilor finanţate prin proiect:"]
[]
[]
[]
[null,"Codul unic de înregistrare APIA",null,null,null,null,null,null,null,null,null,null,null,null,null,null,null,null,null,null,null,null,null,null,null,null,null,null,null,null,null,null,null,null,null,null,"Anul atribuirii codului"]
[]
[]
[null,"B1.2 Sediul social / Domiciliul stabil al solicitantului / Reşedinţa din România"]
[null,"Judeţ",null,null,null,null,null,null,null,null,null,null,null,null,null,null,null,null,null,null,null,null,"Localitate",null,null,null,null,null,null,null,null,null,null,null,null,null,null,null,null,null,null,null,"Sat"]
[]
[null,"Cod Poştal",null,null,null,null,null,null,null,null,null,null,null,null,null,"Strada",null,null,null,null,null,null,null,null,null,null,null,null,null,null,null,null,null,null,null,null,null,null,null,null,null,null,null,null,null,null,null,null,null,null,null,null,"Nr."]
[]
[null,"Bloc",null,null,null,null,null,null,null,null,null,null,null,null,null,null,null,"Scara",null,null,null,null,null,null,null,null,null,null,null,null,null,null,"Et. ",null,null,null,null,null,null,"Ap.",null,null,null,null,null,null,"Sector"]
[]
[null,"Telefon fix/ mobil",null,null,null,null,null,null,null,null,null,null,null,null,null,null,null,null,null,null,"Fax",null,null,null,null,null,null,null,null,null,null,null,null,null,null,null,"E-mail"]
[]
[]
[null,"B1.3 Numele şi prenumele reprezentantului legal şi funcţia acestuia în cadrul organizaţiei, precum şi"]
[null,"specimenul de semnatură:"]
[]
[null,null,null,"Numele",null,null,null,null,null,null,null,null,null,null,"Prenumele",null,null,null,null,null,null,null,null,null,null,"Funcţia",null,null,null,null,null,null,null,null,null,null,"Reprezentant legal",null,null,null,null,null,null,null,null,null,null,"Specimen de"]
[null,null,null,null,null,null,null,null,null,null,null,null,null,null,null,null,null,null,null,null,null,null,null,null,null,null,null,null,null,null,null,null,null,null,null,null,null,null,null,null,null,null,null,null,null,null,null,"semnătură"]
[]
[null,null,null,null,null,null,null,null,null,null,null,null,null,null,null,null,null,null,null,null,null,null,null,null,null,null,null,null,null,null,null,null,null,null,null,null,"LEGAL"]
[]
[]
["B2 Informaţii referitoare la reprezentantul legal de proiect"]
[null,"B2.1 Date de identitate ale reprezentantului legal de proiect"]
[]
[null,null,null,"Data naşterii",null,null,null,null,null,null,null,null,null,null,null,null,null,null,null,null,null,null,null,null,"Cod numeric personal"]
[]
[]
[]
[]
[null,null,null,null,"Act de identitate",null,null,null,null,null,null,null,null,null,null,null,null,null,"Seria",null,null,"Nr.",null,null,null,null,null,null,"Eliberat la data de",null,null,null,null,null,null,null,null,"de:",null,null,null,null,null,null,null,null,null,null,null,null,null,"Valabil până la:"]
[null,null,null,null,"B.I.",null,null,"C.I.",null,null,"Paşaport"]
[]
[]
[]
[null,null,null,"Studii şi coordonate:"]
[]
[]
[]
[]
[]
[]
[]
[]
[]
[]
[]
[]
[null,"B2.2 Domiciliul stabil al reprezentantului legal de proiect"]
[null,"Judeţ",null,null,null,null,null,null,null,null,null,null,null,null,null,null,null,null,null,null,null,null,"Localitate",null,null,null,null,null,null,null,null,null,null,null,null,null,null,null,null,null,null,null,"Sat"]
[]
[null,"Cod Poştal",null,null,null,null,null,null,null,null,null,null,"Strada",null,null,null,null,null,null,null,null,null,null,null,null,null,null,null,null,null,"Nr.",null,null,null,null,null,"Bloc",null,null,null,null,null,null,null,null,null,null,null,"Scara",null,null,null,null,null,"Ap."]
[]
[null,"Telefon fix",null,null,null,null,null,null,null,null,null,null,null,null,null,null,null,null,null,null,"Telefon mobil",null,null,null,null,null,null,null,null,null,null,null,null,null,null,null,null,null,"Fax"]
[]
[null,"E-mail"]
[]
[]
["B3 Informaţii privind contul bancar pentru proiect F.E.A.D.R."]
[]
[null,null,"B3.1 Denumirea Băncii",null,null,null,null,null,null,null,null,null,null,null,null,null,null,null,null,null,null,null,null,null,null,null,null,null,null,null,null,"Denumirea Sucursalei/Filialei"]
[]
[]
[null,null,"B3.2 Adresa Băncii/Sucursalei"]
[]
[]
[null,null,"B3.3 Cod IBAN",null,null,null,null,null,null,null,null,null,null,null,null,null,null,null,null,null,null,null,null,null,null,null,null,null,null,null,null,"B3.4 Titularul contului bancar"]
[]
[]
["REGULI DE COMPLETARE\n\nCâmpurile \"Numele şi prenumele persoanei care înregistrează. Semnătura\", se vor completa după data primirii în format letric a acesteia împreună cu documentele justificative.\nSolicitantul are posibilitatea să opteze pentru Buget indicativ şi anexe conform HG 907/2016, prin bifarea check-box-ului corespunzător din câmpul A6 sau pentru Buget indicativ şi anexe conform HG 28/2008 prin nebifarea check-box-ului.\nCompletaţi devizele aferente capitolelor de cheltuieli, defalcat pe cheltuieli eligibile şi neeligibile prin completarea tabelelor incluse în acest document, respectiv:\n1. Tabelul \"Deviz financiar_cap3\" cuprinde cheltuielile aferente capitolului 3 - Cheltuieli pentru proiectare şi asistenţă tehnică, cheltuieli care trebuie să se regăsească atât în Bugetul Indicativ (Tabel \"Buget indicativ\" din cererea de finanţare, partea specifică) cât şi în Devizul General din Studiul de Fezabilitate.\n2. Tabelul \"Devize obiect\" cuprinde formatul cadru al devizului pe obiect, iar solicitantul va completa atâtea devize pe obiect câte obiecte de investiţie sunt incluse în proiect. Suma tuturor devizelor pe obiect trebuie să se regăseasca atat in Bugetul Indicativ (tabelul \"Buget indicativ\" din cererea de finanţare, partea specifică) cât şi în Devizul General din Studiul de Fezabilitate În cazul în care proiectul de investiţii presupune mai multe devize pe obiect, solicitantul va crea în documentul curent câte o copie a tabelului \"Devize obiect\" pentru fiecare deviz pe obiect şi va detalia cheltuielile eligibile şi neeligibile pe fiecare în parte.\n3. Tabelul \"cap.2+cap.5\" cuprinde cheltuieli aferente capitolelor 2 şi 5 şi trebuie să se regăsească atât în Bugetul Indicativ (tabel \"Buget indicativ\" din cererea de finanţare, partea specifică) cât şi Devizul General din Studiul de Fezabilitate.\n4. Tabelul \"Deviz culturi\" cuprinde devizele aferente tuturor tipurilor de culturi, plantaţii, vizate de proiect.\n5. Câmpul \"Prescorare\" de la secţiunea A6 este obligatoriu.\n6. Pentru \"Plantaţiile specifice pentru struguri de masă\", se completează Deviz pe obiect separat.\n7. În cazul art 28 (Agromediu), intensitatea suplimentară se acordă după cum urmează:\n1 - Pentru investiţiile adresate terenurilor arabile cu condiția ca suprafața aflată sub angajament sa reprezinte mai mult de 50% din terenul arabil aparținand exploataţiei agricole.\nIntensitatea mărită se acordă pentru utilajele si echipamentele specifice lucrărilor de arat, grăpat, discuit, semănat/însămânţat, tocat resturi vegetale, încorporat resturi vegetale în sol, numai în cazul în care peste 50% din terenul arabil deținut în cadrul fermei se află sub un angajament în derulare in cazul următoarelor pachete promovate prin Măsura 10 - Agromediu și climă (AGM): Pachetul 4 - culturi verzi, Pachetul 7 - terenuri arabile importante ca zone de hrănire pentru gâsca cu gât roșu (Branta ruficollis), suprafețe pe care se realizează lucrări de tehnologie a culturilor; Intensitatea mărită se acordă pentru facilităţi necesare depozitării şi compostării gunoiului de grajd numai în cazul în care peste 50% din terenul arabil deținut în cadrul fermei se află sub un angajament în derulare in cazul Pachetului 4 - culturi verzi, Pachetului 5 - adaptarea la efectele schimbărilor climatice şi Pachetului 7 - terenuri arabile importante ca zone de hrănire pentru gâsca cu gât roșu (Branta ruficollis).\n2 -Pentru investiţiile adresate pajiștilor cu condiția ca suprafața aflată sub angajament să reprezinte mai mult de 50% din suprafața de pajiști aparținând fermei.\nIntensitatea suplimentară se acordă doar pentru contravaloarea următoarelor:\n- utilajelor folosite pentru cosit, strâns, balotat şi transportat fânul și a altor asemenea investitii utilizate in cazul pajistilor care fac obiectul sprijinului acordat prin Pachetul 1 - pajiști cu înaltă valoare naturală (HNV) fără Pachetul 2 - practici agricole tradiţionale,\n- utilajelor uşoare (utilaje cu lama scurtă, greutate redusă și viteză mică de deplasare) folosite pentru cosit, strâns, balotat şi transportat fânul și a altor asemenea investitii utilizate in cazul pajistilor care fac obiectul sprijinului acordat prin varianta 2.2 - utilaje ușoare pe pajiști permanente utilizate ca fânețe din pachetul 2 - practici agricole tradiţionale, varianta 3.1.2 -utilaje ușoare pe pajiști importante pentru Crex crex din sub-pachetul 3.1 - Crex crex, varianta 3.2.2 -utilaje ușoare pe pajiști importante pentru Lanius minor și Falco vespertinus din sub-pachetul 3.2 - Lanius minor și Falco vespertinus, varianta 6.2 - utilaje ușoare pe pajiști importante pentru fluturi (Maculinea sp.) din pachetul 6 - pajiști importante pentru fluturi (Maculinea sp.);\n- platformele pentru depozitarea şi/sau compostarea gunoiul de grajd şi utilajele/echipamentele de transport şi de\nîmprăştiere a gunoiului de grajd - în cazul pachetelor 1, 3.1, 3.2 şi 6;\n3 -Pentru investitiile ce deservesc animalele care fac obiectul angajamentelor pachetului nr. 8 (rase locale în pericol de abandon)\n- contravaloarea investiţiei în cauză se obţine înmulțind procentul pe care îl detine nucleul de rase locale în pericol de\nabandon în total efective de animale, cu total valoare eligibilă a proiectului. Intensitatea mărită se acordă doar pentru această contravaloare.\nEx. dacă rasele în pericol de abandon reprezintă 10% din total efective (exprimate in UVM), se aplica acest procent la valoarea totala eligibila, si se acorda 20 puncte procentuale suplimentare la intensitate sprijin doar pentru această cota de 10% din valoarea totala eligibilă.\n\n8. Punctul A6.2 se va completa ţinând cont de următoarele:\nInvestiţie nouă - cuprinde lucrările de construcţii-montaj, utilaje, instalaţii, care se realizează pe amplasamente noi, lucrarile pentru construcţiile existente cărora li se schimbă destinaţia nefuncționale/dezafectate\nModernizarea - cuprinde lucrările de construcţii şi instalaţii privind retehnologizarea, reutilarea și refacerea sau extinderea construcţiilor existente aferente unităţilor în funcţiune şi cu autorizaţii de funcţionare valabile, fără modificarea destinaţiei iniţiale, inclusiv utilarea/reutilarea cu mașini, utilaje și echipamente necesare unei exploatații agricole pentru producția agricolă primară și, după caz, pentru procesare la nivel de fermă.\n"]
[]
[]
[]
[]
[]
[]
[]
[]
[]
[]
[]
[]
[]
[]
[]
[]
[]
[]
[]
[]
[]
[]
[]
[]
[]
[]
[]
[]
[]
[]
[]
[]
[]
[]
[]
[]
[]
[]
[]
[]
[]
[]
[]
[]
[]
[]
[]
[]
[]
[]
[]
["9. Încadrarea cererii de finanțare în zona montană se va face dacă amplasarea investiției și, acolo unde este cazul, peste 50% din terenurile agricole ale exploatației se află în una dintre localitățile în dreptul cărora exista mențiunea ANC ZM în Anexa 3 la Ghidul solicitantului.\n10. Trebuie bifate şi anexate toate documentele de pe coloana “DEPUNERE-Obligatoriu pentru toate proiectele” din secțiunea E - Lista documentelor anexate."]
[]
[]
[]
[]
[]
[]
[]
[]
[]
[]
[]
[]
[]
[]
[null,"Buget Indicativ HG 907 (Euro) pentru INVESTIŢII în activitatea de producţie AGRICOLĂ "]
["MINISTERUL AGRICULTURII ŞI DEZVOLTĂRII RURALE"]
["AGENŢIA PENTRU FINANŢAREA INVESTIŢIILOR RURALE"]
[]
[]
[null,"Procentul aferent intensităţii",null,null,null,null,null,null,null,null,null,null,null,null,null,null,null,null,null,"Curs EURO",null,null,null,null,null,null,null,null,null,null,null,null,null,null,null,"Data întocmirii Studiului de Fezabilitate"]
[]
["Submăsura",null,null,null,null,null,null,null,null,null,null,null,null,null,null,null,null,null,null,null,null,null,null,null,null,null,null,null,null,null,null,null,null,null,null,"4.1"]
["Denumirea capitolelor de cheltuieli",null,null,null,null,null,null,null,null,null,null,null,null,null,null,null,null,null,null,null,null,null,null,null,null,null,null,null,null,null,null,null,null,null,null,"Cheltuieli eligibile",null,null,null,null,null,null,null,null,"Cheltuieli neeligibile",null,null,null,null,null,null,null,"Total"]
[null,null,null,null,null,null,null,null,null,null,null,null,null,null,null,null,null,null,null,null,null,null,null,null,null,null,null,null,null,null,null,null,null,null,null,"EURO",null,null,null,null,null,null,null,null,"EURO",null,null,null,null,null,null,null,"EURO"]
[1,null,null,null,null,null,null,null,null,null,null,null,null,null,null,null,null,null,null,null,null,null,null,null,null,null,null,null,null,null,null,null,null,null,null,2,null,null,null,null,null,null,null,null,3,null,null,null,null,null,null,null,4]
["Capitolul 1 Cheltuieli pentru obtinerea şi amenajarea terenului - total, din care:",null,null,null,null,null,null,null,null,null,null,null,null,null,null,null,null,null,null,null,null,null,null,null,null,null,null,null,null,null,null,null,null,null,null,{"$f":"SUM(AJ290:AR292)","v":0},null,null,null,null,null,null,null,null,{"$f":"SUM(AS289:AZ292)","v":0},null,null,null,null,null,null,null,{"$f":"SUM(AJ288:AZ288)","v":0}]
["1.1 Obţinerea terenului",null,null,null,null,null,null,null,null,null,null,null,null,null,null,null,null,null,null,null,null,null,null,null,null,null,null,null,null,null,null,null,null,null,null,null,null,null,null,null,null,null,null,null,null,null,null,null,null,null,null,null,{"$f":"SUM(AJ289:AZ289)","v":0}]
["1.2 Amenajarea terenului",null,null,null,null,null,null,null,null,null,null,null,null,null,null,null,null,null,null,null,null,null,null,null,null,null,null,null,null,null,null,null,null,null,null,null,null,null,null,null,null,null,null,null,null,null,null,null,null,null,null,null,0]
["1.3 Amenajari pentru protecţia mediului şi aducerea la starea iniţială",null,null,null,null,null,null,null,null,null,null,null,null,null,null,null,null,null,null,null,null,null,null,null,null,null,null,null,null,null,null,null,null,null,null,null,null,null,null,null,null,null,null,null,null,null,null,null,null,null,null,null,0]
["1.4 Cheltuieli pentru relocarea/protecţia utilităţilor",null,null,null,null,null,null,null,null,null,null,null,null,null,null,null,null,null,null,null,null,null,null,null,null,null,null,null,null,null,null,null,null,null,null,null,null,null,null,null,null,null,null,null,null,null,null,null,null,null,null,null,0]
["Capitolul 2 Cheltuieli pentru asigurarea utilităţilor necesare obiectivului de investiţii",null,null,null,null,null,null,null,null,null,null,null,null,null,null,null,null,null,null,null,null,null,null,null,null,null,null,null,null,null,null,null,null,null,null,null,null,null,null,null,null,null,null,null,null,null,null,null,null,null,null,null,0]
["Capitolul 3 Cheltuieli pentru proiectare şi asistenţă tehnică - total, din care:",null,null,null,null,null,null,null,null,null,null,null,null,null,null,null,null,null,null,null,null,null,null,null,null,null,null,null,null,null,null,null,null,null,null,{"$f":"AJ295+AJ299+AJ300+AJ301+AJ302+AJ310+AJ313","v":0},null,null,null,null,null,null,null,null,{"$f":"AS295+AS299+AS300+AS301+AS302+AS309+AS310+AS313","v":0},null,null,null,null,null,null,null,0]
["3.1 Studii",null,null,null,null,null,null,null,null,null,null,null,null,null,null,null,null,null,null,null,null,null,null,null,null,null,null,null,null,null,null,null,null,null,null,{"$f":"SUM(AJ296:AR298)","v":0},null,null,null,null,null,null,null,null,{"$f":"SUM(AS296:AZ298)","v":0},null,null,null,null,null,null,null,0]
["       3.1.1 Studii de teren",null,null,null,null,null,null,null,null,null,null,null,null,null,null,null,null,null,null,null,null,null,null,null,null,null,null,null,null,null,null,null,null,null,null,null,null,null,null,null,null,null,null,null,null,null,null,null,null,null,null,null,0]
["       3.1.2 Raport privind impactul asupra mediului",null,null,null,null,null,null,null,null,null,null,null,null,null,null,null,null,null,null,null,null,null,null,null,null,null,null,null,null,null,null,null,null,null,null,null,null,null,null,null,null,null,null,null,null,null,null,null,null,null,null,null,0]
["       3.1.3 Alte studii specifice",null,null,null,null,null,null,null,null,null,null,null,null,null,null,null,null,null,null,null,null,null,null,null,null,null,null,null,null,null,null,null,null,null,null,null,null,null,null,null,null,null,null,null,null,null,null,null,null,null,null,null,0]
["3.2 Documentaţii-suport şi cheltuieli pentru obţinerea de avize, acorduri şi autorizaţii",null,null,null,null,null,null,null,null,null,null,null,null,null,null,null,null,null,null,null,null,null,null,null,null,null,null,null,null,null,null,null,null,null,null,null,null,null,null,null,null,null,null,null,null,null,null,null,null,null,null,null,0]
["3.3 Expertizare tehnică",null,null,null,null,null,null,null,null,null,null,null,null,null,null,null,null,null,null,null,null,null,null,null,null,null,null,null,null,null,null,null,null,null,null,null,null,null,null,null,null,null,null,null,null,null,null,null,null,null,null,null,0]
["3.4 Certificarea performanţei energetice şi auditul energetic al clădirilor",null,null,null,null,null,null,null,null,null,null,null,null,null,null,null,null,null,null,null,null,null,null,null,null,null,null,null,null,null,null,null,null,null,null,null,null,null,null,null,null,null,null,null,null,null,null,null,null,null,null,null,0]
["3.5 Proiectare",null,null,null,null,null,null,null,null,null,null,null,null,null,null,null,null,null,null,null,null,null,null,null,null,null,null,null,null,null,null,null,null,null,null,{"$f":"SUM(AJ303:AR308)","v":0},null,null,null,null,null,null,null,null,{"$f":"SUM(AS303:AZ308)","v":0},null,null,null,null,null,null,null,0]
["      3.5.1 Temă de proiectare",null,null,null,null,null,null,null,null,null,null,null,null,null,null,null,null,null,null,null,null,null,null,null,null,null,null,null,null,null,null,null,null,null,null,null,null,null,null,null,null,null,null,null,null,null,null,null,null,null,null,null,0]
["      3.5.2 Studiu de prefezabilitate",null,null,null,null,null,null,null,null,null,null,null,null,null,null,null,null,null,null,null,null,null,null,null,null,null,null,null,null,null,null,null,null,null,null,null,null,null,null,null,null,null,null,null,null,null,null,null,null,null,null,null,0]
["      3.5.3. Studiu de fezabilitate/documentaţie de avizare a lucrărilor de intervenţii\n                şi deviz general",null,null,null,null,null,null,null,null,null,null,null,null,null,null,null,null,null,null,null,null,null,null,null,null,null,null,null,null,null,null,null,null,null,null,null,null,null,null,null,null,null,null,null,null,null,null,null,null,null,null,null,0]
["      3.5.4. Documentaţiile tehnice necesare în vederea obţinerii avizelor/\n                acordurilor/autorizaţiilor",null,null,null,null,null,null,null,null,null,null,null,null,null,null,null,null,null,null,null,null,null,null,null,null,null,null,null,null,null,null,null,null,null,null,null,null,null,null,null,null,null,null,null,null,null,null,null,null,null,null,null,0]
["      3.5.5. Verificarea tehnică de calitate a proiectului tehnic şi a detaliilor de execuţie",null,null,null,null,null,null,null,null,null,null,null,null,null,null,null,null,null,null,null,null,null,null,null,null,null,null,null,null,null,null,null,null,null,null,null,null,null,null,null,null,null,null,null,null,null,null,null,null,null,null,null,0]
["      3.5.6. Proiect tehnic şi detalii de execuţie",null,null,null,null,null,null,null,null,null,null,null,null,null,null,null,null,null,null,null,null,null,null,null,null,null,null,null,null,null,null,null,null,null,null,null,null,null,null,null,null,null,null,null,null,null,null,null,null,null,null,null,0]
["3.6 Organizarea procedurilor de achiziţie",null,null,null,null,null,null,null,null,null,null,null,null,null,null,null,null,null,null,null,null,null,null,null,null,null,null,null,null,null,null,null,null,null,null,null,null,null,null,null,null,null,null,null,null,null,null,null,null,null,null,null,0]
["3.7 Consultanţă",null,null,null,null,null,null,null,null,null,null,null,null,null,null,null,null,null,null,null,null,null,null,null,null,null,null,null,null,null,null,null,null,null,null,{"$f":"AJ311","v":0},null,null,null,null,null,null,null,null,{"$f":"AS311+AS312","v":0},null,null,null,null,null,null,null,0]
["      3.7.1 Managementul de proiect pentru obiectivul de investiţii",null,null,null,null,null,null,null,null,null,null,null,null,null,null,null,null,null,null,null,null,null,null,null,null,null,null,null,null,null,null,null,null,null,null,null,null,null,null,null,null,null,null,null,null,null,null,null,null,null,null,null,0]
["     3.7.2 Auditul financiar",null,null,null,null,null,null,null,null,null,null,null,null,null,null,null,null,null,null,null,null,null,null,null,null,null,null,null,null,null,null,null,null,null,null,null,null,null,null,null,null,null,null,null,null,null,null,null,null,null,null,null,0]
["3.8 Asistenţă Tehnică",null,null,null,null,null,null,null,null,null,null,null,null,null,null,null,null,null,null,null,null,null,null,null,null,null,null,null,null,null,null,null,null,null,null,{"$f":"AJ314+AS317","v":0},null,null,null,null,null,null,null,null,{"$f":"AS314+AS317","v":0},null,null,null,null,null,null,null,0]
["      3.8.1 Asistenţă Tehnică din partea proiectantului",null,null,null,null,null,null,null,null,null,null,null,null,null,null,null,null,null,null,null,null,null,null,null,null,null,null,null,null,null,null,null,null,null,null,{"$f":"AJ315+AJ316","v":0},null,null,null,null,null,null,null,null,{"$f":"AS315+AS316","v":0},null,null,null,null,null,null,null,0]
["           3.8.1.1 pe perioada de execuţie a lucrărilor",null,null,null,null,null,null,null,null,null,null,null,null,null,null,null,null,null,null,null,null,null,null,null,null,null,null,null,null,null,null,null,null,null,null,null,null,null,null,null,null,null,null,null,null,null,null,null,null,null,null,null,0]
["           3.8.1.2 pentru participarea proiectantului la fazele incluse în programul de control al\n                       lucrărilor de execuţie, avizat de către Inspectoratul de Stat în Construcţii",null,null,null,null,null,null,null,null,null,null,null,null,null,null,null,null,null,null,null,null,null,null,null,null,null,null,null,null,null,null,null,null,null,null,null,null,null,null,null,null,null,null,null,null,null,null,null,null,null,null,null,0]
["      3.8.2 Dirigenţie de şantier",null,null,null,null,null,null,null,null,null,null,null,null,null,null,null,null,null,null,null,null,null,null,null,null,null,null,null,null,null,null,null,null,null,null,null,null,null,null,null,null,null,null,null,null,null,null,null,null,null,null,null,0]
["Verificare încadrare cheltuieli capitolul 3",null,null,null,null,null,null,null,null,null,null,null,null,null,null,null,null,null,null,null,null,null,null,null,null,null,null,null,null,null,null,null,{"$f":"AJ288+AJ293+AJ319","v":0},{"$f":"IF(AG318=0,0,AI318)","v":0},null,"verificarea se face in Totalizator"]
["Capitolul 4 Cheltuieli pentru investiţia de bază - total, din care:",null,null,null,null,null,null,null,null,null,null,null,null,null,null,null,null,null,null,null,null,null,null,null,null,null,null,null,null,null,null,null,null,null,null,{"$f":"AJ320+AJ327","v":0},null,null,null,null,null,null,null,null,{"$f":"AS320+AS327","v":0},null,null,null,null,null,null,null,{"$f":"SUM(AJ319:AZ319)","v":0}]
["A - Constructii şi lucrări de intervenţii - total, din care:",null,null,null,null,null,null,null,null,null,null,null,null,null,null,null,null,null,null,null,null,null,null,null,null,null,null,null,null,null,null,null,null,null,null,{"$f":"SUM(AJ321:AR326)","v":0},null,null,null,null,null,null,null,null,{"$f":"SUM(AS321:AZ326)","v":0},null,null,null,null,null,null,null,0]
["4.1 Construcţii şi instalaţii",null,null,null,null,null,null,null,null,null,null,null,null,null,null,null,null,null,null,null,null,null,null,null,null,null,null,null,null,null,null,null,null,null,null,null,null,null,null,null,null,null,null,null,null,null,null,null,null,null,null,null,0]
["4.2 Montaj utilaje, echipamente tehnologice şi funcţionale",null,null,null,null,null,null,null,null,null,null,null,null,null,null,null,null,null,null,null,null,null,null,null,null,null,null,null,null,null,null,null,null,null,null,null,null,null,null,null,null,null,null,null,null,null,null,null,null,null,null,null,0]
["4.3 Utilaje, echipamente tehnologice şi funcţionale care necesită montaj",null,null,null,null,null,null,null,null,null,null,null,null,null,null,null,null,null,null,null,null,null,null,null,null,null,null,null,null,null,null,null,null,null,null,null,null,null,null,null,null,null,null,null,null,null,null,null,null,null,null,null,0]
["4.4 Utilaje, echipamente tehnologice şi funcţionale care nu necesită montaj şi echipamente",null,null,null,null,null,null,null,null,null,null,null,null,null,null,null,null,null,null,null,null,null,null,null,null,null,null,null,null,null,null,null,null,null,null,null,null,null,null,null,null,null,null,null,null,null,null,null,null,null,null,null,0]
["4.5 Dotări",null,null,null,null,null,null,null,null,null,null,null,null,null,null,null,null,null,null,null,null,null,null,null,null,null,null,null,null,null,null,null,null,null,null,null,null,null,null,null,null,null,null,null,null,null,null,null,null,null,null,null,0]
["4.6 Active necorporale",null,null,null,null,null,null,null,null,null,null,null,null,null,null,null,null,null,null,null,null,null,null,null,null,null,null,null,null,null,null,null,null,null,null,null,null,null,null,null,null,null,null,null,null,null,null,null,null,null,null,null,0]
["B - Cheltuieli pentru investitii în culturi/plantaţii",null,null,null,null,null,null,null,null,null,null,null,null,null,null,null,null,null,null,null,null,null,null,null,null,null,null,null,null,null,null,null,null,null,null,{"$f":"SUM(AJ328:AR332)","v":0},null,null,null,null,null,null,null,null,{"$f":"SUM(AS328:AZ332)","v":0},null,null,null,null,null,null,null,0]
["Subcapitol 1 - Lucrări de pregătire a terenului",null,null,null,null,null,null,null,null,null,null,null,null,null,null,null,null,null,null,null,null,null,null,null,null,null,null,null,null,null,null,null,null,null,null,null,null,null,null,null,null,null,null,null,null,null,null,null,null,null,null,null,0]
["Subcapitol 2 - Infiinţarea plantaţiei",null,null,null,null,null,null,null,null,null,null,null,null,null,null,null,null,null,null,null,null,null,null,null,null,null,null,null,null,null,null,null,null,null,null,null,null,null,null,null,null,null,null,null,null,null,null,null,null,null,null,null,0]
["Subcapitol 3 - Intreţinere plantaţie în anul 1",null,null,null,null,null,null,null,null,null,null,null,null,null,null,null,null,null,null,null,null,null,null,null,null,null,null,null,null,null,null,null,null,null,null,null,null,null,null,null,null,null,null,null,null,null,null,null,null,null,null,null,0]
["Subcapitol 4 - Intreţinere plantaţie în anul 2",null,null,null,null,null,null,null,null,null,null,null,null,null,null,null,null,null,null,null,null,null,null,null,null,null,null,null,null,null,null,null,null,null,null,null,null,null,null,null,null,null,null,null,null,null,null,null,null,null,null,null,0]
["Subcapitol 5 - Instalat sistem susţinere şi împrejmuire",null,null,null,null,null,null,null,null,null,null,null,null,null,null,null,null,null,null,null,null,null,null,null,null,null,null,null,null,null,null,null,null,null,null,null,null,null,null,null,null,null,null,null,null,null,null,null,null,null,null,null,0]
["Capitolul 5 Alte cheltuieli - total, din care:",null,null,null,null,null,null,null,null,null,null,null,null,null,null,null,null,null,null,null,null,null,null,null,null,null,null,null,null,null,null,null,null,null,null,{"$f":"AJ334+AJ337+AJ343+AJ344","v":0},null,null,null,null,null,null,null,null,{"$f":"AS334+AS337+AS343+AS344","v":0},null,null,null,null,null,null,null,0]
["5.1 Organizare de şantier",null,null,null,null,null,null,null,null,null,null,null,null,null,null,null,null,null,null,null,null,null,null,null,null,null,null,null,null,null,null,null,null,null,null,{"$f":"SUM(AJ335:AR336)","v":0},null,null,null,null,null,null,null,null,{"$f":"SUM(AS335:AZ336)","v":0},null,null,null,null,null,null,null,0]
["      5.1.1 lucrări de construcţii şi instalaţii aferente organizării de şantier",null,null,null,null,null,null,null,null,null,null,null,null,null,null,null,null,null,null,null,null,null,null,null,null,null,null,null,null,null,null,null,null,null,null,null,null,null,null,null,null,null,null,null,null,null,null,null,null,null,null,null,0]
["      5.1.2 cheltuieli conexe orgănizării şantierului",null,null,null,null,null,null,null,null,null,null,null,null,null,null,null,null,null,null,null,null,null,null,null,null,null,null,null,null,null,null,null,null,null,null,null,null,null,null,null,null,null,null,null,null,null,null,null,null,null,null,null,0]
["5.2 Comisioane, taxe, costul creditului",null,null,null,null,null,null,null,null,null,null,null,null,null,null,null,null,null,null,null,null,null,null,null,null,null,null,null,null,null,null,null,null,null,null,{"$f":"SUM(AJ338:AR342)","v":0},null,null,null,null,null,null,null,null,{"$f":"SUM(AS338:AZ342)","v":0},null,null,null,null,null,null,null,0]
["      5.2.1 Comisioanele şi dobânzile aferente creditului băncii finanţatoare",null,null,null,null,null,null,null,null,null,null,null,null,null,null,null,null,null,null,null,null,null,null,null,null,null,null,null,null,null,null,null,null,null,null,null,null,null,null,null,null,null,null,null,null,null,null,null,null,null,null,null,0]
["      5.2.2 Cota aferentă ISC pentru controlul calităţii lucrărilor de construcţii",null,null,null,null,null,null,null,null,null,null,null,null,null,null,null,null,null,null,null,null,null,null,null,null,null,null,null,null,null,null,null,null,null,null,null,null,null,null,null,null,null,null,null,null,null,null,null,null,null,null,null,0]
["      5.2.3 Cota aferentă ISC pentru controlul statului în amenajarea teritoriului,\n               urbanism şi pentru autorizarea lucrărilor de construcţii",null,null,null,null,null,null,null,null,null,null,null,null,null,null,null,null,null,null,null,null,null,null,null,null,null,null,null,null,null,null,null,null,null,null,null,null,null,null,null,null,null,null,null,null,null,null,null,null,null,null,null,0]
["      5.2.4 Cota aferentă Casei Sociale a Constructorilor - CSC",null,null,null,null,null,null,null,null,null,null,null,null,null,null,null,null,null,null,null,null,null,null,null,null,null,null,null,null,null,null,null,null,null,null,null,null,null,null,null,null,null,null,null,null,null,null,null,null,null,null,null,0]
["      5.2.5 Taxe pentru acorduri, avize conforme şi autorizaţia de construire/desfiinţare",null,null,null,null,null,null,null,null,null,null,null,null,null,null,null,null,null,null,null,null,null,null,null,null,null,null,null,null,null,null,null,null,null,null,null,null,null,null,null,null,null,null,null,null,null,null,null,null,null,null,null,0]
["5.3 Cheltuieli diverse şi neprevăzute",null,null,null,null,null,null,null,null,null,null,null,null,null,null,null,null,null,null,null,null,null,null,null,null,null,null,null,null,null,null,null,null,null,null,null,null,null,null,null,null,null,null,null,null,null,null,null,null,null,null,null,0]
["5.4 Cheltuieli pentru informare şi publicitate",null,null,null,null,null,null,null,null,null,null,null,null,null,null,null,null,null,null,null,null,null,null,null,null,null,null,null,null,null,null,null,null,null,null,null,null,null,null,null,null,null,null,null,null,null,null,null,null,null,null,null,0]
["Procent cheltuieli diverse şi neprevăzute"]
["Capitolul 6 Cheltuieli pentru darea în exploatare - total, din care:",null,null,null,null,null,null,null,null,null,null,null,null,null,null,null,null,null,null,null,null,null,null,null,null,null,null,null,null,null,null,null,null,null,null,{"$f":"SUM(AJ347:AR348)","v":0},null,null,null,null,null,null,null,null,{"$f":"SUM(AS347:AZ348)","v":0},null,null,null,null,null,null,null,0]
["6.1 Pregătirea personalului de exploatare",null,null,null,null,null,null,null,null,null,null,null,null,null,null,null,null,null,null,null,null,null,null,null,null,null,null,null,null,null,null,null,null,null,null,null,null,null,null,null,null,null,null,null,null,null,null,null,null,null,null,null,0]
["6.2 Probe tehnologice şi teste",null,null,null,null,null,null,null,null,null,null,null,null,null,null,null,null,null,null,null,null,null,null,null,null,null,null,null,null,null,null,null,null,null,null,null,null,null,null,null,null,null,null,null,null,null,null,null,null,null,null,null,0]
["TOTAL GENERAL",null,null,null,null,null,null,null,null,null,null,null,null,null,null,null,null,null,null,null,null,null,null,null,null,null,null,null,null,null,null,null,null,null,null,{"$f":"AJ288+AJ293+AJ294+AJ319+AJ333+AJ346","v":0},null,null,null,null,null,null,null,null,{"$f":"AS288+AS293+AS294+AS319+AS333+AS346","v":0},null,null,null,null,null,null,null,0]
["Verificare actualizare",null,null,null,null,null,null,null,null,null,null,null,null,null,null,null,null,null,null,null,null,null,null,null,null,null,null,null,null,null,null,{"$f":"AJ351*100/AJ349","v":{"$error":"#DIV/0!"}},null,null,{"$f":"IF(AJ349=0,0,AF350)","v":0},{"$f":"IF(AI350<=5,\"actualizare mai mică de 5% din valoarea eligibila\",\"actualizare mai mare de 5% din valoarea eligibila\")","v":"actualizare mai mică de 5% din valoarea eligibila"}]
["ACTUALIZARE Cheltuieli Eligibile (max 5%)",null,null,null,null,null,null,null,null,null,null,null,null,null,null,null,null,null,null,null,null,null,null,null,null,null,null,null,null,null,null,null,null,null,null,null,null,null,null,null,null,null,null,null,null,null,null,null,null,null,null,null,{"$f":"SUM(AJ351:AZ351)","v":0}]
["TOTAL GENERAL CU ACTUALIZARE",null,null,null,null,null,null,null,null,null,null,null,null,null,null,null,null,null,null,null,null,null,null,null,null,null,null,null,null,null,null,null,null,null,null,{"$f":"AJ349+AJ351","v":0},null,null,null,null,null,null,null,null,{"$f":"AS349","v":0},null,null,null,null,null,null,null,0]
["Valoare TVA",null,null,null,null,null,null,null,null,null,null,null,null,null,null,null,null,null,null,null,null,null,null,null,null,null,null,null,null,null,null,null,null,null,null,null,null,null,null,null,null,null,null,null,null,null,null,null,null,null,null,null,0]
["TOTAL GENERAL inclusiv TVA",null,null,null,null,null,null,null,null,null,null,null,null,null,null,null,null,null,null,null,null,null,null,null,null,null,null,null,null,null,null,null,null,null,null,{"$f":"BA352+BA353","v":0}]
[null,null,null,null,null,null,null,null,null,null,null,null,null,null,null,null,null,null,null,null,null,null,null,null,null,null,null,null,null,null,null,null,null,null,null,"LEI",null,null,null,null,null,null,null,null,"EURO"]
["VALOARE TOTALĂ",null,null,null,null,null,null,null,null,null,null,null,null,null,null,null,null,null,null,null,null,null,null,null,null,null,null,null,null,null,null,null,null,null,null,{"$f":"AS356*Z282","v":0},null,null,null,null,null,null,null,null,{"$f":"AJ354","v":0}]
["VALOARE ELIGIBILĂ",null,null,null,null,null,null,null,null,null,null,null,null,null,null,null,null,null,null,null,null,null,null,null,null,null,null,null,null,null,null,null,null,null,null,{"$f":"AS357*Z282","v":0},null,null,null,null,null,null,null,null,{"$f":"AJ352+AJ353","v":0}]
["VALOARE NEELIGIBILĂ",null,null,null,null,null,null,null,null,null,null,null,null,null,null,null,null,null,null,null,null,null,null,null,null,null,null,null,null,null,null,null,null,null,null,{"$f":"AS358*Z282","v":0},null,null,null,null,null,null,null,null,{"$f":"AS352+AS353","v":0}]
[]
["Plan Financiar",null,null,null,null,null,null,null,null,null,null,null,null,null,null,null,null,null,null,null,null,null,null,null,null,null,null,null,null,null,null,null,null,null,null,"Cheltuieli eligibile EURO",null,null,null,null,null,null,null,null,"Cheltuieli neeligibile EURO",null,null,null,null,null,null,null,"Total"]
["Ajutor public nerambursabil (contribuţie UE şi cofinanţare naţională)",null,null,null,null,null,null,null,null,null,null,null,null,null,null,null,null,null,null,null,null,null,null,null,null,null,null,null,null,null,null,null,null,null,null,null,null,null,null,null,null,null,null,null,null,null,null,null,null,null,null,null,{"$f":"SUM(AJ361:AZ361)","v":0}]
["Cofinantare privata, din care:",null,null,null,null,null,null,null,null,null,null,null,null,null,null,null,null,null,null,null,null,null,null,null,null,null,null,null,null,null,null,null,null,null,null,{"$f":"SUM(AJ363:AR365)","v":0},null,null,null,null,null,null,null,null,{"$f":"SUM(AS363:AZ365)","v":0},null,null,null,null,null,null,null,0]
[null,null,null,null,null,null,null,null,null,null,null,null,null,null,null,"- contributia in natura",null,null,null,null,null,null,null,null,null,null,null,null,null,null,null,null,null,null,null,null,null,null,null,null,null,null,null,null,null,null,null,null,null,null,null,null,0]
[null,null,null,null,null,null,null,null,null,null,null,null,null,null,null,"- autofinanțare",null,null,null,null,null,null,null,null,null,null,null,null,null,null,null,null,null,null,null,null,null,null,null,null,null,null,null,null,null,null,null,null,null,null,null,null,0]
[null,null,null,null,null,null,null,null,null,null,null,null,null,null,null,"- împrumuturi",null,null,null,null,null,null,null,null,null,null,null,null,null,null,null,null,null,null,null,null,null,null,null,null,null,null,null,null,null,null,null,null,null,null,null,null,0]
["TOTAL PROIECT",null,null,null,null,null,null,null,null,null,null,null,null,null,null,null,null,null,null,null,null,null,null,null,null,null,null,null,null,null,null,null,null,null,null,{"$f":"AJ361+AJ362","v":0},null,null,null,null,null,null,null,null,{"$f":"AS362","v":0},null,null,null,null,null,null,null,0]
["Procent contribuţie publică",null,null,null,null,null,null,null,null,null,null,null,null,null,null,null,null,null,null,null,null,null,null,null,null,null,null,null,null,null,null,null,null,{"$f":"AJ361*100/AJ366","v":{"$error":"#DIV/0!"}},{"$f":"IF(AJ366=0,0,AH367)","v":0},{"$f":"AI367","v":0},null,null,null,null,null,null,null,"%"]
["Avans solicitat",null,null,null,null,null,null,null,null,null,null,null,null,null,null,null,null,null,null,null,null,null,null,null,null,null,null,null,null,null,null,null,null,null,null,0]
["Procent avans solicitat ca procent din ajutorul public nerambursabil",null,null,null,null,null,null,null,null,null,null,null,null,null,null,null,null,null,null,null,null,null,null,null,null,null,null,null,null,null,null,null,null,null,{"$f":"AJ368*100/AJ361","v":{"$error":"#DIV/0!"}},{"$f":"IF(AJ361=0,0,AI369)","v":0},null,null,null,null,null,null,null,null,{"$f":"IF(AJ369<=50,\"Suma avans mai mica de 50% din ajutorul public\",\"Suma avans mai mare de 50% din ajutorul public\")","v":"Suma avans mai mica de 50% din ajutorul public"}]
[null,"Buget Indicativ HG 907 (Euro) pentru INVESTIŢII în activitatea de procesare şi/sau comercializare"]
["MINISTERUL AGRICULTURII ŞI DEZVOLTĂRII RURALE"]
["AGENŢIA PENTRU FINANŢAREA INVESTIŢIILOR RURALE"]
[]
[]
[null,"Procentul aferent intensităţii",null,null,null,null,null,null,null,null,null,null,null,null,null,null,null,null,null,"Curs EURO",null,null,null,null,null,null,null,null,null,null,null,null,null,null,null,"Data întocmirii Studiului de Fezabilitate"]
[]
["Submăsura",null,null,null,null,null,null,null,null,null,null,null,null,null,null,null,null,null,null,null,null,null,null,null,null,null,null,null,null,null,null,null,null,null,null,"4.1"]
["Denumirea capitolelor de cheltuieli",null,null,null,null,null,null,null,null,null,null,null,null,null,null,null,null,null,null,null,null,null,null,null,null,null,null,null,null,null,null,null,null,null,null,"Cheltuieli eligibile",null,null,null,null,null,null,null,null,"Cheltuieli neeligibile",null,null,null,null,null,null,null,"Total"]
[null,null,null,null,null,null,null,null,null,null,null,null,null,null,null,null,null,null,null,null,null,null,null,null,null,null,null,null,null,null,null,null,null,null,null,"EURO",null,null,null,null,null,null,null,null,"EURO",null,null,null,null,null,null,null,"EURO"]
[1,null,null,null,null,null,null,null,null,null,null,null,null,null,null,null,null,null,null,null,null,null,null,null,null,null,null,null,null,null,null,null,null,null,null,2,null,null,null,null,null,null,null,null,3,null,null,null,null,null,null,null,4]
["Capitolul 1 Cheltuieli pentru obtinerea şi amenajarea terenului - total, din care:",null,null,null,null,null,null,null,null,null,null,null,null,null,null,null,null,null,null,null,null,null,null,null,null,null,null,null,null,null,null,null,null,null,null,{"$f":"SUM(AJ383:AR385)","v":0},null,null,null,null,null,null,null,null,{"$f":"SUM(AS382:AZ385)","v":0},null,null,null,null,null,null,null,{"$f":"SUM(AJ381:AZ381)","v":0}]
["1.1 Obţinerea terenului",null,null,null,null,null,null,null,null,null,null,null,null,null,null,null,null,null,null,null,null,null,null,null,null,null,null,null,null,null,null,null,null,null,null,null,null,null,null,null,null,null,null,null,null,null,null,null,null,null,null,null,{"$f":"SUM(AJ382:AZ382)","v":0}]
["1.2 Amenajarea terenului",null,null,null,null,null,null,null,null,null,null,null,null,null,null,null,null,null,null,null,null,null,null,null,null,null,null,null,null,null,null,null,null,null,null,null,null,null,null,null,null,null,null,null,null,null,null,null,null,null,null,null,0]
["1.3 Amenajari pentru protecţia mediului şi aducerea la starea iniţială",null,null,null,null,null,null,null,null,null,null,null,null,null,null,null,null,null,null,null,null,null,null,null,null,null,null,null,null,null,null,null,null,null,null,null,null,null,null,null,null,null,null,null,null,null,null,null,null,null,null,null,0]
["1.4 Cheltuieli pentru relocarea/protecţia utilităţilor",null,null,null,null,null,null,null,null,null,null,null,null,null,null,null,null,null,null,null,null,null,null,null,null,null,null,null,null,null,null,null,null,null,null,null,null,null,null,null,null,null,null,null,null,null,null,null,null,null,null,null,0]
["Capitolul 2 Cheltuieli pentru asigurarea utilităţilor necesare obiectivului de investiţii",null,null,null,null,null,null,null,null,null,null,null,null,null,null,null,null,null,null,null,null,null,null,null,null,null,null,null,null,null,null,null,null,null,null,null,null,null,null,null,null,null,null,null,null,null,null,null,null,null,null,null,0]
["Capitolul 3 Cheltuieli pentru proiectare şi asistenţă tehnică - total, din care:",null,null,null,null,null,null,null,null,null,null,null,null,null,null,null,null,null,null,null,null,null,null,null,null,null,null,null,null,null,null,null,null,null,null,{"$f":"AJ388+AJ392+AJ393+AJ394+AJ395+AJ403+AJ406","v":0},null,null,null,null,null,null,null,null,{"$f":"AS388+AS392+AS393+AS394+AS395+AS402+AS403+AS406","v":0},null,null,null,null,null,null,null,0]
["3.1 Studii",null,null,null,null,null,null,null,null,null,null,null,null,null,null,null,null,null,null,null,null,null,null,null,null,null,null,null,null,null,null,null,null,null,null,{"$f":"SUM(AJ389:AR391)","v":0},null,null,null,null,null,null,null,null,{"$f":"SUM(AS389:AZ391)","v":0},null,null,null,null,null,null,null,0]
["       3.1.1 Studii de teren",null,null,null,null,null,null,null,null,null,null,null,null,null,null,null,null,null,null,null,null,null,null,null,null,null,null,null,null,null,null,null,null,null,null,null,null,null,null,null,null,null,null,null,null,null,null,null,null,null,null,null,0]
["       3.1.2 Raport privind impactul asupra mediului",null,null,null,null,null,null,null,null,null,null,null,null,null,null,null,null,null,null,null,null,null,null,null,null,null,null,null,null,null,null,null,null,null,null,null,null,null,null,null,null,null,null,null,null,null,null,null,null,null,null,null,0]
["       3.1.3 Alte studii specifice",null,null,null,null,null,null,null,null,null,null,null,null,null,null,null,null,null,null,null,null,null,null,null,null,null,null,null,null,null,null,null,null,null,null,null,null,null,null,null,null,null,null,null,null,null,null,null,null,null,null,null,0]
["3.2 Documentaţii-suport şi cheltuieli pentru obţinerea de avize, acorduri şi autorizaţii",null,null,null,null,null,null,null,null,null,null,null,null,null,null,null,null,null,null,null,null,null,null,null,null,null,null,null,null,null,null,null,null,null,null,null,null,null,null,null,null,null,null,null,null,null,null,null,null,null,null,null,0]
["3.3 Expertizare tehnică",null,null,null,null,null,null,null,null,null,null,null,null,null,null,null,null,null,null,null,null,null,null,null,null,null,null,null,null,null,null,null,null,null,null,null,null,null,null,null,null,null,null,null,null,null,null,null,null,null,null,null,0]
["3.4 Certificarea performanţei energetice şi auditul energetic al clădirilor",null,null,null,null,null,null,null,null,null,null,null,null,null,null,null,null,null,null,null,null,null,null,null,null,null,null,null,null,null,null,null,null,null,null,null,null,null,null,null,null,null,null,null,null,null,null,null,null,null,null,null,0]
["3.5 Proiectare",null,null,null,null,null,null,null,null,null,null,null,null,null,null,null,null,null,null,null,null,null,null,null,null,null,null,null,null,null,null,null,null,null,null,{"$f":"SUM(AJ396:AR401)","v":0},null,null,null,null,null,null,null,null,{"$f":"SUM(AS396:AZ401)","v":0},null,null,null,null,null,null,null,0]
["      3.5.1 Temă de proiectare",null,null,null,null,null,null,null,null,null,null,null,null,null,null,null,null,null,null,null,null,null,null,null,null,null,null,null,null,null,null,null,null,null,null,null,null,null,null,null,null,null,null,null,null,null,null,null,null,null,null,null,0]
["      3.5.2 Studiu de prefezabilitate",null,null,null,null,null,null,null,null,null,null,null,null,null,null,null,null,null,null,null,null,null,null,null,null,null,null,null,null,null,null,null,null,null,null,null,null,null,null,null,null,null,null,null,null,null,null,null,null,null,null,null,0]
["      3.5.3. Studiu de fezabilitate/documentaţie de avizare a lucrărilor de intervenţii\n                şi deviz general",null,null,null,null,null,null,null,null,null,null,null,null,null,null,null,null,null,null,null,null,null,null,null,null,null,null,null,null,null,null,null,null,null,null,null,null,null,null,null,null,null,null,null,null,null,null,null,null,null,null,null,0]
["      3.5.4. Documentaţiile tehnice necesare în vederea obţinerii avizelor/\n                acordurilor/autorizaţiilor",null,null,null,null,null,null,null,null,null,null,null,null,null,null,null,null,null,null,null,null,null,null,null,null,null,null,null,null,null,null,null,null,null,null,null,null,null,null,null,null,null,null,null,null,null,null,null,null,null,null,null,0]
["      3.5.5. Verificarea tehnică de calitate a proiectului tehnic şi a detaliilor de execuţie",null,null,null,null,null,null,null,null,null,null,null,null,null,null,null,null,null,null,null,null,null,null,null,null,null,null,null,null,null,null,null,null,null,null,null,null,null,null,null,null,null,null,null,null,null,null,null,null,null,null,null,0]
["      3.5.6. Proiect tehnic şi detalii de execuţie",null,null,null,null,null,null,null,null,null,null,null,null,null,null,null,null,null,null,null,null,null,null,null,null,null,null,null,null,null,null,null,null,null,null,null,null,null,null,null,null,null,null,null,null,null,null,null,null,null,null,null,0]
["3.6 Organizarea procedurilor de achiziţie",null,null,null,null,null,null,null,null,null,null,null,null,null,null,null,null,null,null,null,null,null,null,null,null,null,null,null,null,null,null,null,null,null,null,null,null,null,null,null,null,null,null,null,null,null,null,null,null,null,null,null,0]
["3.7 Consultanţă",null,null,null,null,null,null,null,null,null,null,null,null,null,null,null,null,null,null,null,null,null,null,null,null,null,null,null,null,null,null,null,null,null,null,{"$f":"AJ404","v":0},null,null,null,null,null,null,null,null,{"$f":"AS404+AS405","v":0},null,null,null,null,null,null,null,0]
["      3.7.1 Managementul de proiect pentru obiectivul de investiţii",null,null,null,null,null,null,null,null,null,null,null,null,null,null,null,null,null,null,null,null,null,null,null,null,null,null,null,null,null,null,null,null,null,null,null,null,null,null,null,null,null,null,null,null,null,null,null,null,null,null,null,0]
["      3.7.2 Auditul financiar",null,null,null,null,null,null,null,null,null,null,null,null,null,null,null,null,null,null,null,null,null,null,null,null,null,null,null,null,null,null,null,null,null,null,null,null,null,null,null,null,null,null,null,null,null,null,null,null,null,null,null,0]
["3.8 Asistenţă Tehnică",null,null,null,null,null,null,null,null,null,null,null,null,null,null,null,null,null,null,null,null,null,null,null,null,null,null,null,null,null,null,null,null,null,null,{"$f":"AJ407+AJ410","v":0},null,null,null,null,null,null,null,null,{"$f":"AS407+AS410","v":0},null,null,null,null,null,null,null,0]
["      3.8.1 Asistenţă Tehnică din partea proiectantului",null,null,null,null,null,null,null,null,null,null,null,null,null,null,null,null,null,null,null,null,null,null,null,null,null,null,null,null,null,null,null,null,null,null,{"$f":"SUM(AJ408:AR409)","v":0},null,null,null,null,null,null,null,null,{"$f":"SUM(AS408:AZ409)","v":0},null,null,null,null,null,null,null,0]
["           3.8.1.1 pe perioada de execuţie a lucrărilor",null,null,null,null,null,null,null,null,null,null,null,null,null,null,null,null,null,null,null,null,null,null,null,null,null,null,null,null,null,null,null,null,null,null,null,null,null,null,null,null,null,null,null,null,null,null,null,null,null,null,null,0]
["           3.8.1.2 pentru participarea proiectantului la fazele incluse în programul de control al\n                       lucrărilor de execuţie, avizat de către Inspectoratul de Stat în Construcţii",null,null,null,null,null,null,null,null,null,null,null,null,null,null,null,null,null,null,null,null,null,null,null,null,null,null,null,null,null,null,null,null,null,null,null,null,null,null,null,null,null,null,null,null,null,null,null,null,null,null,null,0]
["      3.8.2 Dirigenţie de şantier",null,null,null,null,null,null,null,null,null,null,null,null,null,null,null,null,null,null,null,null,null,null,null,null,null,null,null,null,null,null,null,null,null,null,null,null,null,null,null,null,null,null,null,null,null,null,null,null,null,null,null,0]
["Verificare încadrare cheltuieli capitolul 3",null,null,null,null,null,null,null,null,null,null,null,null,null,null,null,null,null,null,null,null,null,null,null,null,null,null,null,null,null,null,null,{"$f":"AJ381+AJ386+AJ412","v":0},{"$f":"IF(AG411=0,0,AI411)","v":0},null,"verificarea se face in Totalizator"]
["Capitolul 4 Cheltuieli pentru investiţia de bază - total, din care:",null,null,null,null,null,null,null,null,null,null,null,null,null,null,null,null,null,null,null,null,null,null,null,null,null,null,null,null,null,null,null,null,null,null,{"$f":"AJ413+AJ420","v":0},null,null,null,null,null,null,null,null,{"$f":"AS413+AS420","v":0},null,null,null,null,null,null,null,{"$f":"SUM(AJ412:AZ412)","v":0}]
["A - Constructii şi lucrări de intervenţii - total, din care:",null,null,null,null,null,null,null,null,null,null,null,null,null,null,null,null,null,null,null,null,null,null,null,null,null,null,null,null,null,null,null,null,null,null,{"$f":"SUM(AJ414:AR419)","v":0},null,null,null,null,null,null,null,null,{"$f":"SUM(AS414:AZ419)","v":0},null,null,null,null,null,null,null,0]
["4.1 Construcţii şi instalaţii",null,null,null,null,null,null,null,null,null,null,null,null,null,null,null,null,null,null,null,null,null,null,null,null,null,null,null,null,null,null,null,null,null,null,null,null,null,null,null,null,null,null,null,null,null,null,null,null,null,null,null,0]
["4.2 Montaj utilaje, echipamente tehnologice şi funcţionale",null,null,null,null,null,null,null,null,null,null,null,null,null,null,null,null,null,null,null,null,null,null,null,null,null,null,null,null,null,null,null,null,null,null,null,null,null,null,null,null,null,null,null,null,null,null,null,null,null,null,null,0]
["4.3 Utilaje, echipamente tehnologice şi funcţionale care necesită montaj",null,null,null,null,null,null,null,null,null,null,null,null,null,null,null,null,null,null,null,null,null,null,null,null,null,null,null,null,null,null,null,null,null,null,null,null,null,null,null,null,null,null,null,null,null,null,null,null,null,null,null,0]
["4.4 Utilaje, echipamente tehnologice şi funcţionale care nu necesită montaj şi echipamente",null,null,null,null,null,null,null,null,null,null,null,null,null,null,null,null,null,null,null,null,null,null,null,null,null,null,null,null,null,null,null,null,null,null,null,null,null,null,null,null,null,null,null,null,null,null,null,null,null,null,null,0]
["4.5 Dotări",null,null,null,null,null,null,null,null,null,null,null,null,null,null,null,null,null,null,null,null,null,null,null,null,null,null,null,null,null,null,null,null,null,null,null,null,null,null,null,null,null,null,null,null,null,null,null,null,null,null,null,0]
["4.6 Active necorporale",null,null,null,null,null,null,null,null,null,null,null,null,null,null,null,null,null,null,null,null,null,null,null,null,null,null,null,null,null,null,null,null,null,null,null,null,null,null,null,null,null,null,null,null,null,null,null,null,null,null,null,0]
["B - Cheltuieli pentru investitii în culturi/plantaţii",null,null,null,null,null,null,null,null,null,null,null,null,null,null,null,null,null,null,null,null,null,null,null,null,null,null,null,null,null,null,null,null,null,null,{"$f":"SUM(AJ421:AR425)","v":0},null,null,null,null,null,null,null,null,{"$f":"SUM(AS421:AZ425)","v":0},null,null,null,null,null,null,null,0]
["Subcapitol 1 - Lucrări de pregătire a terenului",null,null,null,null,null,null,null,null,null,null,null,null,null,null,null,null,null,null,null,null,null,null,null,null,null,null,null,null,null,null,null,null,null,null,null,null,null,null,null,null,null,null,null,null,null,null,null,null,null,null,null,0]
["Subcapitol 2 - Infiinţarea plantaţiei",null,null,null,null,null,null,null,null,null,null,null,null,null,null,null,null,null,null,null,null,null,null,null,null,null,null,null,null,null,null,null,null,null,null,null,null,null,null,null,null,null,null,null,null,null,null,null,null,null,null,null,0]
["Subcapitol 3 - Intreţinere plantaţie în anul 1",null,null,null,null,null,null,null,null,null,null,null,null,null,null,null,null,null,null,null,null,null,null,null,null,null,null,null,null,null,null,null,null,null,null,null,null,null,null,null,null,null,null,null,null,null,null,null,null,null,null,null,0]
["Subcapitol 4 - Intreţinere plantaţie în anul 2",null,null,null,null,null,null,null,null,null,null,null,null,null,null,null,null,null,null,null,null,null,null,null,null,null,null,null,null,null,null,null,null,null,null,null,null,null,null,null,null,null,null,null,null,null,null,null,null,null,null,null,0]
["Subcapitol 5 - Instalat sistem susţinere şi împrejmuire",null,null,null,null,null,null,null,null,null,null,null,null,null,null,null,null,null,null,null,null,null,null,null,null,null,null,null,null,null,null,null,null,null,null,null,null,null,null,null,null,null,null,null,null,null,null,null,null,null,null,null,0]
["Capitolul 5 Alte cheltuieli - total, din care:",null,null,null,null,null,null,null,null,null,null,null,null,null,null,null,null,null,null,null,null,null,null,null,null,null,null,null,null,null,null,null,null,null,null,{"$f":"AJ427+AJ430+AJ436+AJ437","v":0},null,null,null,null,null,null,null,null,{"$f":"AS427+AS430+AS436+AS437","v":0},null,null,null,null,null,null,null,0]
["5.1 Organizare de şantier",null,null,null,null,null,null,null,null,null,null,null,null,null,null,null,null,null,null,null,null,null,null,null,null,null,null,null,null,null,null,null,null,null,null,{"$f":"SUM(AJ428:AR429)","v":0},null,null,null,null,null,null,null,null,{"$f":"SUM(AS428:AZ429)","v":0},null,null,null,null,null,null,null,0]
["      5.1.1 lucrări de construcţii şi instalaţii aferente organizării de şantier",null,null,null,null,null,null,null,null,null,null,null,null,null,null,null,null,null,null,null,null,null,null,null,null,null,null,null,null,null,null,null,null,null,null,null,null,null,null,null,null,null,null,null,null,null,null,null,null,null,null,null,0]
["      5.1.2 cheltuieli conexe orgănizării şantierului",null,null,null,null,null,null,null,null,null,null,null,null,null,null,null,null,null,null,null,null,null,null,null,null,null,null,null,null,null,null,null,null,null,null,null,null,null,null,null,null,null,null,null,null,null,null,null,null,null,null,null,0]
["5.2 Comisioane, taxe, costul creditului",null,null,null,null,null,null,null,null,null,null,null,null,null,null,null,null,null,null,null,null,null,null,null,null,null,null,null,null,null,null,null,null,null,null,{"$f":"AJ432+AJ433+AJ435","v":0},null,null,null,null,null,null,null,null,{"$f":"SUM(AS431:AZ435)","v":0},null,null,null,null,null,null,null,0]
["      5.2.1 Comisioanele şi dobânzile aferente creditului băncii finanţatoare",null,null,null,null,null,null,null,null,null,null,null,null,null,null,null,null,null,null,null,null,null,null,null,null,null,null,null,null,null,null,null,null,null,null,null,null,null,null,null,null,null,null,null,null,null,null,null,null,null,null,null,0]
["      5.2.2 Cota aferentă ISC pentru controlul calităţii lucrărilor de construcţii",null,null,null,null,null,null,null,null,null,null,null,null,null,null,null,null,null,null,null,null,null,null,null,null,null,null,null,null,null,null,null,null,null,null,null,null,null,null,null,null,null,null,null,null,null,null,null,null,null,null,null,0]
["      5.2.3 Cota aferentă ISC pentru controlul statului în amenajarea teritoriului, urbanism şi\n               pentru autorizarea lucrărilor de construcţii",null,null,null,null,null,null,null,null,null,null,null,null,null,null,null,null,null,null,null,null,null,null,null,null,null,null,null,null,null,null,null,null,null,null,null,null,null,null,null,null,null,null,null,null,null,null,null,null,null,null,null,0]
["      5.2.4 Cota aferentă Casei Sociale a Constructorilor - CSC",null,null,null,null,null,null,null,null,null,null,null,null,null,null,null,null,null,null,null,null,null,null,null,null,null,null,null,null,null,null,null,null,null,null,null,null,null,null,null,null,null,null,null,null,null,null,null,null,null,null,null,0]
["      5.2.5 Taxe pentru acorduri, avize conforme şi autorizaţia de construire/ desfiinţare",null,null,null,null,null,null,null,null,null,null,null,null,null,null,null,null,null,null,null,null,null,null,null,null,null,null,null,null,null,null,null,null,null,null,null,null,null,null,null,null,null,null,null,null,null,null,null,null,null,null,null,0]
["5.3 Cheltuieli diverse şi neprevăzute",null,null,null,null,null,null,null,null,null,null,null,null,null,null,null,null,null,null,null,null,null,null,null,null,null,null,null,null,null,null,null,null,null,null,null,null,null,null,null,null,null,null,null,null,null,null,null,null,null,null,null,0]
["5.4 Cheltuieli pentru informare şi publicitate",null,null,null,null,null,null,null,null,null,null,null,null,null,null,null,null,null,null,null,null,null,null,null,null,null,null,null,null,null,null,null,null,null,null,null,null,null,null,null,null,null,null,null,null,null,null,null,null,null,null,null,0]
["Procent cheltuieli diverse şi neprevăzute"]
["Capitolul 6 Cheltuieli pentru darea în exploatare - total, din care:",null,null,null,null,null,null,null,null,null,null,null,null,null,null,null,null,null,null,null,null,null,null,null,null,null,null,null,null,null,null,null,null,null,null,{"$f":"SUM(AJ440:AR441)","v":0},null,null,null,null,null,null,null,null,{"$f":"SUM(AS440:AZ441)","v":0},null,null,null,null,null,null,null,{"$f":"SUM(AJ439:AZ439)","v":0}]
["6.1 Pregătirea personalului de exploatare",null,null,null,null,null,null,null,null,null,null,null,null,null,null,null,null,null,null,null,null,null,null,null,null,null,null,null,null,null,null,null,null,null,null,null,null,null,null,null,null,null,null,null,null,null,null,null,null,null,null,null,0]
["6.2 Probe tehnologice şi teste",null,null,null,null,null,null,null,null,null,null,null,null,null,null,null,null,null,null,null,null,null,null,null,null,null,null,null,null,null,null,null,null,null,null,null,null,null,null,null,null,null,null,null,null,null,null,null,null,null,null,null,0]
["TOTAL GENERAL",null,null,null,null,null,null,null,null,null,null,null,null,null,null,null,null,null,null,null,null,null,null,null,null,null,null,null,null,null,null,null,null,null,null,{"$f":"AJ381+AJ386+AJ387+AJ412+AJ426+AJ439","v":0},null,null,null,null,null,null,null,null,{"$f":"AS381+AS386+AS387+AS412+AS426+AS439","v":0},null,null,null,null,null,null,null,0]
["Verificare actualizare",null,null,null,null,null,null,null,null,null,null,null,null,null,null,null,null,null,null,null,null,null,null,null,null,null,null,null,null,null,null,{"$f":"AJ444*100/AJ442","v":{"$error":"#DIV/0!"}},null,null,{"$f":"IF(AJ442=0,0,AF443)","v":0},{"$f":"IF(AI443<=5,\"actualizare mai mică de 5% din valoarea eligibila\",\"actualizare mai mare de 5% din valoarea eligibila\")","v":"actualizare mai mică de 5% din valoarea eligibila"}]
["ACTUALIZARE Cheltuieli Eligibile (max 5%)",null,null,null,null,null,null,null,null,null,null,null,null,null,null,null,null,null,null,null,null,null,null,null,null,null,null,null,null,null,null,null,null,null,null,null,null,null,null,null,null,null,null,null,null,null,null,null,null,null,null,null,{"$f":"SUM(AJ444:AZ444)","v":0}]
["TOTAL GENERAL CU ACTUALIZARE",null,null,null,null,null,null,null,null,null,null,null,null,null,null,null,null,null,null,null,null,null,null,null,null,null,null,null,null,null,null,null,null,null,null,{"$f":"AJ442+AJ444","v":0},null,null,null,null,null,null,null,null,{"$f":"AS442","v":0},null,null,null,null,null,null,null,0]
["Valoare TVA",null,null,null,null,null,null,null,null,null,null,null,null,null,null,null,null,null,null,null,null,null,null,null,null,null,null,null,null,null,null,null,null,null,null,null,null,null,null,null,null,null,null,null,null,null,null,null,null,null,null,null,0]
["TOTAL GENERAL inclusiv TVA",null,null,null,null,null,null,null,null,null,null,null,null,null,null,null,null,null,null,null,null,null,null,null,null,null,null,null,null,null,null,null,null,null,null,{"$f":"BA445+BA446","v":0}]
[null,null,null,null,null,null,null,null,null,null,null,null,null,null,null,null,null,null,null,null,null,null,null,null,null,null,null,null,null,null,null,null,null,null,null,"LEI",null,null,null,null,null,null,null,null,"EURO"]
["VALOARE TOTALĂ",null,null,null,null,null,null,null,null,null,null,null,null,null,null,null,null,null,null,null,null,null,null,null,null,null,null,null,null,null,null,null,null,null,null,{"$f":"AS449*Z375","v":0},null,null,null,null,null,null,null,null,{"$f":"AJ447","v":0}]
["VALOARE ELIGIBILĂ",null,null,null,null,null,null,null,null,null,null,null,null,null,null,null,null,null,null,null,null,null,null,null,null,null,null,null,null,null,null,null,null,null,null,{"$f":"AS450*Z375","v":0},null,null,null,null,null,null,null,null,{"$f":"AJ445+AJ446","v":0}]
["VALOARE NEELIGIBILĂ",null,null,null,null,null,null,null,null,null,null,null,null,null,null,null,null,null,null,null,null,null,null,null,null,null,null,null,null,null,null,null,null,null,null,{"$f":"AS451*Z375","v":0},null,null,null,null,null,null,null,null,{"$f":"AS445+AS446","v":0}]
["Plan Financiar",null,null,null,null,null,null,null,null,null,null,null,null,null,null,null,null,null,null,null,null,null,null,null,null,null,null,null,null,null,null,null,null,null,null,"Cheltuieli eligibile EURO",null,null,null,null,null,null,null,null,"Cheltuieli neeligibile EURO",null,null,null,null,null,null,null,"Total"]
["Ajutor public nerambursabil (contribuţie UE şi cofinanţare naţională)",null,null,null,null,null,null,null,null,null,null,null,null,null,null,null,null,null,null,null,null,null,null,null,null,null,null,null,null,null,null,null,null,null,null,null,null,null,null,null,null,null,null,null,null,null,null,null,null,null,null,null,{"$f":"SUM(AJ453:AZ453)","v":0}]
["Cofinantare privata, din care:",null,null,null,null,null,null,null,null,null,null,null,null,null,null,null,null,null,null,null,null,null,null,null,null,null,null,null,null,null,null,null,null,null,null,{"$f":"SUM(AJ455:AR457)","v":0},null,null,null,null,null,null,null,null,{"$f":"SUM(AS455:AZ457)","v":0},null,null,null,null,null,null,null,0]
[null,null,null,null,null,null,null,null,null,null,null,null,null,null,null,"- contributia in natura",null,null,null,null,null,null,null,null,null,null,null,null,null,null,null,null,null,null,null,null,null,null,null,null,null,null,null,null,null,null,null,null,null,null,null,null,0]
[null,null,null,null,null,null,null,null,null,null,null,null,null,null,null,"- autofinanțare",null,null,null,null,null,null,null,null,null,null,null,null,null,null,null,null,null,null,null,null,null,null,null,null,null,null,null,null,null,null,null,null,null,null,null,null,0]
[null,null,null,null,null,null,null,null,null,null,null,null,null,null,null,"- împrumuturi",null,null,null,null,null,null,null,null,null,null,null,null,null,null,null,null,null,null,null,null,null,null,null,null,null,null,null,null,null,null,null,null,null,null,null,null,0]
["TOTAL PROIECT",null,null,null,null,null,null,null,null,null,null,null,null,null,null,null,null,null,null,null,null,null,null,null,null,null,null,null,null,null,null,null,null,null,null,{"$f":"AJ453+AJ454","v":0},null,null,null,null,null,null,null,null,{"$f":"AS454","v":0},null,null,null,null,null,null,null,0]
["Procent contribuţie publică",null,null,null,null,null,null,null,null,null,null,null,null,null,null,null,null,null,null,null,null,null,null,null,null,null,null,null,null,null,null,null,null,{"$f":"AJ453*100/AJ458","v":{"$error":"#DIV/0!"}},{"$f":"IF(AJ458=0,0,AH459)","v":0},{"$f":"AI459","v":0},null,null,null,null,null,null,null,"%"]
["Avans solicitat"]
["Procent avans solicitat ca procent din ajutorul public nerambursabil",null,null,null,null,null,null,null,null,null,null,null,null,null,null,null,null,null,null,null,null,null,null,null,null,null,null,null,null,null,null,null,null,null,{"$f":"AJ460*100/AJ453","v":{"$error":"#DIV/0!"}},{"$f":"IF(AJ453=0,0,AI461)","v":0},null,null,null,null,null,null,null,null,{"$f":"IF(AJ461<=50,\"Suma avans mai mica de 50% din ajutorul public\",\"Suma avans mai mare de 50% din ajutorul public\")","v":"Suma avans mai mica de 50% din ajutorul public"}]
[null,"Buget Indicativ HG 907 (Euro) pentru INVESTIŢII pentru agromediu "]
["MINISTERUL AGRICULTURII ŞI DEZVOLTĂRII RURALE"]
["AGENŢIA PENTRU FINANŢAREA INVESTIŢIILOR RURALE"]
[]
[]
[null,"Procentul aferent intensităţii",null,null,null,null,null,null,null,null,null,null,null,null,null,null,null,null,null,"Curs EURO",null,null,null,null,null,null,null,null,null,null,null,null,null,null,null,"Data întocmirii Studiului de Fezabilitate"]
[]
["Submăsura",null,null,null,null,null,null,null,null,null,null,null,null,null,null,null,null,null,null,null,null,null,null,null,null,null,null,null,null,null,null,null,null,null,null,"4.1"]
["Denumirea capitolelor de cheltuieli",null,null,null,null,null,null,null,null,null,null,null,null,null,null,null,null,null,null,null,null,null,null,null,null,null,null,null,null,null,null,null,null,null,null,"Cheltuieli eligibile",null,null,null,null,null,null,null,null,"Cheltuieli neeligibile",null,null,null,null,null,null,null,"Total"]
[null,null,null,null,null,null,null,null,null,null,null,null,null,null,null,null,null,null,null,null,null,null,null,null,null,null,null,null,null,null,null,null,null,null,null,"EURO",null,null,null,null,null,null,null,null,"EURO",null,null,null,null,null,null,null,"EURO"]
[1,null,null,null,null,null,null,null,null,null,null,null,null,null,null,null,null,null,null,null,null,null,null,null,null,null,null,null,null,null,null,null,null,null,null,2,null,null,null,null,null,null,null,null,3,null,null,null,null,null,null,null,4]
["Capitolul 1 Cheltuieli pentru obtinerea şi amenajarea terenului - total, din care:",null,null,null,null,null,null,null,null,null,null,null,null,null,null,null,null,null,null,null,null,null,null,null,null,null,null,null,null,null,null,null,null,null,null,{"$f":"SUM(AJ475:AR477)","v":0},null,null,null,null,null,null,null,null,{"$f":"SUM(AS474:AZ477)","v":0},null,null,null,null,null,null,null,{"$f":"SUM(AJ473:AZ473)","v":0}]
["1.1 Obţinerea terenului",null,null,null,null,null,null,null,null,null,null,null,null,null,null,null,null,null,null,null,null,null,null,null,null,null,null,null,null,null,null,null,null,null,null,null,null,null,null,null,null,null,null,null,null,null,null,null,null,null,null,null,{"$f":"SUM(AJ474:AZ474)","v":0}]
["1.2 Amenajarea terenului",null,null,null,null,null,null,null,null,null,null,null,null,null,null,null,null,null,null,null,null,null,null,null,null,null,null,null,null,null,null,null,null,null,null,null,null,null,null,null,null,null,null,null,null,null,null,null,null,null,null,null,0]
["1.3 Amenajari pentru protecţia mediului şi aducerea la starea iniţială",null,null,null,null,null,null,null,null,null,null,null,null,null,null,null,null,null,null,null,null,null,null,null,null,null,null,null,null,null,null,null,null,null,null,null,null,null,null,null,null,null,null,null,null,null,null,null,null,null,null,null,0]
["1.4 Cheltuieli pentru relocarea/protecţia utilităţilor",null,null,null,null,null,null,null,null,null,null,null,null,null,null,null,null,null,null,null,null,null,null,null,null,null,null,null,null,null,null,null,null,null,null,null,null,null,null,null,null,null,null,null,null,null,null,null,null,null,null,null,0]
["Capitolul 2 Cheltuieli pentru asigurarea utilităţilor necesare obiectivului de investiţii",null,null,null,null,null,null,null,null,null,null,null,null,null,null,null,null,null,null,null,null,null,null,null,null,null,null,null,null,null,null,null,null,null,null,null,null,null,null,null,null,null,null,null,null,null,null,null,null,null,null,null,0]
["Capitolul 3 Cheltuieli pentru proiectare şi asistenţă tehnică - total, din care:",null,null,null,null,null,null,null,null,null,null,null,null,null,null,null,null,null,null,null,null,null,null,null,null,null,null,null,null,null,null,null,null,null,null,{"$f":"AJ480+AJ484+AJ485+AJ486+AJ487+AJ495+AJ498","v":0},null,null,null,null,null,null,null,null,{"$f":"AS480+AS484+AS485+AS486+AS487+AS494+AS495+AS498","v":0},null,null,null,null,null,null,null,0]
["3.1 Studii",null,null,null,null,null,null,null,null,null,null,null,null,null,null,null,null,null,null,null,null,null,null,null,null,null,null,null,null,null,null,null,null,null,null,{"$f":"SUM(AJ481:AR483)","v":0},null,null,null,null,null,null,null,null,{"$f":"SUM(AS481:AZ483)","v":0},null,null,null,null,null,null,null,0]
["       3.1.1 Studii de teren",null,null,null,null,null,null,null,null,null,null,null,null,null,null,null,null,null,null,null,null,null,null,null,null,null,null,null,null,null,null,null,null,null,null,null,null,null,null,null,null,null,null,null,null,null,null,null,null,null,null,null,0]
["       3.1.2 Raport privind impactul asupra mediului",null,null,null,null,null,null,null,null,null,null,null,null,null,null,null,null,null,null,null,null,null,null,null,null,null,null,null,null,null,null,null,null,null,null,null,null,null,null,null,null,null,null,null,null,null,null,null,null,null,null,null,0]
["       3.1.3 Alte studii specifice",null,null,null,null,null,null,null,null,null,null,null,null,null,null,null,null,null,null,null,null,null,null,null,null,null,null,null,null,null,null,null,null,null,null,null,null,null,null,null,null,null,null,null,null,null,null,null,null,null,null,null,0]
["3.2 Documentaţii-suport şi cheltuieli pentru obţinerea de avize, acorduri şi autorizaţii",null,null,null,null,null,null,null,null,null,null,null,null,null,null,null,null,null,null,null,null,null,null,null,null,null,null,null,null,null,null,null,null,null,null,null,null,null,null,null,null,null,null,null,null,null,null,null,null,null,null,null,0]
["3.3 Expertizare tehnică",null,null,null,null,null,null,null,null,null,null,null,null,null,null,null,null,null,null,null,null,null,null,null,null,null,null,null,null,null,null,null,null,null,null,null,null,null,null,null,null,null,null,null,null,null,null,null,null,null,null,null,0]
["3.4 Certificarea performanţei energetice şi auditul energetic al clădirilor",null,null,null,null,null,null,null,null,null,null,null,null,null,null,null,null,null,null,null,null,null,null,null,null,null,null,null,null,null,null,null,null,null,null,null,null,null,null,null,null,null,null,null,null,null,null,null,null,null,null,null,0]
["3.5 Proiectare",null,null,null,null,null,null,null,null,null,null,null,null,null,null,null,null,null,null,null,null,null,null,null,null,null,null,null,null,null,null,null,null,null,null,{"$f":"SUM(AJ488:AR493)","v":0},null,null,null,null,null,null,null,null,{"$f":"SUM(AS488:AZ493)","v":0},null,null,null,null,null,null,null,0]
["      3.5.1 Temă de proiectare",null,null,null,null,null,null,null,null,null,null,null,null,null,null,null,null,null,null,null,null,null,null,null,null,null,null,null,null,null,null,null,null,null,null,null,null,null,null,null,null,null,null,null,null,null,null,null,null,null,null,null,0]
["      3.5.2 Studiu de prefezabilitate",null,null,null,null,null,null,null,null,null,null,null,null,null,null,null,null,null,null,null,null,null,null,null,null,null,null,null,null,null,null,null,null,null,null,null,null,null,null,null,null,null,null,null,null,null,null,null,null,null,null,null,0]
["      3.5.3. Studiu de fezabilitate/documentaţie de avizare a lucrărilor de intervenţii\n                şi deviz general",null,null,null,null,null,null,null,null,null,null,null,null,null,null,null,null,null,null,null,null,null,null,null,null,null,null,null,null,null,null,null,null,null,null,null,null,null,null,null,null,null,null,null,null,null,null,null,null,null,null,null,0]
["      3.5.4. Documentaţiile tehnice necesare în vederea obţinerii avizelor/\n                acordurilor/autorizaţiilor",null,null,null,null,null,null,null,null,null,null,null,null,null,null,null,null,null,null,null,null,null,null,null,null,null,null,null,null,null,null,null,null,null,null,null,null,null,null,null,null,null,null,null,null,null,null,null,null,null,null,null,0]
["      3.5.5. Verificarea tehnică de calitate a proiectului tehnic şi a detaliilor de execuţie",null,null,null,null,null,null,null,null,null,null,null,null,null,null,null,null,null,null,null,null,null,null,null,null,null,null,null,null,null,null,null,null,null,null,null,null,null,null,null,null,null,null,null,null,null,null,null,null,null,null,null,0]
["      3.5.6. Proiect tehnic şi detalii de execuţie",null,null,null,null,null,null,null,null,null,null,null,null,null,null,null,null,null,null,null,null,null,null,null,null,null,null,null,null,null,null,null,null,null,null,null,null,null,null,null,null,null,null,null,null,null,null,null,null,null,null,null,0]
["3.6 Organizarea procedurilor de achiziţie",null,null,null,null,null,null,null,null,null,null,null,null,null,null,null,null,null,null,null,null,null,null,null,null,null,null,null,null,null,null,null,null,null,null,null,null,null,null,null,null,null,null,null,null,null,null,null,null,null,null,null,0]
["3.7 Consultanţă",null,null,null,null,null,null,null,null,null,null,null,null,null,null,null,null,null,null,null,null,null,null,null,null,null,null,null,null,null,null,null,null,null,null,{"$f":"AJ496","v":0},null,null,null,null,null,null,null,null,{"$f":"AS496+AS497","v":0},null,null,null,null,null,null,null,0]
["      3.7.1 Managementul de proiect pentru obiectivul de investiţii",null,null,null,null,null,null,null,null,null,null,null,null,null,null,null,null,null,null,null,null,null,null,null,null,null,null,null,null,null,null,null,null,null,null,null,null,null,null,null,null,null,null,null,null,null,null,null,null,null,null,null,0]
["      3.7.2 Auditul financiar",null,null,null,null,null,null,null,null,null,null,null,null,null,null,null,null,null,null,null,null,null,null,null,null,null,null,null,null,null,null,null,null,null,null,null,null,null,null,null,null,null,null,null,null,null,null,null,null,null,null,null,0]
["3.8 Asistenţă Tehnică",null,null,null,null,null,null,null,null,null,null,null,null,null,null,null,null,null,null,null,null,null,null,null,null,null,null,null,null,null,null,null,null,null,null,{"$f":"AJ499+AJ502","v":0},null,null,null,null,null,null,null,null,{"$f":"AS499+AS502","v":0},null,null,null,null,null,null,null,0]
["      3.8.1 Asistenţă Tehnică din partea proiectantului",null,null,null,null,null,null,null,null,null,null,null,null,null,null,null,null,null,null,null,null,null,null,null,null,null,null,null,null,null,null,null,null,null,null,{"$f":"AJ500+AJ501","v":0},null,null,null,null,null,null,null,null,{"$f":"AS500+AS501","v":0},null,null,null,null,null,null,null,0]
["            3.8.1.1 pe perioada de execuţie a lucrărilor",null,null,null,null,null,null,null,null,null,null,null,null,null,null,null,null,null,null,null,null,null,null,null,null,null,null,null,null,null,null,null,null,null,null,null,null,null,null,null,null,null,null,null,null,null,null,null,null,null,null,null,0]
["            3.8.1.2 pentru participarea proiectantului la fazele incluse în programul de control al\n                        lucrărilor de execuţie, avizat de către Inspectoratul de Stat în Construcţii",null,null,null,null,null,null,null,null,null,null,null,null,null,null,null,null,null,null,null,null,null,null,null,null,null,null,null,null,null,null,null,null,null,null,null,null,null,null,null,null,null,null,null,null,null,null,null,null,null,null,null,0]
["      3.8.2 Dirigenţie de şantier",null,null,null,null,null,null,null,null,null,null,null,null,null,null,null,null,null,null,null,null,null,null,null,null,null,null,null,null,null,null,null,null,null,null,null,null,null,null,null,null,null,null,null,null,null,null,null,null,null,null,null,0]
["Verificare încadrare cheltuieli capitolul 3",null,null,null,null,null,null,null,null,null,null,null,null,null,null,null,null,null,null,null,null,null,null,null,null,null,null,null,null,null,null,null,{"$f":"AJ473+AJ478+AJ504","v":0},{"$f":"IF(AG503=0,0,AI503)","v":0},null,"verificarea se face in Totalizator"]
["Capitolul 4 Cheltuieli pentru investiţia de bază - total, din care:",null,null,null,null,null,null,null,null,null,null,null,null,null,null,null,null,null,null,null,null,null,null,null,null,null,null,null,null,null,null,null,null,null,null,{"$f":"AJ505+AJ512","v":0},null,null,null,null,null,null,null,null,{"$f":"AS505+AS512","v":0},null,null,null,null,null,null,null,{"$f":"SUM(AJ504:AZ504)","v":0}]
["A - Constructii şi lucrări de intervenţii - total, din care:",null,null,null,null,null,null,null,null,null,null,null,null,null,null,null,null,null,null,null,null,null,null,null,null,null,null,null,null,null,null,null,null,null,null,{"$f":"SUM(AJ506:AR511)","v":0},null,null,null,null,null,null,null,null,{"$f":"SUM(AS506:AZ511)","v":0},null,null,null,null,null,null,null,0]
["4.1 Construcţii şi instalaţii",null,null,null,null,null,null,null,null,null,null,null,null,null,null,null,null,null,null,null,null,null,null,null,null,null,null,null,null,null,null,null,null,null,null,null,null,null,null,null,null,null,null,null,null,null,null,null,null,null,null,null,0]
["4.2 Montaj utilaje, echipamente tehnologice şi funcţionale",null,null,null,null,null,null,null,null,null,null,null,null,null,null,null,null,null,null,null,null,null,null,null,null,null,null,null,null,null,null,null,null,null,null,null,null,null,null,null,null,null,null,null,null,null,null,null,null,null,null,null,0]
["4.3 Utilaje, echipamente tehnologice şi funcţionale care necesită montaj",null,null,null,null,null,null,null,null,null,null,null,null,null,null,null,null,null,null,null,null,null,null,null,null,null,null,null,null,null,null,null,null,null,null,null,null,null,null,null,null,null,null,null,null,null,null,null,null,null,null,null,0]
["4.4 Utilaje, echipamente tehnologice şi funcţionale care nu necesită montaj şi echipamente",null,null,null,null,null,null,null,null,null,null,null,null,null,null,null,null,null,null,null,null,null,null,null,null,null,null,null,null,null,null,null,null,null,null,null,null,null,null,null,null,null,null,null,null,null,null,null,null,null,null,null,0]
["4.5 Dotări",null,null,null,null,null,null,null,null,null,null,null,null,null,null,null,null,null,null,null,null,null,null,null,null,null,null,null,null,null,null,null,null,null,null,null,null,null,null,null,null,null,null,null,null,null,null,null,null,null,null,null,0]
["4.6 Active necorporale",null,null,null,null,null,null,null,null,null,null,null,null,null,null,null,null,null,null,null,null,null,null,null,null,null,null,null,null,null,null,null,null,null,null,null,null,null,null,null,null,null,null,null,null,null,null,null,null,null,null,null,0]
["B - Cheltuieli pentru investitii în culturi/plantaţii",null,null,null,null,null,null,null,null,null,null,null,null,null,null,null,null,null,null,null,null,null,null,null,null,null,null,null,null,null,null,null,null,null,null,{"$f":"SUM(AJ513:AR517)","v":0},null,null,null,null,null,null,null,null,{"$f":"SUM(AS513:AZ517)","v":0},null,null,null,null,null,null,null,0]
["Subcapitol 1 - Lucrări de pregătire a terenului",null,null,null,null,null,null,null,null,null,null,null,null,null,null,null,null,null,null,null,null,null,null,null,null,null,null,null,null,null,null,null,null,null,null,null,null,null,null,null,null,null,null,null,null,null,null,null,null,null,null,null,0]
["Subcapitol 2 - Infiinţarea plantaţiei",null,null,null,null,null,null,null,null,null,null,null,null,null,null,null,null,null,null,null,null,null,null,null,null,null,null,null,null,null,null,null,null,null,null,null,null,null,null,null,null,null,null,null,null,null,null,null,null,null,null,null,0]
["Subcapitol 3 - Intreţinere plantaţie în anul 1",null,null,null,null,null,null,null,null,null,null,null,null,null,null,null,null,null,null,null,null,null,null,null,null,null,null,null,null,null,null,null,null,null,null,null,null,null,null,null,null,null,null,null,null,null,null,null,null,null,null,null,0]
["Subcapitol 4 - Intreţinere plantaţie în anul 2",null,null,null,null,null,null,null,null,null,null,null,null,null,null,null,null,null,null,null,null,null,null,null,null,null,null,null,null,null,null,null,null,null,null,null,null,null,null,null,null,null,null,null,null,null,null,null,null,null,null,null,0]
["Subcapitol 5 - Instalat sistem susţinere şi împrejmuire",null,null,null,null,null,null,null,null,null,null,null,null,null,null,null,null,null,null,null,null,null,null,null,null,null,null,null,null,null,null,null,null,null,null,null,null,null,null,null,null,null,null,null,null,null,null,null,null,null,null,null,0]
["Capitolul 5 Alte cheltuieli - total, din care:",null,null,null,null,null,null,null,null,null,null,null,null,null,null,null,null,null,null,null,null,null,null,null,null,null,null,null,null,null,null,null,null,null,null,{"$f":"AJ519+AJ522+AJ528","v":0},null,null,null,null,null,null,null,null,{"$f":"AS519+AS522+AS528+AS529","v":0},null,null,null,null,null,null,null,0]
["5.1 Organizare de şantier",null,null,null,null,null,null,null,null,null,null,null,null,null,null,null,null,null,null,null,null,null,null,null,null,null,null,null,null,null,null,null,null,null,null,{"$f":"SUM(AJ520:AR521)","v":0},null,null,null,null,null,null,null,null,{"$f":"SUM(AS520:AZ521)","v":0},null,null,null,null,null,null,null,0]
["      5.1.1 lucrări de construcţii şi instalaţii aferente organizării de şantier",null,null,null,null,null,null,null,null,null,null,null,null,null,null,null,null,null,null,null,null,null,null,null,null,null,null,null,null,null,null,null,null,null,null,null,null,null,null,null,null,null,null,null,null,null,null,null,null,null,null,null,0]
["      5.1.2 cheltuieli conexe orgănizării şantierului",null,null,null,null,null,null,null,null,null,null,null,null,null,null,null,null,null,null,null,null,null,null,null,null,null,null,null,null,null,null,null,null,null,null,null,null,null,null,null,null,null,null,null,null,null,null,null,null,null,null,null,0]
["5.2 Comisioane, taxe, costul creditului",null,null,null,null,null,null,null,null,null,null,null,null,null,null,null,null,null,null,null,null,null,null,null,null,null,null,null,null,null,null,null,null,null,null,{"$f":"SUM(AJ523:AR527)","v":0},null,null,null,null,null,null,null,null,{"$f":"SUM(AS523:AZ527)","v":0},null,null,null,null,null,null,null,0]
["      5.2.1 Comisioanele şi dobânzile aferente creditului băncii finanţatoare",null,null,null,null,null,null,null,null,null,null,null,null,null,null,null,null,null,null,null,null,null,null,null,null,null,null,null,null,null,null,null,null,null,null,null,null,null,null,null,null,null,null,null,null,null,null,null,null,null,null,null,0]
["      5.2.2 Cota aferentă ISC pentru controlul calităţii lucrărilor de construcţii",null,null,null,null,null,null,null,null,null,null,null,null,null,null,null,null,null,null,null,null,null,null,null,null,null,null,null,null,null,null,null,null,null,null,null,null,null,null,null,null,null,null,null,null,null,null,null,null,null,null,null,0]
["      5.2.3 Cota aferentă ISC pentru controlul statului în amenajarea teritoriului, urbanism şi\n               pentru autorizarea lucrărilor de construcţii",null,null,null,null,null,null,null,null,null,null,null,null,null,null,null,null,null,null,null,null,null,null,null,null,null,null,null,null,null,null,null,null,null,null,null,null,null,null,null,null,null,null,null,null,null,null,null,null,null,null,null,0]
["      5.2.4 Cota aferentă Casei Sociale a Constructorilor - CSC",null,null,null,null,null,null,null,null,null,null,null,null,null,null,null,null,null,null,null,null,null,null,null,null,null,null,null,null,null,null,null,null,null,null,null,null,null,null,null,null,null,null,null,null,null,null,null,null,null,null,null,0]
["      5.2.5 Taxe pentru acorduri, avize conforme şi autorizaţia de construire/ desfiinţare",null,null,null,null,null,null,null,null,null,null,null,null,null,null,null,null,null,null,null,null,null,null,null,null,null,null,null,null,null,null,null,null,null,null,null,null,null,null,null,null,null,null,null,null,null,null,null,null,null,null,null,0]
["5.3 Cheltuieli diverse şi neprevăzute",null,null,null,null,null,null,null,null,null,null,null,null,null,null,null,null,null,null,null,null,null,null,null,null,null,null,null,null,null,null,null,null,null,null,null,null,null,null,null,null,null,null,null,null,null,null,null,null,null,null,null,0]
["5.4 Cheltuieli pentru informare şi publicitate",null,null,null,null,null,null,null,null,null,null,null,null,null,null,null,null,null,null,null,null,null,null,null,null,null,null,null,null,null,null,null,null,null,null,null,null,null,null,null,null,null,null,null,null,null,null,null,null,null,null,null,0]
["Procent cheltuieli diverse şi neprevăzute"]
["Capitolul 6 Cheltuieli pentru darea în exploatare - total, din care:",null,null,null,null,null,null,null,null,null,null,null,null,null,null,null,null,null,null,null,null,null,null,null,null,null,null,null,null,null,null,null,null,null,null,{"$f":"SUM(AJ532:AR533)","v":0},null,null,null,null,null,null,null,null,{"$f":"SUM(AS532:AZ533)","v":0},null,null,null,null,null,null,null,{"$f":"SUM(AJ531:AZ531)","v":0}]
["6.1 Pregătirea personalului de exploatare",null,null,null,null,null,null,null,null,null,null,null,null,null,null,null,null,null,null,null,null,null,null,null,null,null,null,null,null,null,null,null,null,null,null,null,null,null,null,null,null,null,null,null,null,null,null,null,null,null,null,null,0]
["6.2 Probe tehnologice şi teste",null,null,null,null,null,null,null,null,null,null,null,null,null,null,null,null,null,null,null,null,null,null,null,null,null,null,null,null,null,null,null,null,null,null,null,null,null,null,null,null,null,null,null,null,null,null,null,null,null,null,null,0]
["TOTAL GENERAL",null,null,null,null,null,null,null,null,null,null,null,null,null,null,null,null,null,null,null,null,null,null,null,null,null,null,null,null,null,null,null,null,null,null,{"$f":"AJ473+AJ478+AJ479+AJ504+AJ518+AJ531","v":0},null,null,null,null,null,null,null,null,{"$f":"AS473+AS478+AS479+AS504+AS518+AS531","v":0},null,null,null,null,null,null,null,0]
["Verificare actualizare",null,null,null,null,null,null,null,null,null,null,null,null,null,null,null,null,null,null,null,null,null,null,null,null,null,null,null,null,null,null,{"$f":"AJ536*100/AJ534","v":{"$error":"#DIV/0!"}},null,null,{"$f":"IF(AJ534=0,0,AF535)","v":0},{"$f":"IF(AI535<=5,\"actualizare mai mică de 5% din valoarea eligibila\",\"actualizare mai mare de 5% din valoarea eligibila\")","v":"actualizare mai mică de 5% din valoarea eligibila"}]
["ACTUALIZARE Cheltuieli Eligibile (max 5%)",null,null,null,null,null,null,null,null,null,null,null,null,null,null,null,null,null,null,null,null,null,null,null,null,null,null,null,null,null,null,null,null,null,null,null,null,null,null,null,null,null,null,null,null,null,null,null,null,null,null,null,{"$f":"SUM(AJ536:AZ536)","v":0}]
["TOTAL GENERAL CU ACTUALIZARE",null,null,null,null,null,null,null,null,null,null,null,null,null,null,null,null,null,null,null,null,null,null,null,null,null,null,null,null,null,null,null,null,null,null,{"$f":"AJ534+AJ536","v":0},null,null,null,null,null,null,null,null,{"$f":"AS534","v":0},null,null,null,null,null,null,null,0]
["Valoare TVA",null,null,null,null,null,null,null,null,null,null,null,null,null,null,null,null,null,null,null,null,null,null,null,null,null,null,null,null,null,null,null,null,null,null,null,null,null,null,null,null,null,null,null,null,null,null,null,null,null,null,null,0]
["TOTAL GENERAL inclusiv TVA",null,null,null,null,null,null,null,null,null,null,null,null,null,null,null,null,null,null,null,null,null,null,null,null,null,null,null,null,null,null,null,null,null,null,{"$f":"BA537+BA538","v":0}]
[null,null,null,null,null,null,null,null,null,null,null,null,null,null,null,null,null,null,null,null,null,null,null,null,null,null,null,null,null,null,null,null,null,null,null,"LEI",null,null,null,null,null,null,null,null,"EURO"]
["VALOARE TOTALĂ",null,null,null,null,null,null,null,null,null,null,null,null,null,null,null,null,null,null,null,null,null,null,null,null,null,null,null,null,null,null,null,null,null,null,{"$f":"AS541*Z467","v":0},null,null,null,null,null,null,null,null,{"$f":"AJ539","v":0}]
["VALOARE ELIGIBILĂ",null,null,null,null,null,null,null,null,null,null,null,null,null,null,null,null,null,null,null,null,null,null,null,null,null,null,null,null,null,null,null,null,null,null,{"$f":"AS542*Z467","v":0},null,null,null,null,null,null,null,null,{"$f":"AJ537+AJ538","v":0}]
["VALOARE NEELIGIBILĂ",null,null,null,null,null,null,null,null,null,null,null,null,null,null,null,null,null,null,null,null,null,null,null,null,null,null,null,null,null,null,null,null,null,null,{"$f":"AS543*Z467","v":0},null,null,null,null,null,null,null,null,{"$f":"AS537+AS538","v":0}]
["Plan Financiar",null,null,null,null,null,null,null,null,null,null,null,null,null,null,null,null,null,null,null,null,null,null,null,null,null,null,null,null,null,null,null,null,null,null,"Cheltuieli eligibile EURO",null,null,null,null,null,null,null,null,"Cheltuieli neeligibile EURO",null,null,null,null,null,null,null,"Total"]
["Ajutor public nerambursabil (contribuţie UE şi cofinanţare naţională)",null,null,null,null,null,null,null,null,null,null,null,null,null,null,null,null,null,null,null,null,null,null,null,null,null,null,null,null,null,null,null,null,null,null,null,null,null,null,null,null,null,null,null,null,null,null,null,null,null,null,null,{"$f":"SUM(AJ545:AZ545)","v":0}]
["Cofinantare privata, din care:",null,null,null,null,null,null,null,null,null,null,null,null,null,null,null,null,null,null,null,null,null,null,null,null,null,null,null,null,null,null,null,null,null,null,{"$f":"SUM(AJ547:AR549)","v":0},null,null,null,null,null,null,null,null,{"$f":"SUM(AS547:AZ549)","v":0},null,null,null,null,null,null,null,0]
[null,null,null,null,null,null,null,null,null,null,null,null,null,null,null,"- contributia in natura",null,null,null,null,null,null,null,null,null,null,null,null,null,null,null,null,null,null,null,null,null,null,null,null,null,null,null,null,null,null,null,null,null,null,null,null,0]
[null,null,null,null,null,null,null,null,null,null,null,null,null,null,null,"- autofinanțare",null,null,null,null,null,null,null,null,null,null,null,null,null,null,null,null,null,null,null,null,null,null,null,null,null,null,null,null,null,null,null,null,null,null,null,null,0]
[null,null,null,null,null,null,null,null,null,null,null,null,null,null,null,"- împrumuturi",null,null,null,null,null,null,null,null,null,null,null,null,null,null,null,null,null,null,null,null,null,null,null,null,null,null,null,null,null,null,null,null,null,null,null,null,0]
["TOTAL PROIECT",null,null,null,null,null,null,null,null,null,null,null,null,null,null,null,null,null,null,null,null,null,null,null,null,null,null,null,null,null,null,null,null,null,null,{"$f":"AJ545+AJ546","v":0},null,null,null,null,null,null,null,null,{"$f":"AS546","v":0},null,null,null,null,null,null,null,0]
["Procent contribuţie publică",null,null,null,null,null,null,null,null,null,null,null,null,null,null,null,null,null,null,null,null,null,null,null,null,null,null,null,null,null,null,null,null,{"$f":"AJ545*100/AJ550","v":{"$error":"#DIV/0!"}},{"$f":"IF(AJ550=0,0,AH551)","v":0},{"$f":"AI551","v":0},null,null,null,null,null,null,null,"%"]
["Avans solicitat"]
["Procent avans solicitat ca procent din ajutorul public nerambursabil",null,null,null,null,null,null,null,null,null,null,null,null,null,null,null,null,null,null,null,null,null,null,null,null,null,null,null,null,null,null,null,null,null,{"$f":"AJ552*100/AJ545","v":{"$error":"#DIV/0!"}},{"$f":"IF(AJ545=0,0,AI553)","v":0},null,null,null,null,null,null,null,null,{"$f":"IF(AJ553<=50,\"Suma avans mai mica de 50% din ajutorul public\",\"Suma avans mai mare de 50% din ajutorul public\")","v":"Suma avans mai mica de 50% din ajutorul public"}]
[null,"BUGET INDICATIV TOTALIZATOR HG 907"]
["MINISTERUL AGRICULTURII ŞI DEZVOLTĂRII RURALE"]
["AGENŢIA PENTRU FINANŢAREA INVESTIŢIILOR RURALE"]
[]
[]
[null,null,null,null,null,null,null,null,null,null,null,null,null,null,null,null,null,null,null,"Curs EURO",null,null,null,null,null,null,null,null,null,null,null,null,null,null,null,"Data întocmirii Studiului de Fezabilitate"]
[]
["Submăsura",null,null,null,null,null,null,null,null,null,null,null,null,null,null,null,null,null,null,null,null,null,null,null,null,null,null,null,null,null,null,null,null,null,null,"4.1"]
["Denumirea capitolelor de cheltuieli",null,null,null,null,null,null,null,null,null,null,null,null,null,null,null,null,null,null,null,null,null,null,null,null,null,null,null,null,null,null,null,null,null,null,"Cheltuieli eligibile",null,null,null,null,null,null,null,null,"Cheltuieli neeligibile",null,null,null,null,null,null,null,"Total"]
[null,null,null,null,null,null,null,null,null,null,null,null,null,null,null,null,null,null,null,null,null,null,null,null,null,null,null,null,null,null,null,null,null,null,null,"EURO",null,null,null,null,null,null,null,null,"EURO",null,null,null,null,null,null,null,"EURO"]
[1,null,null,null,null,null,null,null,null,null,null,null,null,null,null,null,null,null,null,null,null,null,null,null,null,null,null,null,null,null,null,null,null,null,null,2,null,null,null,null,null,null,null,null,3,null,null,null,null,null,null,null,4]
["Capitolul 1 Cheltuieli pentru obtinerea şi amenajarea terenului - total, din care:",null,null,null,null,null,null,null,null,null,null,null,null,null,null,null,null,null,null,null,null,null,null,null,null,null,null,null,null,null,null,null,null,null,null,{"$f":"SUM(AJ567:AR569)","v":0},null,null,null,null,null,null,null,null,{"$f":"SUM(AS566:AZ569)","v":0},null,null,null,null,null,null,null,{"$f":"SUM(AJ565:AZ565)","v":0}]
["1.1 Obţinerea terenului",null,null,null,null,null,null,null,null,null,null,null,null,null,null,null,null,null,null,null,null,null,null,null,null,null,null,null,null,null,null,null,null,null,null,null,null,null,null,null,null,null,null,null,{"$f":"AS289+AS382+AS474","v":0},null,null,null,null,null,null,null,{"$f":"SUM(AJ566:AZ566)","v":0}]
["1.2 Amenajarea terenului",null,null,null,null,null,null,null,null,null,null,null,null,null,null,null,null,null,null,null,null,null,null,null,null,null,null,null,null,null,null,null,null,null,null,{"$f":"AJ290+AJ383+AJ475","v":0},null,null,null,null,null,null,null,null,{"$f":"AS290+AS383+AS475","v":0},null,null,null,null,null,null,null,0]
["1.3 Amenajari pentru protecţia mediului şi aducerea la starea iniţială",null,null,null,null,null,null,null,null,null,null,null,null,null,null,null,null,null,null,null,null,null,null,null,null,null,null,null,null,null,null,null,null,null,null,{"$f":"AJ291+AJ384+AJ476","v":0},null,null,null,null,null,null,null,null,{"$f":"AS291+AS384+AS476","v":0},null,null,null,null,null,null,null,0]
["1.4 Cheltuieli pentru relocarea/protecţia utilităţilor",null,null,null,null,null,null,null,null,null,null,null,null,null,null,null,null,null,null,null,null,null,null,null,null,null,null,null,null,null,null,null,null,null,null,0,null,null,null,null,null,null,null,null,0,null,null,null,null,null,null,null,0]
["Capitolul 2 Cheltuieli pentru asigurarea utilităţilor necesare obiectivului de investiţii",null,null,null,null,null,null,null,null,null,null,null,null,null,null,null,null,null,null,null,null,null,null,null,null,null,null,null,null,null,null,null,null,null,null,0,null,null,null,null,null,null,null,null,0,null,null,null,null,null,null,null,0]
["Capitolul 3 Cheltuieli pentru proiectare şi asistenţă tehnică - total, din care:",null,null,null,null,null,null,null,null,null,null,null,null,null,null,null,null,null,null,null,null,null,null,null,null,null,null,null,null,null,null,null,null,null,null,{"$f":"AJ572+AJ576+AJ577+AJ578+AJ579+AJ586+AJ587+AJ590","v":0},null,null,null,null,null,null,null,null,{"$f":"AS572+AS576+AS577+AS578+AS579+AS586+AS587+AS590","v":0},null,null,null,null,null,null,null,0]
["3.1 Studii",null,null,null,null,null,null,null,null,null,null,null,null,null,null,null,null,null,null,null,null,null,null,null,null,null,null,null,null,null,null,null,null,null,null,{"$f":"AJ573+AJ574+AJ575","v":0},null,null,null,null,null,null,null,null,{"$f":"AS573+AS574+AS575","v":0},null,null,null,null,null,null,null,0]
["       3.1.1 Studii de teren",null,null,null,null,null,null,null,null,null,null,null,null,null,null,null,null,null,null,null,null,null,null,null,null,null,null,null,null,null,null,null,null,null,null,{"$f":"AJ296+AJ389+AJ481","v":0},null,null,null,null,null,null,null,null,{"$f":"AS296+AS389+AS481","v":0},null,null,null,null,null,null,null,0]
["       3.1.2 Raport privind impactul asupra mediului",null,null,null,null,null,null,null,null,null,null,null,null,null,null,null,null,null,null,null,null,null,null,null,null,null,null,null,null,null,null,null,null,null,null,0,null,null,null,null,null,null,null,null,0,null,null,null,null,null,null,null,0]
["       3.1.3 Alte studii specifice",null,null,null,null,null,null,null,null,null,null,null,null,null,null,null,null,null,null,null,null,null,null,null,null,null,null,null,null,null,null,null,null,null,null,0,null,null,null,null,null,null,null,null,0,null,null,null,null,null,null,null,0]
["3.2 Documentaţii-suport şi cheltuieli pentru obţinerea de avize, acorduri şi autorizaţii",null,null,null,null,null,null,null,null,null,null,null,null,null,null,null,null,null,null,null,null,null,null,null,null,null,null,null,null,null,null,null,null,null,null,0,null,null,null,null,null,null,null,null,0,null,null,null,null,null,null,null,0]
["3.3 Expertizare tehnică",null,null,null,null,null,null,null,null,null,null,null,null,null,null,null,null,null,null,null,null,null,null,null,null,null,null,null,null,null,null,null,null,null,null,0,null,null,null,null,null,null,null,null,0,null,null,null,null,null,null,null,0]
["3.4 Certificarea performanţei energetice şi auditul energetic al clădirilor",null,null,null,null,null,null,null,null,null,null,null,null,null,null,null,null,null,null,null,null,null,null,null,null,null,null,null,null,null,null,null,null,null,null,0,null,null,null,null,null,null,null,null,0,null,null,null,null,null,null,null,0]
["3.5 Proiectare",null,null,null,null,null,null,null,null,null,null,null,null,null,null,null,null,null,null,null,null,null,null,null,null,null,null,null,null,null,null,null,null,null,null,{"$f":"SUM(AJ580:AR585)","v":0},null,null,null,null,null,null,null,null,{"$f":"SUM(AS580:AZ585)","v":0},null,null,null,null,null,null,null,0]
["      3.5.1 Temă de proiectare",null,null,null,null,null,null,null,null,null,null,null,null,null,null,null,null,null,null,null,null,null,null,null,null,null,null,null,null,null,null,null,null,null,null,0,null,null,null,null,null,null,null,null,0,null,null,null,null,null,null,null,0]
["      3.5.2 Studiu de prefezabilitate",null,null,null,null,null,null,null,null,null,null,null,null,null,null,null,null,null,null,null,null,null,null,null,null,null,null,null,null,null,null,null,null,null,null,0,null,null,null,null,null,null,null,null,0,null,null,null,null,null,null,null,0]
["      3.5.3. Studiu de fezabilitate/documentaţie de avizare a lucrărilor de intervenţii\n                şi deviz general",null,null,null,null,null,null,null,null,null,null,null,null,null,null,null,null,null,null,null,null,null,null,null,null,null,null,null,null,null,null,null,null,null,null,0,null,null,null,null,null,null,null,null,0,null,null,null,null,null,null,null,0]
["      3.5.4. Documentaţiile tehnice necesare în vederea obţinerii avizelor/\n                acordurilor/autorizaţiilor",null,null,null,null,null,null,null,null,null,null,null,null,null,null,null,null,null,null,null,null,null,null,null,null,null,null,null,null,null,null,null,null,null,null,0,null,null,null,null,null,null,null,null,0,null,null,null,null,null,null,null,0]
["      3.5.5. Verificarea tehnică de calitate a proiectului tehnic şi a detaliilor de execuţie",null,null,null,null,null,null,null,null,null,null,null,null,null,null,null,null,null,null,null,null,null,null,null,null,null,null,null,null,null,null,null,null,null,null,0,null,null,null,null,null,null,null,null,0,null,null,null,null,null,null,null,0]
["      3.5.6. Proiect tehnic şi detalii de execuţie",null,null,null,null,null,null,null,null,null,null,null,null,null,null,null,null,null,null,null,null,null,null,null,null,null,null,null,null,null,null,null,null,null,null,0,null,null,null,null,null,null,null,null,0,null,null,null,null,null,null,null,0]
["3.6 Organizarea procedurilor de achiziţie",null,null,null,null,null,null,null,null,null,null,null,null,null,null,null,null,null,null,null,null,null,null,null,null,null,null,null,null,null,null,null,null,null,null,null,null,null,null,null,null,null,null,null,0,null,null,null,null,null,null,null,0]
["3.7 Consultanţă",null,null,null,null,null,null,null,null,null,null,null,null,null,null,null,null,null,null,null,null,null,null,null,null,null,null,null,null,null,null,null,null,null,null,{"$f":"AJ588","v":0},null,null,null,null,null,null,null,null,{"$f":"AS588+AS589","v":0},null,null,null,null,null,null,null,0]
["      3.7.1 Managementul de proiect pentru obiectivul de investiţii",null,null,null,null,null,null,null,null,null,null,null,null,null,null,null,null,null,null,null,null,null,null,null,null,null,null,null,null,null,null,null,null,null,null,{"$f":"AJ311+AJ404+AJ496","v":0},null,null,null,null,null,null,null,null,0,null,null,null,null,null,null,null,0]
["      3.7.2 Auditul financiar",null,null,null,null,null,null,null,null,null,null,null,null,null,null,null,null,null,null,null,null,null,null,null,null,null,null,null,null,null,null,null,null,null,null,null,null,null,null,null,null,null,null,null,0,null,null,null,null,null,null,null,0]
["3.8 Asistenţă Tehnică",null,null,null,null,null,null,null,null,null,null,null,null,null,null,null,null,null,null,null,null,null,null,null,null,null,null,null,null,null,null,null,null,null,null,{"$f":"AJ591+AJ594","v":0},null,null,null,null,null,null,null,null,{"$f":"AS591+AS594","v":0},null,null,null,null,null,null,null,0]
["      3.8.1 Asistenţă Tehnică din partea proiectantului",null,null,null,null,null,null,null,null,null,null,null,null,null,null,null,null,null,null,null,null,null,null,null,null,null,null,null,null,null,null,null,null,null,null,{"$f":"AJ592+AJ593","v":0},null,null,null,null,null,null,null,null,{"$f":"AS592+AS593","v":0},null,null,null,null,null,null,null,0]
["           3.8.1.1 pe perioada de execuţie a lucrărilor",null,null,null,null,null,null,null,null,null,null,null,null,null,null,null,null,null,null,null,null,null,null,null,null,null,null,null,null,null,null,null,null,null,null,{"$f":"AJ315+AJ408+AJ500","v":0},null,null,null,null,null,null,null,null,{"$f":"AS315+AS408+AS500","v":0},null,null,null,null,null,null,null,0]
["           3.8.1.2 pentru participarea proiectantului la fazele incluse în programul de control al\n                       lucrărilor de execuţie, avizat de către Inspectoratul de Stat în Construcţii",null,null,null,null,null,null,null,null,null,null,null,null,null,null,null,null,null,null,null,null,null,null,null,null,null,null,null,null,null,null,null,null,null,null,0,null,null,null,null,null,null,null,null,0,null,null,null,null,null,null,null,0]
["      3.8.2 Dirigenţie de şantier",null,null,null,null,null,null,null,null,null,null,null,null,null,null,null,null,null,null,null,null,null,null,null,null,null,null,null,null,null,null,null,null,null,null,0,null,null,null,null,null,null,null,null,0,null,null,null,null,null,null,null,0]
["Verificare încadrare cheltuieli capitolul 3",null,null,null,null,null,null,null,null,null,null,null,null,null,null,null,null,null,null,null,null,null,null,null,null,null,null,null,null,null,null,null,{"$f":"AJ565+AJ570+AJ596","v":0},{"$f":"IF(AG595=0,0,AI595)","v":0}]
["Capitolul 4 Cheltuieli pentru investiţia de bază - total, din care:",null,null,null,null,null,null,null,null,null,null,null,null,null,null,null,null,null,null,null,null,null,null,null,null,null,null,null,null,null,null,null,null,null,null,{"$f":"AJ597+AJ604","v":0},null,null,null,null,null,null,null,null,{"$f":"AS597+AS604","v":0},null,null,null,null,null,null,null,{"$f":"SUM(AJ596:AZ596)","v":0}]
["A - Constructii şi lucrări de intervenţii - total, din care:",null,null,null,null,null,null,null,null,null,null,null,null,null,null,null,null,null,null,null,null,null,null,null,null,null,null,null,null,null,null,null,null,null,null,{"$f":"SUM(AJ598:AR603)","v":0},null,null,null,null,null,null,null,null,{"$f":"SUM(AS598:AZ603)","v":0},null,null,null,null,null,null,null,0]
["4.1 Construcţii şi instalaţii",null,null,null,null,null,null,null,null,null,null,null,null,null,null,null,null,null,null,null,null,null,null,null,null,null,null,null,null,null,null,null,null,null,null,{"$f":"AJ321+AJ414+AJ506","v":0},null,null,null,null,null,null,null,null,{"$f":"AS321+AS414+AS506","v":0},null,null,null,null,null,null,null,0]
["4.2 Montaj utilaje, echipamente tehnologice şi funcţionale",null,null,null,null,null,null,null,null,null,null,null,null,null,null,null,null,null,null,null,null,null,null,null,null,null,null,null,null,null,null,null,null,null,null,0,null,null,null,null,null,null,null,null,0,null,null,null,null,null,null,null,0]
["4.3 Utilaje, echipamente tehnologice şi funcţionale care necesită montaj",null,null,null,null,null,null,null,null,null,null,null,null,null,null,null,null,null,null,null,null,null,null,null,null,null,null,null,null,null,null,null,null,null,null,0,null,null,null,null,null,null,null,null,0,null,null,null,null,null,null,null,0]
["4.4 Utilaje, echipamente tehnologice şi funcţionale care nu necesită montaj\n      şi echipamente",null,null,null,null,null,null,null,null,null,null,null,null,null,null,null,null,null,null,null,null,null,null,null,null,null,null,null,null,null,null,null,null,null,null,0,null,null,null,null,null,null,null,null,0,null,null,null,null,null,null,null,0]
["4.5 Dotări",null,null,null,null,null,null,null,null,null,null,null,null,null,null,null,null,null,null,null,null,null,null,null,null,null,null,null,null,null,null,null,null,null,null,0,null,null,null,null,null,null,null,null,0,null,null,null,null,null,null,null,0]
["4.6 Active necorporale",null,null,null,null,null,null,null,null,null,null,null,null,null,null,null,null,null,null,null,null,null,null,null,null,null,null,null,null,null,null,null,null,null,null,0,null,null,null,null,null,null,null,null,0,null,null,null,null,null,null,null,0]
["B - Cheltuieli pentru investitii în culturi/plantaţii",null,null,null,null,null,null,null,null,null,null,null,null,null,null,null,null,null,null,null,null,null,null,null,null,null,null,null,null,null,null,null,null,null,null,{"$f":"SUM(AJ605:AR609)","v":0},null,null,null,null,null,null,null,null,{"$f":"SUM(AS605:AZ609)","v":0},null,null,null,null,null,null,null,0]
["Subcapitol 1 - Lucrări de pregătire a terenului",null,null,null,null,null,null,null,null,null,null,null,null,null,null,null,null,null,null,null,null,null,null,null,null,null,null,null,null,null,null,null,null,null,null,0,null,null,null,null,null,null,null,null,0,null,null,null,null,null,null,null,0]
["Subcapitol 2 - Infiinţarea plantaţiei",null,null,null,null,null,null,null,null,null,null,null,null,null,null,null,null,null,null,null,null,null,null,null,null,null,null,null,null,null,null,null,null,null,null,0,null,null,null,null,null,null,null,null,0,null,null,null,null,null,null,null,0]
["Subcapitol 3 - Intreţinere plantaţie în anul 1",null,null,null,null,null,null,null,null,null,null,null,null,null,null,null,null,null,null,null,null,null,null,null,null,null,null,null,null,null,null,null,null,null,null,null,null,null,null,null,null,null,null,null,0,null,null,null,null,null,null,null,0]
["Subcapitol 4 - Intreţinere plantaţie în anul 2",null,null,null,null,null,null,null,null,null,null,null,null,null,null,null,null,null,null,null,null,null,null,null,null,null,null,null,null,null,null,null,null,null,null,null,null,null,null,null,null,null,null,null,0,null,null,null,null,null,null,null,0]
["Subcapitol 5 - Instalat sistem susţinere şi împrejmuire",null,null,null,null,null,null,null,null,null,null,null,null,null,null,null,null,null,null,null,null,null,null,null,null,null,null,null,null,null,null,null,null,null,null,{"$f":"AJ332+AJ425+AJ517","v":0},null,null,null,null,null,null,null,null,0,null,null,null,null,null,null,null,0]
["Capitolul 5 Alte cheltuieli - total, din care:",null,null,null,null,null,null,null,null,null,null,null,null,null,null,null,null,null,null,null,null,null,null,null,null,null,null,null,null,null,null,null,null,null,null,{"$f":"AJ611+AJ614+AJ620","v":0},null,null,null,null,null,null,null,null,{"$f":"AS611+AS614+AS620+AS621","v":0},null,null,null,null,null,null,null,0]
["5.1 Organizare de şantier",null,null,null,null,null,null,null,null,null,null,null,null,null,null,null,null,null,null,null,null,null,null,null,null,null,null,null,null,null,null,null,null,null,null,{"$f":"SUM(AJ612:AR613)","v":0},null,null,null,null,null,null,null,null,{"$f":"SUM(AS612:AZ613)","v":0},null,null,null,null,null,null,null,0]
["      5.1.1 lucrări de construcţii şi instalaţii aferente organizării de şantier",null,null,null,null,null,null,null,null,null,null,null,null,null,null,null,null,null,null,null,null,null,null,null,null,null,null,null,null,null,null,null,null,null,null,{"$f":"AJ335+AJ428+AJ520","v":0},null,null,null,null,null,null,null,null,{"$f":"AS335+AS428+AS520","v":0},null,null,null,null,null,null,null,0]
["      5.1.2 cheltuieli conexe orgănizării şantierului",null,null,null,null,null,null,null,null,null,null,null,null,null,null,null,null,null,null,null,null,null,null,null,null,null,null,null,null,null,null,null,null,null,null,0,null,null,null,null,null,null,null,null,0,null,null,null,null,null,null,null,0]
["5.2 Comisioane, taxe, costul creditului",null,null,null,null,null,null,null,null,null,null,null,null,null,null,null,null,null,null,null,null,null,null,null,null,null,null,null,null,null,null,null,null,null,null,{"$f":"AJ616+AJ617+AJ619","v":0},null,null,null,null,null,null,null,null,{"$f":"AS615+AS616+AS617+AS618+AS619","v":0},null,null,null,null,null,null,null,0]
["      5.2.1 Comisioanele şi dobânzile aferente creditului băncii finanţatoare",null,null,null,null,null,null,null,null,null,null,null,null,null,null,null,null,null,null,null,null,null,null,null,null,null,null,null,null,null,null,null,null,null,null,null,null,null,null,null,null,null,null,null,0,null,null,null,null,null,null,null,0]
["      5.2.2 Cota aferentă ISC pentru controlul calităţii lucrărilor de construcţii",null,null,null,null,null,null,null,null,null,null,null,null,null,null,null,null,null,null,null,null,null,null,null,null,null,null,null,null,null,null,null,null,null,null,{"$f":"AJ339+AJ432+AJ524","v":0},null,null,null,null,null,null,null,null,0,null,null,null,null,null,null,null,0]
["      5.2.3 Cota aferentă ISC pentru controlul statului în amenajarea teritoriului,urbanism şi\n               pentru autorizarea lucrărilor de construcţii",null,null,null,null,null,null,null,null,null,null,null,null,null,null,null,null,null,null,null,null,null,null,null,null,null,null,null,null,null,null,null,null,null,null,0,null,null,null,null,null,null,null,null,0,null,null,null,null,null,null,null,0]
["      5.2.4 Cota aferentă Casei Sociale a Constructorilor - CSC",null,null,null,null,null,null,null,null,null,null,null,null,null,null,null,null,null,null,null,null,null,null,null,null,null,null,null,null,null,null,null,null,null,null,null,null,null,null,null,null,null,null,null,0,null,null,null,null,null,null,null,0]
["      5.2.5 Taxe pentru acorduri, avize conforme şi autorizaţia de construire/ desfiinţare",null,null,null,null,null,null,null,null,null,null,null,null,null,null,null,null,null,null,null,null,null,null,null,null,null,null,null,null,null,null,null,null,null,null,0,null,null,null,null,null,null,null,null,0,null,null,null,null,null,null,null,0]
["5.3 Cheltuieli diverse şi neprevăzute",null,null,null,null,null,null,null,null,null,null,null,null,null,null,null,null,null,null,null,null,null,null,null,null,null,null,null,null,null,null,null,null,null,null,0,null,null,null,null,null,null,null,null,0,null,null,null,null,null,null,null,0]
["5.4 Cheltuieli pentru informare şi publicitate",null,null,null,null,null,null,null,null,null,null,null,null,null,null,null,null,null,null,null,null,null,null,null,null,null,null,null,null,null,null,null,null,null,null,null,null,null,null,null,null,null,null,null,0,null,null,null,null,null,null,null,0]
["Procent cheltuieli diverse şi neprevăzute"]
["Capitolul 6 Cheltuieli pentru darea în exploatare - total, din care:",null,null,null,null,null,null,null,null,null,null,null,null,null,null,null,null,null,null,null,null,null,null,null,null,null,null,null,null,null,null,null,null,null,null,{"$f":"SUM(AJ624:AR625)","v":0},null,null,null,null,null,null,null,null,{"$f":"SUM(AS624:AZ625)","v":0},null,null,null,null,null,null,null,{"$f":"SUM(AJ623:AZ623)","v":0}]
["6.1 Pregătirea personalului de exploatare",null,null,null,null,null,null,null,null,null,null,null,null,null,null,null,null,null,null,null,null,null,null,null,null,null,null,null,null,null,null,null,null,null,null,null,null,null,null,null,null,null,null,null,{"$f":"AS347+AS440+AS532","v":0},null,null,null,null,null,null,null,0]
["6.2 Probe tehnologice şi teste",null,null,null,null,null,null,null,null,null,null,null,null,null,null,null,null,null,null,null,null,null,null,null,null,null,null,null,null,null,null,null,null,null,null,{"$f":"AJ348+AJ441+AJ533","v":0},null,null,null,null,null,null,null,null,0,null,null,null,null,null,null,null,0]
["TOTAL GENERAL",null,null,null,null,null,null,null,null,null,null,null,null,null,null,null,null,null,null,null,null,null,null,null,null,null,null,null,null,null,null,null,null,null,null,{"$f":"AJ565+AJ570+AJ571+AJ596+AJ610+AJ623","v":0},null,null,null,null,null,null,null,null,{"$f":"AS565+AS570+AS571+AS596+AS610+AS623","v":0},null,null,null,null,null,null,null,0]
["Verificare actualizare",null,null,null,null,null,null,null,null,null,null,null,null,null,null,null,null,null,null,null,null,null,null,null,null,null,null,null,null,null,null,{"$f":"AJ628*100/AJ626","v":{"$error":"#DIV/0!"}},null,null,{"$f":"IF(AJ626=0,0,AF627)","v":0},{"$f":"IF(AI627<=5,\"actualizare mai mică de 5% din valoarea eligibila\",\"actualizare mai mare de 5% din valoarea eligibila\")","v":"actualizare mai mică de 5% din valoarea eligibila"}]
["ACTUALIZARE Cheltuieli Eligibile (max 5%)",null,null,null,null,null,null,null,null,null,null,null,null,null,null,null,null,null,null,null,null,null,null,null,null,null,null,null,null,null,null,null,null,null,null,{"$f":"AJ351+AJ444+AJ536","v":0},null,null,null,null,null,null,null,null,null,null,null,null,null,null,null,null,{"$f":"SUM(AJ628:AZ628)","v":0}]
["TOTAL GENERAL CU ACTUALIZARE",null,null,null,null,null,null,null,null,null,null,null,null,null,null,null,null,null,null,null,null,null,null,null,null,null,null,null,null,null,null,null,null,null,null,{"$f":"AJ626+AJ628","v":0},null,null,null,null,null,null,null,null,{"$f":"AS626","v":0},null,null,null,null,null,null,null,0]
["Valoare TVA",null,null,null,null,null,null,null,null,null,null,null,null,null,null,null,null,null,null,null,null,null,null,null,null,null,null,null,null,null,null,null,null,null,null,{"$f":"AJ353+AJ446+AJ538","v":0},null,null,null,null,null,null,null,null,{"$f":"AS353+AS446+AS538","v":0},null,null,null,null,null,null,null,0]
["TOTAL GENERAL inclusiv TVA",null,null,null,null,null,null,null,null,null,null,null,null,null,null,null,null,null,null,null,null,null,null,null,null,null,null,null,null,null,null,null,null,null,null,{"$f":"BA629+BA630","v":0}]
[null,null,null,null,null,null,null,null,null,null,null,null,null,null,null,null,null,null,null,null,null,null,null,null,null,null,null,null,null,null,null,null,null,null,null,"LEI",null,null,null,null,null,null,null,null,"EURO"]
["VALOARE TOTALĂ",null,null,null,null,null,null,null,null,null,null,null,null,null,null,null,null,null,null,null,null,null,null,null,null,null,null,null,null,null,null,null,null,null,null,{"$f":"AS633*Z559","v":0},null,null,null,null,null,null,null,null,{"$f":"AJ631","v":0}]
["VALOARE ELIGIBILĂ",null,null,null,null,null,null,null,null,null,null,null,null,null,null,null,null,null,null,null,null,null,null,null,null,null,null,null,null,null,null,null,null,null,null,{"$f":"AS634*Z559","v":0},null,null,null,null,null,null,null,null,{"$f":"AJ629+AJ630","v":0}]
["VALOARE NEELIGIBILĂ",null,null,null,null,null,null,null,null,null,null,null,null,null,null,null,null,null,null,null,null,null,null,null,null,null,null,null,null,null,null,null,null,null,null,{"$f":"AS635*Z559","v":0},null,null,null,null,null,null,null,null,{"$f":"AS629+AS630","v":0}]
["Plan Financiar",null,null,null,null,null,null,null,null,null,null,null,null,null,null,null,null,null,null,null,null,null,null,null,null,null,null,null,null,null,null,null,null,null,null,"Cheltuieli eligibile EURO",null,null,null,null,null,null,null,null,"Cheltuieli neeligibile EURO",null,null,null,null,null,null,null,"Total"]
["Ajutor public nerambursabil (contribuţie UE şi cofinanţare naţională)",null,null,null,null,null,null,null,null,null,null,null,null,null,null,null,null,null,null,null,null,null,null,null,null,null,null,null,null,null,null,null,null,null,null,{"$f":"AJ361+AJ453+AJ545","v":0},null,null,null,null,null,null,null,null,null,null,null,null,null,null,null,null,{"$f":"SUM(AJ637:AZ637)","v":0}]
["Cofinantare privata, din care:",null,null,null,null,null,null,null,null,null,null,null,null,null,null,null,null,null,null,null,null,null,null,null,null,null,null,null,null,null,null,null,null,null,null,{"$f":"AJ639+AJ640+AJ641","v":0},null,null,null,null,null,null,null,null,{"$f":"AS639+AS640+AS641","v":0},null,null,null,null,null,null,null,0]
[null,null,null,null,null,null,null,null,null,null,null,null,null,null,null,"- contributia in natura",null,null,null,null,null,null,null,null,null,null,null,null,null,null,null,null,null,null,null,{"$f":"AJ363+AJ455+AJ547","v":0},null,null,null,null,null,null,null,null,{"$f":"AS363+AS455+AS547","v":0},null,null,null,null,null,null,null,0]
[null,null,null,null,null,null,null,null,null,null,null,null,null,null,null,"- autofinanțare",null,null,null,null,null,null,null,null,null,null,null,null,null,null,null,null,null,null,null,{"$f":"AJ364+AJ456+AJ548","v":0},null,null,null,null,null,null,null,null,{"$f":"AS364+AS456+AS548","v":0},null,null,null,null,null,null,null,0]
[null,null,null,null,null,null,null,null,null,null,null,null,null,null,null,"- împrumuturi",null,null,null,null,null,null,null,null,null,null,null,null,null,null,null,null,null,null,null,{"$f":"AJ365+AJ457+AJ549","v":0},null,null,null,null,null,null,null,null,{"$f":"AS365+AS457+AS549","v":0},null,null,null,null,null,null,null,0]
["TOTAL PROIECT",null,null,null,null,null,null,null,null,null,null,null,null,null,null,null,null,null,null,null,null,null,null,null,null,null,null,null,null,null,null,null,null,null,null,{"$f":"AJ637+AJ638","v":0},null,null,null,null,null,null,null,null,{"$f":"AS638","v":0},null,null,null,null,null,null,null,0]
["Procent contribuţie publică",null,null,null,null,null,null,null,null,null,null,null,null,null,null,null,null,null,null,null,null,null,null,null,null,null,null,null,null,null,null,null,null,{"$f":"AJ637*100/AJ642","v":{"$error":"#DIV/0!"}},{"$f":"IF(AJ642=0,0,AH643)","v":0},{"$f":"AI643","v":0},null,null,null,null,null,null,null,"%"]
["Avans solicitat"]
["Procent avans solicitat ca procent din ajutorul public nerambursabil",null,null,null,null,null,null,null,null,null,null,null,null,null,null,null,null,null,null,null,null,null,null,null,null,null,null,null,null,null,null,null,null,null,{"$f":"AJ644*100/AJ637","v":{"$error":"#DIV/0!"}},{"$f":"IF(AJ637=0,0,AI645)","v":0},null,null,null,null,null,null,null,null,{"$f":"IF(AJ645<=50,\"Suma avans mai mica de 50% din ajutorul public\",\"Suma avans mai mare de 50% din ajutorul public\")","v":"Suma avans mai mica de 50% din ajutorul public"}]
[]
[null,null,null,null,null,null,null,"MINISTERUL AGRICULTURII ŞI DEZVOLTĂRII RURALE"]
[null,null,null,null,null,null,null,null,null,null,null,null,null,null,null,null,null,null,null,null,null,null,null,null,null,null,null,null,null,null,null,null,null,null,null,null,null,null,null,null,null,null,"Anexa A1 HG_907"]
[null,null,null,null,null,null,null,"AGENŢIA PENTRU FINANŢAREA INVESTIŢIILOR RURALE"]
[null,null,null,null,null,null,null,null,null,null,null,null,null,null,null,null,null,null,null,null,null,null,null,null,null,null,null,null,null,null,null,null,null,null,null,null,null,null,null,null,null,null,null,null,null,null,null,null,null,null,null,"Aprilie 2019"]
[null,null,null,null,null,null,null,"Deviz financiar- Capitolul 3 - Cheltuieli pentru proiectare şi asistenţa tehnică - EURO"]
["Nr.1"]
[]
["(Titlu deviz)"]
["Nr.crt",null,null,null,"Specificaţie",null,null,null,null,null,null,null,null,null,null,null,null,null,null,null,null,null,null,null,null,null,null,null,null,null,null,null,null,null,null,null,null,null,null,null,null,null,"Valoare eligibilă",null,null,null,null,null,null,null,null,"Valoare\nneeligibilă"]
["3.1",null,null,null,"Cheltuieli pentru studii ",null,null,null,null,null,null,null,null,null,null,null,null,null,null,null,null,null,null,null,null,null,null,null,null,null,null,null,null,null,null,null,null,null,null,null,null,null,{"$f":"SUM(AQ657:AY659)","v":0},null,null,null,null,null,null,null,null,{"$f":"SUM(AZ657:BI659)","v":0}]
[null,null,null,null,"3.1.1 Studii de teren: studii geotehnice, geologice, hidrologice, hidrogeotehnice, fotogrammetrice, topografica şi de stabilitate ale terenului pe care se amplasează obiectivul de investiţie"]
[null,null,null,null,"3.1.2 Raport privind impactul asupra mediului"]
[null,null,null,null,"3.1.3 Studii de specialitate necesare în funcţie de specificul investiţiei"]
["3.2",null,null,null,"Documentaţii-suport şi cheltuieli pentru obţinerea de avize, acorduri şi autorizaţii",null,null,null,null,null,null,null,null,null,null,null,null,null,null,null,null,null,null,null,null,null,null,null,null,null,null,null,null,null,null,null,null,null,null,null,null,null,{"$f":"SUM(AQ661:AY669)","v":0},null,null,null,null,null,null,null,null,{"$f":"SUM(AZ661:BI669)","v":0}]
[null,null,null,null,"1. obţinerea/prelungirea valabilităţii ceritificatului de urbanism"]
[null,null,null,null,"2. obţinerea/prelungirea valabilităţii autorizaţiei de construire/desfiinţare"]
[null,null,null,null,"3. obţinerea avizelor şi acordurilor pentru racorduri şi branşamente la reţele publice de alimentare cu apă, canalizare, alimentare cu gaze, alimentare cu agent termic, energie electrică, telefonie"]
[null,null,null,null,"4. obţinerea certificatului de nomenclatură stradală şi adresă"]
[null,null,null,null,"5. întocmirea documentaţiei, obţinerea numărului cadastral provizoriu şi înregistrarea terenului în cartea funciară"]
[null,null,null,null,"6. obţinerea actului administrativ al autorităţii competente pentru protecţia mediului"]
[null,null,null,null,"7. obţinerea avizului de protecţie civilă"]
[null,null,null,null,"8. avizul de specialitate în cazul obiectivelor de patrimoniu"]
[null,null,null,null,"9. alte avize, acorduri şi autorizaţii"]
["3.3",null,null,null,"Cheltuieli pentru expertizarea tehnică a construcţiilor existente, a structurilor şi/sau, după caz, a proiectelor tehnice, inclusiv întocmirea de către expertul tehnic a raportului de expertiză tehnică"]
["3.4",null,null,null,"Cheltuieli pentru certificarea performanţei energetice şi auditul energetic al clădirilor"]
["3.5",null,null,null,"Cheltuieli pentru proiectare",null,null,null,null,null,null,null,null,null,null,null,null,null,null,null,null,null,null,null,null,null,null,null,null,null,null,null,null,null,null,null,null,null,null,null,null,null,{"$f":"SUM(AQ673:AY678)","v":0},null,null,null,null,null,null,null,null,{"$f":"SUM(AZ673:BI678)","v":0}]
[null,null,null,null,"3.5.1 Temă de proiectare"]
[null,null,null,null,"3.5.2 Studiu de prefezabilitate"]
[null,null,null,null,"3.5.3 Studiu de fezabilitate/documentaţie de avizare a lucrărilor de intervenţii şi deviz general"]
[null,null,null,null,"3.5.4 Documentaţiile tehnice necesare în vederea obţinerii avizelor/acordurilor/ autorizaţiilor"]
[null,null,null,null,"3.5.5 Verificarea tehnică de calitate a proiectului tehnic şi a detaliilor de execuţie"]
[null,null,null,null,"3.5.6 Proiect tehnic şi detalii de execuţie"]
["3.6",null,null,null,"Cheltuieli aferente organizării şi derulării procedurilor de achiziţii publice",null,null,null,null,null,null,null,null,null,null,null,null,null,null,null,null,null,null,null,null,null,null,null,null,null,null,null,null,null,null,null,null,null,null,null,null,null,{"$f":"SUM(AQ680:AY683)","v":0},null,null,null,null,null,null,null,null,{"$f":"SUM(AZ680:BI683)","v":0}]
[null,null,null,null,"1. Cheltuieli aferente întocmirii documentaţiei de atribuire şi multiplicării acesteia (exclusiv cele cumpărate de ofertanţi)"]
[null,null,null,null,"2. Cheltuieli cu onorariile, transportul, cazarea şi diurna membrilor desemnaţi în comisiile de evaluare"]
[null,null,null,null,"3. Anunţuri de intenţie, de participare şi de atribuire a contractelor, corespondenţă prin poştă, fax, poştă electronică în legătură cu procedurile de achiziţie publică"]
[null,null,null,null,"4. Cheltuieli aferente organizării şi derulării procedurilor de achiziţii publice"]
["3.7",null,null,null,"Cheltuieli pentru consultanţă",null,null,null,null,null,null,null,null,null,null,null,null,null,null,null,null,null,null,null,null,null,null,null,null,null,null,null,null,null,null,null,null,null,null,null,null,null,{"$f":"SUM(AQ685:AY686)","v":0},null,null,null,null,null,null,null,null,{"$f":"SUM(AZ685:BI686)","v":0}]
[null,null,null,null,"3.7.1 Managementul de proiect pentru obiectivul de investiţii"]
[null,null,null,null,"3.7.2 Auditul financiar"]
["3.8",null,null,null,"Cheltuieli pentru asistenţă tehnică",null,null,null,null,null,null,null,null,null,null,null,null,null,null,null,null,null,null,null,null,null,null,null,null,null,null,null,null,null,null,null,null,null,null,null,null,null,{"$f":"AQ688+AQ691","v":0},null,null,null,null,null,null,null,null,{"$f":"AZ688+AZ691","v":0}]
[null,null,null,null,"3.8.1. Asistenţă tehnică din partea proiectantului",null,null,null,null,null,null,null,null,null,null,null,null,null,null,null,null,null,null,null,null,null,null,null,null,null,null,null,null,null,null,null,null,null,null,null,null,null,{"$f":"SUM(AQ689:AY690)","v":0},null,null,null,null,null,null,null,null,{"$f":"SUM(AZ689:BI690)","v":0}]
[null,null,null,null,"\n1.1. pe perioada de execuţie a lucrărilor"]
[null,null,null,null,"1.2. pentru participarea proiectantului la fazele incluse în programul de control al lucrărilor de execuţie, avizat de către Inspectoratul de Stat în Construcţii"]
[null,null,null,null,"3.8.2 Dirigenţie de şantier, asigurată de personal tehnic de specialitate, autorizat"]
["Total valoare fără TVA",null,null,null,null,null,null,null,null,null,null,null,null,null,null,null,null,null,null,null,null,null,null,null,null,null,null,null,null,null,null,null,null,null,null,null,null,null,null,null,null,null,{"$f":"AQ656+AQ660+AQ670+AQ671+AQ672+AQ679+AQ684+AQ687","v":0},null,null,null,null,null,null,null,null,{"$f":"AZ656+AZ660+AZ670+AZ671+AZ672+AZ679+AZ684+AZ687","v":0}]
["Valoare TVA (aferentă cheltuielilor eligibile şi neeligibile)"]
["TOTAL DEVIZ FINANCIAR 1 (inclusiv TVA)",null,null,null,null,null,null,null,null,null,null,null,null,null,null,null,null,null,null,null,null,null,null,null,null,null,null,null,null,null,null,null,null,null,null,null,null,null,null,null,null,null,{"$f":"SUM(AQ692:BI693)","v":0}]
[]
[]
[]
[]
[]
[]
[null,null,null,null,null,null,null,"MINISTERUL AGRICULTURII ŞI DEZVOLTĂRII RURALE"]
[null,null,null,null,null,null,null,null,null,null,null,null,null,null,null,null,null,null,null,null,null,null,null,null,null,null,null,null,null,null,null,null,null,null,null,null,null,null,null,null,null,null,"Anexa A2 HG_907"]
[null,null,null,null,null,null,null,"AGENŢIA PENTRU FINANŢAREA INVESTIŢIILOR RURALE"]
[null,null,null,null,null,null,null,null,null,null,null,null,null,null,null,null,null,null,null,null,null,null,null,null,null,null,null,null,null,null,null,null,null,null,null,null,null,null,null,null,null,null,null,null,null,null,null,null,null,null,null,"Aprilie 2019"]
[null,null,null,null,null,null,null,"DEVIZUL OBIECTULUI *"]
["Nr.1"]
[]
[]
["Nr. crt.",null,null,null,"Denumire",null,null,null,null,null,null,null,null,null,null,null,null,null,null,null,null,null,null,null,null,null,null,null,null,null,null,null,null,null,null,null,null,null,null,null,null,null,"Valoarea pe categorii de lucrări, fară TVA - EURO"]
[null,null,null,null,"Cap. 4 - Cheltuieli pentru investiţia de bază",null,null,null,null,null,null,null,null,null,null,null,null,null,null,null,null,null,null,null,null,null,null,null,null,null,null,null,null,null,null,null,null,null,null,null,null,null,"Valoare eligibilă",null,null,null,null,null,null,null,null,"Valoare\nneeligibilă"]
["I - LUCRĂRI DE CONSTRUCŢII ŞI INSTALAŢII"]
["4.1",null,null,null,"Construcţii şi instalaţii"]
[null,null,null,null,"4.1.1 Terasamente, sistematizare pe verticală şi amenajări exterioare"]
[null,null,null,null,"4.1.2 Rezistenţă"]
[null,null,null,null,"4.1.3 Arhitectură"]
[null,null,null,null,"4.1.4 Instalaţii"]
[null,null,null,null,"TOTAL I ( fără TVA)",null,null,null,null,null,null,null,null,null,null,null,null,null,null,null,null,null,null,null,null,null,null,null,null,null,null,null,null,null,null,null,null,null,null,null,null,null,{"$f":"SUM(AQ712:AY716)","v":0},null,null,null,null,null,null,null,null,{"$f":"SUM(AZ712:BI716)","v":0}]
["II - MONTAJ"]
["4.2",null,null,null,"Montaj utilaje, echipamente tehnologice şi funcţionale"]
[null,null,null,null,"TOTAL II ( fără TVA)",null,null,null,null,null,null,null,null,null,null,null,null,null,null,null,null,null,null,null,null,null,null,null,null,null,null,null,null,null,null,null,null,null,null,null,null,null,{"$f":"SUM(AQ719)","v":0},null,null,null,null,null,null,null,null,{"$f":"SUM(AZ719)","v":0}]
["III - PROCURARE"]
["4.3",null,null,null,"Utilaje, echipamente tehnologice şi funcţionale care necesită montaj"]
["4.4",null,null,null,"Utilaje, echipamente tehnologice şi funcţionale care nu necesită montaj şi echipamente de transport"]
["4.5",null,null,null,"Dotări"]
["4.6",null,null,null,"Active necorporale"]
[null,null,null,null,"TOTAL III ( fără TVA)",null,null,null,null,null,null,null,null,null,null,null,null,null,null,null,null,null,null,null,null,null,null,null,null,null,null,null,null,null,null,null,null,null,null,null,null,null,{"$f":"SUM(AQ722:AY725)","v":0},null,null,null,null,null,null,null,null,{"$f":"SUM(AZ722:BI725)","v":0}]
["TOTAL ( TOTAL I + TOTAL II +TOTAL III) fără TVA",null,null,null,null,null,null,null,null,null,null,null,null,null,null,null,null,null,null,null,null,null,null,null,null,null,null,null,null,null,null,null,null,null,null,null,null,null,null,null,null,null,{"$f":"AQ726+AQ720+AQ717","v":0},null,null,null,null,null,null,null,null,{"$f":"AZ726+AZ720+AZ717","v":0}]
["TVA aferent cheltuielilor eligibile şi neeligibile"]
["TOTAL DEVIZ PE OBIECT (inclusiv TVA)",null,null,null,null,null,null,null,null,null,null,null,null,null,null,null,null,null,null,null,null,null,null,null,null,null,null,null,null,null,null,null,null,null,null,null,null,null,null,null,null,null,{"$f":"AQ727+AZ727+AQ728+AZ728","v":0}]
[]
[null,"*) Se înscrie denumirea obiectului de construcţie sau intervenţie"]
[]
[]
[]
[]
[]
[]
[null,null,null,null,null,null,null,"MINISTERUL AGRICULTURII ŞI DEZVOLTĂRII RURALE",null,null,null,null,null,null,null,null,null,null,null,null,null,null,null,null,null,null,null,null,null,null,null,null,null,null,null,null,null,null,null,null,null,null,"Anexa A3 HG_907"]
[]
[null,null,null,null,null,null,null,"AGENŢIA PENTRU FINANŢAREA INVESTIŢIILOR RURALE",null,null,null,null,null,null,null,null,null,null,null,null,null,null,null,null,null,null,null,null,null,null,null,null,null,null,null,null,null,null,null,null,null,null,null,null,null,null,null,null,null,null,null,"Aprilie 2019"]
[]
["Nr.1"]
[]
[]
["Deviz capitolul 2- Cheltuieli pentru asigurarea utilităţilor necesare obiectivului - EURO"]
["Nr. crt.",null,null,null,"Specificaţie",null,null,null,null,null,null,null,null,null,null,null,null,null,null,null,null,null,null,null,null,null,null,null,null,null,null,null,null,null,null,null,null,null,null,null,null,null,"Valoare eligibilă",null,null,null,null,null,null,null,null,"Valoare\nneeligibilă"]
[1,null,null,null,"Alimentare cu apă"]
[2,null,null,null,"Canalizare"]
[3,null,null,null,"Alimentare cu gaze naturale"]
[4,null,null,null,"Alimentare cu agent termic"]
[5,null,null,null,"Alimentare cu energie electrică"]
[6,null,null,null,"Telecomunicaţii (telefonie, radio-tv,etc)"]
[7,null,null,null,"Drumuri de acces"]
[8,null,null,null,"Căi ferate industriale"]
[9,null,null,null,"Alte utilitati"]
[null,null,null,null,"TOTAL DEVIZ CAPITOLUL 2",null,null,null,null,null,null,null,null,null,null,null,null,null,null,null,null,null,null,null,null,null,null,null,null,null,null,null,null,null,null,null,null,null,null,null,null,null,{"$f":"SUM(AQ747:AY755)","v":0},null,null,null,null,null,null,null,null,{"$f":"SUM(AZ747:BI755)","v":0}]
[null,null,null,null,"Valoare TVA aferentă cheltuielilor eligibile şi neeligibile"]
["TOTAL DEVIZ CAPITOLUL 2 (inclusiv TVA)",null,null,null,null,null,null,null,null,null,null,null,null,null,null,null,null,null,null,null,null,null,null,null,null,null,null,null,null,null,null,null,null,null,null,null,null,null,null,null,null,null,{"$f":"AQ756+AZ756+AQ757+AZ757","v":0}]
[]
[" Deviz capitolul 5 - Alte cheltuieli - EURO"]
["Nr. crt.",null,null,null,"Specificaţie",null,null,null,null,null,null,null,null,null,null,null,null,null,null,null,null,null,null,null,null,null,null,null,null,null,null,null,null,null,null,null,null,null,null,null,null,null,"Valoare eligibilă",null,null,null,null,null,null,null,null,"Valoare\nneeligibilă"]
[]
["5.1 ",null,null,null,"Organizare de şantier",null,null,null,null,null,null,null,null,null,null,null,null,null,null,null,null,null,null,null,null,null,null,null,null,null,null,null,null,null,null,null,null,null,null,null,null,null,{"$f":"SUM(AQ764:AY765)","v":0},null,null,null,null,null,null,null,null,{"$f":"SUM(AZ764:BI765)","v":0}]
[null,null,null,null,"5.1.1 Lucrări de construcţii şi instalaţii aferente organizării de şantier"]
[null,null,null,null,"5.1.2 Cheltuieli conexe organizării de şantier"]
["5.2",null,null,null,"Comisioane, cote, taxe, costul creditului",null,null,null,null,null,null,null,null,null,null,null,null,null,null,null,null,null,null,null,null,null,null,null,null,null,null,null,null,null,null,null,null,null,null,null,null,null,{"$f":"SUM(AQ768:AY771)","v":0},null,null,null,null,null,null,null,null,{"$f":"SUM(AZ767:BI771)","v":0}]
[null,null,null,null,"5.2.1. Comisioanele şi dobânzile aferente creditului băncii finanţatoare"]
[null,null,null,null,"5.2.2. Cota aferentă ISC pentru controlul calităţii lucrărilor de construcţii"]
[null,null,null,null,"5.2.3. Cota aferentă ISC pentru controlul statului în amenajarea teritoriului, urbanism şi pentru autorizarea lucrărilor de construcţii"]
[null,null,null,null,"5.2.4. Cota aferentă Casei Sociale a Constructorilor - CSC"]
[null,null,null,null,"5.2.5. Taxe pentru acorduri, avize conforme şi autorizaţia de construire/ desfiinţare"]
["5.3",null,null,null," Cheltuieli diverse si neprevazute"]
["5.4",null,null,null," Cheltuieli pentru informare şi publicitate"]
[null,null,null,null,"TOTAL DEVIZ CAPITOLUL 5",null,null,null,null,null,null,null,null,null,null,null,null,null,null,null,null,null,null,null,null,null,null,null,null,null,null,null,null,null,null,null,null,null,null,null,null,null,{"$f":"AQ763+AQ766+AQ772","v":0},null,null,null,null,null,null,null,null,{"$f":"AZ763+AZ766+AZ772+AZ773","v":0}]
[null,null,null,null,"VALOARE TVA aferentă cheltuielilor eligibile şi neeligibile"]
[null,null,null,null,"TOTAL DEVIZ CAPITOLUL 5 ( inclusiv TVA)",null,null,null,null,null,null,null,null,null,null,null,null,null,null,null,null,null,null,null,null,null,null,null,null,null,null,null,null,null,null,null,null,null,null,null,null,null,{"$f":"AQ774+AZ774+AQ775+AZ775","v":0}]
[]
[]
[]
[]
[]
[]
["MINISTERUL AGRICULTURII ŞI DEZVOLTĂRII RURALE",null,null,null,null,null,null,null,null,null,null,null,null,null,null,null,null,null,null,null,null,null,null,null,null,null,null,null,null,null,null,null,null,null,null,null,null,null,null,null,null,null,"Anexa A4"]
["AGENŢIA PENTRU FINANŢAREA INVESTIŢIILOR RURALE"]
[]
["Deviz cheltuieli culturi - EURO - Culturi perene"]
["Nr. crt.",null,null,null,"Specificaţie",null,null,null,null,null,null,null,null,null,null,null,null,null,null,null,null,null,null,null,null,null,null,null,null,null,null,null,null,null,null,null,null,null,null,null,null,null,"Valoare eligibilă",null,null,null,null,null,null,null,null,"Valoare\nneeligibilă"]
["I. LUCRĂRI DE ÎNFIINŢARE PLANTAŢIE"]
[1,null,null,null,"Subcapitolul I Lucrări de pregătire a terenului"]
[null,null,null,null,"1. Manoperă"]
["a"]
[null,null,null,null,"Total (1)",null,null,null,null,null,null,null,null,null,null,null,null,null,null,null,null,null,null,null,null,null,null,null,null,null,null,null,null,null,null,null,null,null,null,null,null,null,{"$f":"AQ791","v":0},null,null,null,null,null,null,null,null,{"$f":"AZ791","v":0}]
[null,null,null,null,"2. Lucrări mecanice"]
["a"]
["b"]
["c"]
[null,null,null,null,"Total (2)",null,null,null,null,null,null,null,null,null,null,null,null,null,null,null,null,null,null,null,null,null,null,null,null,null,null,null,null,null,null,null,null,null,null,null,null,null,{"$f":"SUM(AQ794:AY796)","v":0},null,null,null,null,null,null,null,null,{"$f":"SUM(AZ794:BI796)","v":0}]
[null,null,null,null,"Total subcapitol I (1+2)",null,null,null,null,null,null,null,null,null,null,null,null,null,null,null,null,null,null,null,null,null,null,null,null,null,null,null,null,null,null,null,null,null,null,null,null,null,{"$f":"AQ792+AQ797","v":0},null,null,null,null,null,null,null,null,{"$f":"AZ792+AZ797","v":0}]
[2,null,null,null,"Subcapitolul II Înfiinţarea plantaţiei"]
["Atenţie! Sunt eligibile numai cheltuielile cu servicii executate de terţi."]
[null,null,null,null,"1. Manoperă"]
["a"]
["b"]
["c"]
["d"]
["e"]
["f"]
["g"]
["h"]
["i"]
[null,null,null,null,"Total (1)",null,null,null,null,null,null,null,null,null,null,null,null,null,null,null,null,null,null,null,null,null,null,null,null,null,null,null,null,null,null,null,null,null,null,null,null,null,{"$f":"SUM(AQ802:AY810)","v":0},null,null,null,null,null,null,null,null,{"$f":"SUM(AZ802:BI810)","v":0}]
[null,null,null,null,"2. Lucrări mecanice"]
["a"]
["b"]
["c"]
["d"]
[null,null,null,null,"Total (2)",null,null,null,null,null,null,null,null,null,null,null,null,null,null,null,null,null,null,null,null,null,null,null,null,null,null,null,null,null,null,null,null,null,null,null,null,null,{"$f":"SUM(AQ813:AY816)","v":0},null,null,null,null,null,null,null,null,{"$f":"SUM(AZ813:BI816)","v":0}]
[null,null,null,null,"3. Materii şi materiale "]
["a"]
["b"]
["c"]
["d"]
["e"]
[null,null,null,null,"Total (3)",null,null,null,null,null,null,null,null,null,null,null,null,null,null,null,null,null,null,null,null,null,null,null,null,null,null,null,null,null,null,null,null,null,null,null,null,null,{"$f":"SUM(AQ819:AY823)","v":0},null,null,null,null,null,null,null,null,{"$f":"SUM(AZ819:BI823)","v":0}]
[null,null,null,null,"Total subcapitol II (1+2+3)",null,null,null,null,null,null,null,null,null,null,null,null,null,null,null,null,null,null,null,null,null,null,null,null,null,null,null,null,null,null,null,null,null,null,null,null,null,{"$f":"AQ811+AQ817+AQ824","v":0},null,null,null,null,null,null,null,null,{"$f":"AZ811+AZ817+AZ824","v":0}]
[3,null,null,null,"Subcapitolul III Întreţinere plantaţie în anul 1   ATENŢIE! Cheltuieli neeligibile"]
[null,null,null,null,"1. Manoperă"]
[null,null,null,null,"Total (1)"]
[null,null,null,null,"2. Lucrări mecanice"]
[null,null,null,null,"Total (2)"]
[null,null,null,null,"3. Materii şi materiale "]
[null,null,null,null,"Total (3)"]
[null,null,null,null,"Total subcapitol III (1+2+3)",null,null,null,null,null,null,null,null,null,null,null,null,null,null,null,null,null,null,null,null,null,null,null,null,null,null,null,null,null,null,null,null,null,null,null,null,null,null,null,null,null,null,null,null,null,null,{"$f":"AZ828+AZ830+AZ832","v":0}]
[4,null,null,null,"Subcapitolul IV Întreţinere plantaţie în anul 2   ATENŢIE! Cheltuieli neeligibile"]
[null,null,null,null,"1. Manoperă"]
[null,null,null,null,"Total (1)"]
[null,null,null,null,"2. Lucrări mecanice"]
[null,null,null,null,"Total (2)"]
[null,null,null,null,"3. Materii şi materiale "]
[null,null,null,null,"Total (3)"]
[null,null,null,null,"Total subcapitol IV (1+2+3)",null,null,null,null,null,null,null,null,null,null,null,null,null,null,null,null,null,null,null,null,null,null,null,null,null,null,null,null,null,null,null,null,null,null,null,null,null,null,null,null,null,null,null,null,null,null,{"$f":"AZ836+AZ838+AZ840","v":0}]
[5,null,null,null,"Subcapitolul V Instalat sistem susţinere şi împrejmuire"]
[null,null,null,null,"1. Manoperă"]
["a"]
["b"]
["c"]
["d"]
["e"]
["f"]
["g"]
[null,null,null,null,"Total (1)",null,null,null,null,null,null,null,null,null,null,null,null,null,null,null,null,null,null,null,null,null,null,null,null,null,null,null,null,null,null,null,null,null,null,null,null,null,{"$f":"SUM(AQ844:AY850)","v":0},null,null,null,null,null,null,null,null,{"$f":"SUM(AZ844:BI850)","v":0}]
[null,null,null,null,"2. Materii şi materiale"]
["a"]
["b"]
["c"]
["d"]
[null,null,null,null,"Total (2)",null,null,null,null,null,null,null,null,null,null,null,null,null,null,null,null,null,null,null,null,null,null,null,null,null,null,null,null,null,null,null,null,null,null,null,null,null,{"$f":"SUM(AQ853:AY856)","v":0},null,null,null,null,null,null,null,null,{"$f":"SUM(AZ853:BI856)","v":0}]
[null,null,null,null,"Total subcapitol V (1+2)",null,null,null,null,null,null,null,null,null,null,null,null,null,null,null,null,null,null,null,null,null,null,null,null,null,null,null,null,null,null,null,null,null,null,null,null,null,{"$f":"AQ851+AQ857","v":0},null,null,null,null,null,null,null,null,{"$f":"AZ851+AZ857","v":0}]
["TOTAL ELIGIBIL / NEELIGIBIL FĂRĂ TVA",null,null,null,null,null,null,null,null,null,null,null,null,null,null,null,null,null,null,null,null,null,null,null,null,null,null,null,null,null,null,null,null,null,null,null,null,null,null,null,null,null,{"$f":"AQ798+AQ825+AQ858","v":0},null,null,null,null,null,null,null,null,{"$f":"AZ798+AZ825+AZ833+AZ841+AZ858","v":0}]
["VALOARE TVA aferentă cheltuielilor eligibile şi neeligibile"]
["TOTAL DEVIZ CU TVA",null,null,null,null,null,null,null,null,null,null,null,null,null,null,null,null,null,null,null,null,null,null,null,null,null,null,null,null,null,null,null,null,null,null,null,null,null,null,null,null,null,{"$f":"SUM(AQ859:BI860)","v":0}]
[]
["MINISTERUL AGRICULTURII ŞI DEZVOLTĂRII RURALE",null,null,null,null,null,null,null,null,null,null,null,null,null,null,null,null,null,null,null,null,null,null,null,null,null,null,null,null,null,"SECTIUNE SPECIFICĂ SUBMĂSURA 4.1"]
["AGENŢIA PENTRU FINANŢAREA INVESTIŢIILOR RURALE"]
[]
["D. ALTE INFORMAȚII :"]
["Programarea proiectului:"]
["Numar luni de implementare"]
[]
["E. LISTA DOCUMENTELOR ANEXATE PROIECTELOR AFERENTE SUBMĂSURII 4.1 ",null,null,null,null,null,null,null,null,null,null,null,null,null,null,null,null,null,null,null,null,null,null,null,null,null,null,null,null,null,null,null,null,null,null,null,null,null,null,null,null,null,null,null,null,null,null,null,null,null,null,null,null,null,null,"OPIS"]
[null,null,null,null,null,null,null,null,null,null,null,null,null,null,null,null,null,null,null,null,null,null,null,null,null,null,null,null,null,null,null,null,null,null,null,null,null,null,null,null,null,null,null,null,null,null,null,null,null,null,null,null,null,null,null,"documente"]
["A se anexa documentele în ordinea de mai jos:"]
["Lista documente",null,null,null,null,null,null,null,null,null,null,null,null,null,null,null,null,null,null,null,null,null,null,null,null,null,null,null,null,null,"Obligatoriu pentru toate proiectele",null,null,null,null,"Obligatoriu, dacă proiectul impune",null,null,null,null,null,null,"PAGINA de la - până la",null,null,null,null,null,null,null,"Obligatoriu pentru toate proiectele",null,null,null,null,"Obligatoriu, dacă proiectul impune"]
["ETAPA:",null,null,null,null,null,null,null,null,null,null,null,null,null,null,null,null,null,null,null,null,null,null,null,null,null,null,null,null,null,"DEPUNERE",null,null,null,null,null,null,null,null,null,null,null,null,null,null,null,null,null,null,null,"CONTRACTARE"]
["1. a) STUDIUL DE FEZABILITATE însotit de Proiectul de plantare avizat de Stațiunea Viticolă (dacă este cazul)\n(pentru achiziţiile simple se vor completa doar punctele care vizează acest tip de investiţie)\nPentru achizițiile simple se accepta Memoriu justificativ."]
["1.b) EXPERTIZA TEHNICĂ DE SPECIALITATE ASUPRA CONSTRUCŢIEI\nEXISTENTE"]
["1.c) RAPORTUL PRIVIND STADIUL FIZIC AL LUCRĂRILOR"]
["1.d) ANEXA C format PDF"]
["1.e) ANEXA B format PDF"]
["2. SITUAŢIILE FINANCIARE (bilanţ - formularul 10, contul de profit şi pierderi - formularul 20, formularele 30 și 40), precedente anului depunerii proiectului înregistrate la Administraţia Financiară. În cazul în care solicitantul este înfiinţat cu cel puţin trei ani financiari înainte de anul depunerii cererii de finanţare se vor depune ultimele trei situaţii financiare sau"]
["Declaraţa de inactivitate înregistrata la Administraţia Financiară, în cazul solicitanţilor care nu au desfăşurat activitate anterior depunerii proiectului sau"]
["Pentru persoane fizice autorizate, intreprinderi familiale și intreprinderi individuale:\nDeclarație specială privind veniturile realizate în anul precedent depunerii proiectului înregistrată la Administrația Financiară (formularul 200 însoțit de Anexele la Formular) în care rezultatul brut obţinut anual să fie pozitiv (inclusiv 0) și/sau Declarația privind veniturile din activități agricole impuse pe norme de venit (formularul 221)\nsau"]
["Pentru solicitanţii a căror activitate a fost afectată de calamități naturale (inundații, secetă excesivă etc) se vor prezenta:\n• Situaţiile financiare (bilanţ – formularul 10, cont de profit și pierderi – formularul 20, formularele 30 și 40) din unul din ultimii trei ani precedenți anului depunerii proiectului, în care producția nu a fost calamitată iar rezultatul operațional (rezultatul de exploatare din bilanț) să fie pozitiv (inclusiv 0), înregistrate la Administraţia Financiară"]
["În cazul persoanelor fizice autorizate, întreprinderilor individuale și\nîntreprinderilor familiale se va prezenta:\n• Declarație specială privind veniturile realizate înregistrată la Administraţia Financiară (formularul 200 însoțit de Anexele la Formular) în care rezultatul brut obţinut anual să nu fie negativ şi/ sau Declarația privind veniturile din activități agricole impuse pe norme de venit (formularul 221)\nPentru anii calamitaţi solicitantul va prezenta un document (ex.: Proces verbal\nde constatare și evaluare a pagubelor) emis de organismele abilitate (ex.:\nComitetul local pentru situaţii de urgenţă)"]
["3.a1). DOCUMENTE SOLICITATE PENTRU TERENUL AGRICOL AFERENT PLANTAȚIILOR DE VIȚĂ DE VIE PENTRU STRUGURI DE MASĂ EXISTENTE/NOU ÎNFIINȚATE ȘI A ALTOR PLANTAȚII:\nCOPIE DUPĂ DOCUMENTUL AUTENTIFICAT LA NOTAR CARE\nATESTĂ DREPTUL DE PROPRIETATE asupra terenului şi/ sau tabel centralizator emis de Primărie semnat de persoanele autorizate conform legii, conţinând sumarul contractelor de arendare cu suprafeţele luate în arendă pe categorii de folosinţă, perioada de arendare care trebuie să fie de cel puţin 10 ani începând cu anul depunerii cererii de finanţare şi/ sau contractul de concesiune care să certifice dreptul de folosinţă al terenului cel puţin 10 ani începând cu anul depunerii cererii de finanţare."]
["Contractul de concesiune va fi însoţit de adresa emisă de concedent şi\ntrebuie să conţină:\n- situaţia privind respectarea clauzelor contractuale și dacă este în graficul de realizare a investiţiilor prevăzute în contract şi alte clauze;\n· suprafaţa concesionată la zi (dacă pentru suprafaţa concesionată există solicitări privind retrocedarea sau diminuarea, și dacă da, să se menţioneze care este suprafaţa supusă acestui proces)\nPentru cooperative agricole, societăţi cooperative agricole, grupuri de\nproducatori, se vor prezenta documentele prevăzute mai sus pentru toţi membrii fermieri ai acestor solicitanţi"]
["a2) În cazul Societăţilor agricole se ataşează tabelul centralizator emis de catre Societatea agricolă, care va cuprinde suprafeţele aduse în folosinţa societăţii, numele membrilor fermieri care le deţin în proprietate şi perioada pe care terenul a fost adus în folosinţa societăţii, care trebuie să fie de minim 10 ani."]
["b) DOCUMENTE SOLICITATE PENTRU IMOBILUL (CLĂDIRILE ŞI/ SAU\nTERENURILE) pe care sunt/ vor fi realizate investiţiile:\n\nb1) ACTUL DE PROPRIETATE ASUPRA CLĂDIRII sau CONTRACT DE CONCESIUNE SAU ALT DOCUMENT ÎNCHEIAT LA NOTARIAT care să certifice dreptul de folosinţă asupra clădirii pe o perioadă de cel puțin 10 ani începând cu anul depunerii cererii de finanţare, care să confere titularului dreptul de execuție a lucrărilor de construcții, în conformitate cu prevederile Legii nr.50/1991, republicată, cu modificările și completările ulterioare, având în vedere tipul de investiție propusă prin proiect;"]
["b2). DOCUMENTUL CARE ATESTĂ DREPTUL DE PROPRIETATE ASUPRA TERENULUI, CONTRACT DE CONCESIUNE SAU ALT DOCUMENT ÎNCHEIAT LA NOTARIAT, care să certifice dreptul de folosinţă al terenului pe o perioadă de cel puțin 10 ani începând cu anul depunerii cererii de finanțare, care să confere titularului dreptul de execuție a lucrărilor de construcții, în conformitate cu prevederile Legii 50/1991, republicată,cu modificările și completările ulterioare, având în vedere tipul de investiție propusă prin proiect;"]
["Contractul de concesiune va fi însoţit de adresa emisă de concedent şi trebuie să conţină:\n- situaţia privind respectarea clauzelor contractuale și dacă este în graficul de realizare a investiţiilor prevăzute în contract şi alte clauze;\n- suprafaţa concesionată la zi (dacă pentru suprafaţa concesionată există solicitări privind retrocedarea sau diminuarea, și dacă da, să se menţioneze care este suprafaţa supusă acestui proces) pentru terenul pe care este amplasată clădirea."]
["b3) EXTRAS DE CARTE FUNCIARĂ SAU DOCUMENT CARE SĂ CERTIFICE CĂ NU AU FOST FINALIZATE LUCRĂRILE DE CADASTRU, pentru cererile de finanţare care vizează investiţii de lucrări privind construcţiile noi sau modernizări ale acestora.\n\nb4) Atenţie! În situatia în care imobilul pe care se execută investiţia nu este liber de sarcini (gajat pentru un credit), se va depune Acordul creditorului privind executia investitiei şi graficul de rambursare a creditului."]
["c) DOCUMENT PENTRU EFECTIVUL DE ANIMALE DEŢINUT ÎN\nPROPRIETATE:\n1) EXTRAS DIN REGISTRUL EXPLOATAȚIEI emis de ANSVSA/DSVSA cu cel mult 30 de zile înainte de data depunerii CF, din care să rezulte efectivul de animale deţinut, însoţit de formular de mişcare ANSVSA/DSVSA (Anexa 4 din Normele sanitare veterinare ale Ordinului ANSVSA nr. 40/2010);\nPentru exploataţiile agricole care deţin păsări - ADEVERINȚĂ\nELIBERATĂ DE MEDICUL VETERINAR DE CIRCUMSCRIPȚIE, emisă cu cel\nmult 30 de zile înainte de data depunerii CF, din care rezultă numărul păsărilor şi data înscrierii solicitantului în Registrul Exploataţiei. Pentru exploatatiile agricole care detin albine - ADEVERINTA EMISA DE OJZ cu numarul de familii de albine si codul de stupina, emisa cu cel mult 30 de zile inainte de depunerea Cererii de finantare. \nPentru cooperative agricole, societăţi cooperative agricole, grupuri de producători, se vor prezenta documentele prevăzute la punctul c) pentru toţi membrii acestor solicitanţi."]
["2) PAŞAPORTUL emis de ANZ pentru ecvideele (cabalinele) cu rasă şi origine."]
["4. CERTIFICAT DE URBANISM pentru proiecte care prevăd construcţii (noi, extinderi sau modernizări)."]
["5. DOCUMENT EMIS DE ANPM PENTRU PROIECT (conform protocolului de colaborare intre AFIR - ANPM - GNM)"]
["6.1 CERTIFICATE CARE SĂ ATESTE LIPSA DATORIILOR RESTANTE FISCALE şi sociale, valabile la data incheierii contractului, emise de Direcţia Generală a Finanţelor Publice și de primăriile pe raza cărora îşi au sediul social și puncte de lucru (numai în cazul în care solicitantul este proprietar asupra imobilelor) şi, dacă este cazul, graficul de reeşalonare a datoriilor către bugetul consolidat.\nSolicitantul va prezenta decizia de rambursare aprobată a sumelor negative solicitate la rambursare prin deconturile de TVA și/sau alte documente aprobate pentru soluționarea cererilor de restituire, decizie/documente care au fost aprobate ulterior eliberării certificatului de atestare fiscală, pentru compensarea obligațiilor fiscale de la Sect.A."]
["6.2 CAZIER JUDICIAR AL RESPONSABILULUI LEGAL, valabil la data\nincheierii contractului."]
["7.1 DOCUMENT EMIS DE DSVSA PENTRU PROIECT, conform Protocolului de colaborare dintre AFIR şi ANSVSA publicat pe pagina de internet www.afir.info."]
["7.2 DOCUMENT EMIS DE DSP JUDEŢEANĂ, conform Protocolului de colaborare dintre AFIR şi MS publicat pe pagina de internet www.afir.info."]
["8.1 DOCUMENTE CARE DOVEDESC CAPACITATEA ŞI SURSA DE COFINANŢARE privată a investiţiei emise de o instituţie financiară (extras de cont şi/sau contract de credit acordat in vederea implementarii proiectului)."]
["8.2 ADRESĂ EMISĂ DE BANCĂ/TREZORERIE cu datele de identificare ale acesteia şi ale contului aferent proiectului FEADR (denumirea, adresa instituţiei financiare, codul IBAN al contului în care se derulează operaţiunile cu AFIR);"]
["9.1 AUTORIZAŢIE SANITARĂ/ NOTIFICARE de constatare a conformităţii cu legislaţia sanitară emise cu cel mult un an înaintea depunerii Cererii de finanţare, pentru unitățile care se modernizează și se autorizează/avizează conform legislației în vigoare."]
["9.2 NOTA DE CONSTATARE PRIVIND CONDIŢIILE DE MEDIU pentru toate unităţile în funcţiune."]
["10.\na) HOTĂRÂRE JUDECĂTOREASCĂ definitivă pronunţată pe baza actului de constituire și a statutului propriu în cazul Societăţilor agricole, însoțită de Statutul Societății agricole;"]
["b) STATUT pentru Societatea cooperativă agricolă (înfiinţată în baza Legii nr. 1/ 2005) și Cooperativa agricolă (înfiinţată în baza Legii nr. 566/ 2004) cu modificările și completările ulterioare și  composesoratele, obștile și alte forme asociative de proprietate asupra terenurilor (menționate în Legea nr.1/2000 pentru reconstituirea dreptului de proprietate asupra terenurilor agricole și celor forestiere, cu modificările și completările ulterioare), din care să reiasă că acestea se încadreaza în categoria: societate cooperativa agricolă , cooperativă agricolă sau fermier în conformitate cu art 7, alin (21) din OUG 3/2015, cu completările și modificările ulterioare;"]
["c) DOCUMENT DE ÎNFIINŢARE A INSTITUTELOR DE CERCETARE, a Centrelor, staţiunilor şi unităţilor de cercetare-dezvoltare şi didactice din domeniul agricol"]
["11. ACORD de principiu privind includerea generatoarelor terestre antigrindină în Sistemul Naţional de Antigrindină şi Creştere a Precipitaţiilor (la depunere), emis de Autoritatea pentru Administrarea Sistemului Naţional Antigrindină şi de Creştere a Precipitaţiilor."]
["12. Hotararea Adunarii Generale a Cooperativei privind necesitatea si utilitatea investitiei."]
["13. DECLARAȚIE PRIVIND PRELUCRAREA DATELOR CU CARACTER PERSONAL"]
["14. ALTE DOCUMENTE JUSTIFICATIVE (se vor specifica după caz) pe care solicitantul le poate aduce în scopul susţinerii proiectului:"]
[]
[]
[]
[]
[]
[]
[]
[]
[]
["COEFICIENŢI PRODUCŢIE STANDARD 2013"]
["Coduri EUROSTAT",null,null,null,null,null,null,"Denumire culturi",null,null,null,null,null,null,null,null,null,null,null,null,null,null,null,null,null,null,"SO 2013 euro/ha",null,null,null,null,null,null,"Suprafaţa (ha)",null,null,null,null,null,null,"SO activitate existentă",null,null,null,null,null,null,"Suprafaţa (ha) în urma realizării investiţiei",null,null,null,null,null,null,"SO în urma realizării investiţiei"]
[0,null,null,null,null,null,null,1,null,null,null,null,null,null,null,null,null,null,null,null,null,null,null,null,null,null,2,null,null,null,null,null,null,3,null,null,null,null,null,null,4,null,null,null,null,null,null,5,null,null,null,null,null,null,6]
["B_1_1_1",null,null,null,null,null,null,"Grâu comun",null,null,null,null,null,null,null,null,null,null,null,null,null,null,null,null,null,null,614.09,null,null,null,null,null,null,null,null,null,null,null,null,null,{"$f":"AA923*AH923","v":0},null,null,null,null,null,null,null,null,null,null,null,null,null,{"$f":"AA923*AV923","v":0}]
["B_1_1_2",null,null,null,null,null,null,"Grâu dur",null,null,null,null,null,null,null,null,null,null,null,null,null,null,null,null,null,null,432.81,null,null,null,null,null,null,null,null,null,null,null,null,null,{"$f":"AA924*AH924","v":0},null,null,null,null,null,null,null,null,null,null,null,null,null,{"$f":"AA924*AV924","v":0}]
["B_1_1_3",null,null,null,null,null,null,"Secară",null,null,null,null,null,null,null,null,null,null,null,null,null,null,null,null,null,null,354.27,null,null,null,null,null,null,null,null,null,null,null,null,null,0,null,null,null,null,null,null,null,null,null,null,null,null,null,0]
["B_1_1_4",null,null,null,null,null,null,"Orz+Orzoaica",null,null,null,null,null,null,null,null,null,null,null,null,null,null,null,null,null,null,529.44000000000005,null,null,null,null,null,null,null,null,null,null,null,null,null,0,null,null,null,null,null,null,null,null,null,null,null,null,null,0]
["B_1_1_5",null,null,null,null,null,null,"Ovăz",null,null,null,null,null,null,null,null,null,null,null,null,null,null,null,null,null,null,331.88,null,null,null,null,null,null,null,null,null,null,null,null,null,0,null,null,null,null,null,null,null,null,null,null,null,null,null,0]
["B_1_1_6",null,null,null,null,null,null,"Porumb boabe",null,null,null,null,null,null,null,null,null,null,null,null,null,null,null,null,null,null,641.79999999999995,null,null,null,null,null,null,null,null,null,null,null,null,null,0,null,null,null,null,null,null,null,null,null,null,null,null,null,0]
["B_1_1_7",null,null,null,null,null,null,"Orez",null,null,null,null,null,null,null,null,null,null,null,null,null,null,null,null,null,null,913.26,null,null,null,null,null,null,null,null,null,null,null,null,null,0,null,null,null,null,null,null,null,null,null,null,null,null,null,0]
["B_1_1_99",null,null,null,null,null,null,"Alte cereale (sorgul, triticale, meiul, hrişca, iarba-cănăraşului, altele)",null,null,null,null,null,null,null,null,null,null,null,null,null,null,null,null,null,null,452.74,null,null,null,null,null,null,null,null,null,null,null,null,null,0,null,null,null,null,null,null,null,null,null,null,null,null,null,0]
["B_1_2_1",null,null,null,null,null,null,"Mazăre boabe, fasole boabe, lupin dulce",null,null,null,null,null,null,null,null,null,null,null,null,null,null,null,null,null,null,533.77,null,null,null,null,null,null,null,null,null,null,null,null,null,0,null,null,null,null,null,null,null,null,null,null,null,null,null,0]
["B_1_2_2",null,null,null,null,null,null,"Linte, bob, măzăriche, năut",null,null,null,null,null,null,null,null,null,null,null,null,null,null,null,null,null,null,454.79,null,null,null,null,null,null,null,null,null,null,null,null,null,0,null,null,null,null,null,null,null,null,null,null,null,null,null,0]
["B_1_3",null,null,null,null,null,null,"Cartofi (inclusiv cartofi noi, material săditor, cartof dulce destinat consumului uman)",null,null,null,null,null,null,null,null,null,null,null,null,null,null,null,null,null,null,3167.88,null,null,null,null,null,null,null,null,null,null,null,null,null,0,null,null,null,null,null,null,null,null,null,null,null,null,null,0]
["B_1_4",null,null,null,null,null,null,"Sfeclă de zahăr",null,null,null,null,null,null,null,null,null,null,null,null,null,null,null,null,null,null,1449.74,null,null,null,null,null,null,null,null,null,null,null,null,null,{"$f":"AA934*AH934","v":0},null,null,null,null,null,null,null,null,null,null,null,null,null,0]
["B_1_5",null,null,null,null,null,null,"Plante rădăcinoase pentru nutreţ (sfecla furajeră, alte plante furajere din familia brasicaceelor, morcovi furajeri, batata (cartof dulce), păstârnac, ignama, manioc)",null,null,null,null,null,null,null,null,null,null,null,null,null,null,null,null,null,null,1101.45,null,null,null,null,null,null,null,null,null,null,null,null,null,{"$f":"AA935*AH935","v":0},null,null,null,null,null,null,null,null,null,null,null,null,null,0]
["B_1_6_1",null,null,null,null,null,null,"Tutun",null,null,null,null,null,null,null,null,null,null,null,null,null,null,null,null,null,null,1696.83,null,null,null,null,null,null,null,null,null,null,null,null,null,0,null,null,null,null,null,null,null,null,null,null,null,null,null,0]
["B_1_6_2",null,null,null,null,null,null,"Hamei",null,null,null,null,null,null,null,null,null,null,null,null,null,null,null,null,null,null,4105.24,null,null,null,null,null,null,null,null,null,null,null,null,null,0,null,null,null,null,null,null,null,null,null,null,null,null,null,0]
["B_1_6_4",null,null,null,null,null,null,"Rapiţă",null,null,null,null,null,null,null,null,null,null,null,null,null,null,null,null,null,null,647.72,null,null,null,null,null,null,null,null,null,null,null,null,null,0,null,null,null,null,null,null,null,null,null,null,null,null,null,0]
["B_1_6_5",null,null,null,null,null,null,"Floarea soarelui",null,null,null,null,null,null,null,null,null,null,null,null,null,null,null,null,null,null,564.52,null,null,null,null,null,null,null,null,null,null,null,null,null,0,null,null,null,null,null,null,null,null,null,null,null,null,null,0]
["B_1_6_6",null,null,null,null,null,null,"Soia",null,null,null,null,null,null,null,null,null,null,null,null,null,null,null,null,null,null,611,null,null,null,null,null,null,null,null,null,null,null,null,null,0,null,null,null,null,null,null,null,null,null,null,null,null,null,0]
["B_1_6_7",null,null,null,null,null,null,"In pentru ulei",null,null,null,null,null,null,null,null,null,null,null,null,null,null,null,null,null,null,1563.56,null,null,null,null,null,null,null,null,null,null,null,null,null,0,null,null,null,null,null,null,null,null,null,null,null,null,null,0]
["B_1_6_8",null,null,null,null,null,null,"Alte plante pentru ulei (ricin, şofrănaş, susan, arahide, mac, muştar, alte culturi oleaginoase)",null,null,null,null,null,null,null,null,null,null,null,null,null,null,null,null,null,null,374,null,null,null,null,null,null,null,null,null,null,null,null,null,{"$f":"AA942*AH942","v":0},null,null,null,null,null,null,null,null,null,null,null,null,null,0]
["B_1_6_9",null,null,null,null,null,null,"In textil",null,null,null,null,null,null,null,null,null,null,null,null,null,null,null,null,null,null,307.17,null,null,null,null,null,null,null,null,null,null,null,null,null,{"$f":"AA943*AH943","v":0},null,null,null,null,null,null,null,null,null,null,null,null,null,0]
["B_1_6_10",null,null,null,null,null,null,"Cânepă",null,null,null,null,null,null,null,null,null,null,null,null,null,null,null,null,null,null,518.11,null,null,null,null,null,null,null,null,null,null,null,null,null,0,null,null,null,null,null,null,null,null,null,null,null,null,null,0]
["B_1_6_12",null,null,null,null,null,null,"Plante medicinale şi aromatice inclusiv ceaiul, cafeaua şi cicoarea pentru cafea: muşeţel, mătrăguna, menta, mac, angelica,chimen, genţiana, iasomia, lavanda, levănţica, origanul, şofranul, salvia, valeriana, gălbeneaua  etc",null,null,null,null,null,null,null,null,null,null,null,null,null,null,null,null,null,null,937.85,null,null,null,null,null,null,null,null,null,null,null,null,null,0,null,null,null,null,null,null,null,null,null,null,null,null,null,0]
["B_1_6_99",null,null,null,null,null,null,"Alte plante industriale- cicoarea, trestia de zahăr, alte plante tehnice nemenţionate în altă parte, sorgul tehnic (pentru mături)",null,null,null,null,null,null,null,null,null,null,null,null,null,null,null,null,null,null,717.56,null,null,null,null,null,null,null,null,null,null,null,null,null,0,null,null,null,null,null,null,null,null,null,null,null,null,null,0]
["B_1_7_1_1",null,null,null,null,null,null,"Legume proaspete, pepeni şi căpşuni - în câmp\n- varza, conopidă, broccoli, sparanghel\n- legume pt. frunze (praz, salată, spanac, etc.)\n- tomate\n- porumb dulce\n- legume cultivate pentru fructe - vinete, ardei,dovleci şi dovlecei, castraveciori\n- legume cultivate pentru rădăcină, bulbi, tuberculi (excepţie cartofi): morcovi, păstârnac, ceapă, usturoi, ridichii, napi\n- legume păstăi(fasole, mazăre cu excepţia lintei şi a năutului)\n- fructele plantelor neperene (căpşuni, pepeni galbeni, pepeni verzi, ananas)",null,null,null,null,null,null,null,null,null,null,null,null,null,null,null,null,null,null,6196.49,null,null,null,null,null,null,null,null,null,null,null,null,null,{"$f":"AA947*AH947","v":0},null,null,null,null,null,null,null,null,null,null,null,null,null,0]
["B_1_7_1_2",null,null,null,null,null,null,"Legume proaspete, pepenişi căpşuni - în grădină destinate comercializării:\n- varza, conopidă, broccoli, sparanghel\n- legume pt. frunze (praz, salată, spanac, etc.)\n- tomate\n- porumb dulce\n- legume cultivate pentru fructe - vinete, ardei,dovleci şi dovlecei, castraveciori\n- legume cultivate pentru rădăcină, bulbi, tuberculi (excepţie cartofi): morcovi, păstârnac, ceapă, usturoi, ridichii, napi\n- legume păstăi(fasole, mazăre cu excepţia lintei şi a năutului)\n- fructele plantelor neperene (căpşuni, pepeni galbeni, pepeni verzi, ananas)",null,null,null,null,null,null,null,null,null,null,null,null,null,null,null,null,null,null,7176.16,null,null,null,null,null,null,null,null,null,null,null,null,null,{"$f":"AA948*AH948","v":0},null,null,null,null,null,null,null,null,null,null,null,null,null,0]
["B_1_7_2",null,null,null,null,null,null,"Legume proaspete, pepeni şi căpşuni - în sere şi solarii:\n- varza, conopidă, broccoli, sparanghel\n- legume pt. frunze (praz, salată, spanac, etc.)\n- tomate\n- porumb dulce\n- legume cultivate pentru fructe - vinete, ardei,dovleci şi dovlecei, castraveciori\n- legume cultivate pentru rădăcină, bulbi, tuberculi (excepţie cartofi): morcovi, păstârnac, ceapă, usturoi, ridichii, napi\n- legume păstăi(fasole, mazăre cu excepţia lintei şi a năutului)\n- fructele plantelor neperene (căpşuni, pepeni galbeni, pepeni verzi, ananas)",null,null,null,null,null,null,null,null,null,null,null,null,null,null,null,null,null,null,27507.66,null,null,null,null,null,null,null,null,null,null,null,null,null,{"$f":"AA949*AH949","v":0},null,null,null,null,null,null,null,null,null,null,null,null,null,0]
["B_1_8_1",null,null,null,null,null,null,"Flori - în câmp\n- bulbi de flori, cormi şi tuberculi\n- flori tăiate şi boboci\n- plante cu flori şi plante ornamentale",null,null,null,null,null,null,null,null,null,null,null,null,null,null,null,null,null,null,25527.46,null,null,null,null,null,null,null,null,null,null,null,null,null,{"$f":"AA950*AH950","v":0},null,null,null,null,null,null,null,null,null,null,null,null,null,0]
["B_1_8_2",null,null,null,null,null,null,"Flori - în sere şi solarii\n- bulbi de flori, cormi şi tuberculi\n- flori tăiate şi boboci\n- plante cu flori şi plante ornamentale",null,null,null,null,null,null,null,null,null,null,null,null,null,null,null,null,null,null,83743.81,null,null,null,null,null,null,null,null,null,null,null,null,null,{"$f":"AA951*AH951","v":0},null,null,null,null,null,null,null,null,null,null,null,null,null,0]
["B_1_9_1",null,null,null,null,null,null,"Plante de nutreţ - iarba temporară - iarba semănată pe terenuri arabile cedate producţiilor furajere erbacee pe o perioadă mai scurtă de 5 ani şi chiar sub un an",null,null,null,null,null,null,null,null,null,null,null,null,null,null,null,null,null,null,266.22000000000003,null,null,null,null,null,null,null,null,null,null,null,null,null,0,null,null,null,null,null,null,null,null,null,null,null,null,null,0]
["B_1_9_2_1",null,null,null,null,null,null,"Plante de nutreţ - alte furaje verzi - porumb siloz",null,null,null,null,null,null,null,null,null,null,null,null,null,null,null,null,null,null,1029.19,null,null,null,null,null,null,null,null,null,null,null,null,null,0,null,null,null,null,null,null,null,null,null,null,null,null,null,0]
["B_1_9_2_2",null,null,null,null,null,null,"Plante de nutreţ - alte furaje verzi (culturi anuale de cereale recoltate verzi, sorgul anual, anumite graminee anuale cum este firuţa, cruciferele, facelia dacă sunt recoltate  verzi şi nu au fost menţionate în altă parte, mazariche, lupin dulce)",null,null,null,null,null,null,null,null,null,null,null,null,null,null,null,null,null,null,476.13,null,null,null,null,null,null,null,null,null,null,null,null,null,0,null,null,null,null,null,null,null,null,null,null,null,null,null,0]
["B_1_9_2_99",null,null,null,null,null,null,"Alte plante de nutreţ (diferite specii de trifoi anual sau peren- trifoi alb, trifoi roşu, trifoi de Alexandria - diferite varietăţi de lucernă)",null,null,null,null,null,null,null,null,null,null,null,null,null,null,null,null,null,null,662.78,null,null,null,null,null,null,null,null,null,null,null,null,null,0,null,null,null,null,null,null,null,null,null,null,null,null,null,0]
["B_1_10",null,null,null,null,null,null,"Seminţe şi seminceri\n- semințe de graminee\n- seminţe pentru horticultură\n- seminţe şi răsaduri pentru teren arabil cu excepţia cerealelor, a boabelor de leguminoase uscate, a cartofilor, a plantelor oleaginoase",null,null,null,null,null,null,null,null,null,null,null,null,null,null,null,null,null,null,2993.73,null,null,null,null,null,null,null,null,null,null,null,null,null,0,null,null,null,null,null,null,null,null,null,null,null,null,null,0]
["B_1_11",null,null,null,null,null,null,"Alte plante (culturi de mică importanţă economică care nu pot fi încadrate în altă categorie)",null,null,null,null,null,null,null,null,null,null,null,null,null,null,null,null,null,null,592.99,null,null,null,null,null,null,null,null,null,null,null,null,null,0,null,null,null,null,null,null,null,null,null,null,null,null,null,0]
["B_3_1",null,null,null,null,null,null,"Păşuni şi fâneţe permanente - păşuni şi fâneţe",null,null,null,null,null,null,null,null,null,null,null,null,null,null,null,null,null,null,295.04000000000002,null,null,null,null,null,null,null,null,null,null,null,null,null,0,null,null,null,null,null,null,null,null,null,null,null,null,null,0]
["B_3_2",null,null,null,null,null,null,"Păşuni şi fâneţe permanente - pe terenuri accidentate - păşuni sărace, inclusiv lăstărişul, de obicei nefertilizate şi neîntrebuinţate - păşuni cu randament scăzut situate în locuri accidentate şi la altitudini mari, care nu sunt cosite - terenuri  stâncoase, terenuri mlăştinoase, bărăganuri",null,null,null,null,null,null,null,null,null,null,null,null,null,null,null,null,null,null,92.33,null,null,null,null,null,null,null,null,null,null,null,null,null,0,null,null,null,null,null,null,null,null,null,null,null,null,null,0]
["B_4_1_1_1",null,null,null,null,null,null,"Fructe, pomi şi arbuşti - climă temperată:\nMere\nPere\nPiersici şi nectarine\nAlte fructe: vişine, cirese, caise, prune, gutui",null,null,null,null,null,null,null,null,null,null,null,null,null,null,null,null,null,null,2812.04,null,null,null,null,null,null,null,null,null,null,null,null,null,0,null,null,null,null,null,null,null,null,null,null,null,null,null,0]
["B_4_1_2",null,null,null,null,null,null,"Livezi de coacaz, smochin, zmeur, muri, agrise, cătină, afin, goji",null,null,null,null,null,null,null,null,null,null,null,null,null,null,null,null,null,null,3958.34,null,null,null,null,null,null,null,null,null,null,null,null,null,{"$f":"AA961*AH961","v":0},null,null,null,null,null,null,null,null,null,null,null,null,null,0]
["B_4_1_3",null,null,null,null,null,null,"Fructe, pomi şi arbuşti - nuci, alune",null,null,null,null,null,null,null,null,null,null,null,null,null,null,null,null,null,null,1754.4,null,null,null,null,null,null,null,null,null,null,null,null,null,{"$f":"AA962*AH962","v":0},null,null,null,null,null,null,null,null,null,null,null,null,null,0]
["B_4_4_1",null,null,null,null,null,null,"Vii - vin nobil",null,null,null,null,null,null,null,null,null,null,null,null,null,null,null,null,null,null,1981.83,null,null,null,null,null,null,null,null,null,null,null,null,null,0,null,null,null,null,null,null,null,null,null,null,null,null,null,0]
["B_4_4_2",null,null,null,null,null,null,"Vii - alte vinuri",null,null,null,null,null,null,null,null,null,null,null,null,null,null,null,null,null,null,1889.96,null,null,null,null,null,null,null,null,null,null,null,null,null,0,null,null,null,null,null,null,null,null,null,null,null,null,null,0]
["B_4_4_3",null,null,null,null,null,null,"Vii – struguri de masa",null,null,null,null,null,null,null,null,null,null,null,null,null,null,null,null,null,null,2170.52,null,null,null,null,null,null,null,null,null,null,null,null,null,0,null,null,null,null,null,null,null,null,null,null,null,null,null,0]
["B_4_5",null,null,null,null,null,null,"Pepiniere",null,null,null,null,null,null,null,null,null,null,null,null,null,null,null,null,null,null,5614.25,null,null,null,null,null,null,null,null,null,null,null,null,null,0,null,null,null,null,null,null,null,null,null,null,null,null,null,0]
["B_4_6",null,null,null,null,null,null,"Alte culturi permanente: răchita, papura, bambus, salcie, brazi de craciun",null,null,null,null,null,null,null,null,null,null,null,null,null,null,null,null,null,null,487.35,null,null,null,null,null,null,null,null,null,null,null,null,null,0,null,null,null,null,null,null,null,null,null,null,null,null,null,0]
["B_6_1",null,null,null,null,null,null,"Ciupercării pe 100mp (Nr. recolte pe an = 4)\n",null,null,null,null,null,null,null,null,null,null,null,null,null,null,null,null,null,null,4456.78,null,null,null,null,null,null,{"$f":"W969*W970/100","v":0},null,null,null,null,null,null,{"$f":"AA968*AH968/4","v":0},null,null,null,null,null,null,{"$f":"W971*W972/100","v":0},null,null,null,null,null,null,{"$f":"AA968*AV968/4","v":0}]
[]
[]
[]
[]
[null,null,null,null,null,null,null,"TOTAL vegetal",null,null,null,null,null,null,null,null,null,null,null,null,null,null,null,null,null,null,null,null,null,null,null,null,null,{"$f":"SUM(AH923:AN972)","v":0},null,null,null,null,null,null,{"$f":"SUM(AO923:AU972)","v":0},null,null,null,null,null,null,{"$f":"SUM(AV923:BB972)","v":0},null,null,null,null,null,null,{"$f":"SUM(BC923:BI972)","v":0}]
[]
["* SE VA COMPLETA CU NUMĂRUL DE CICLURI DIN ACTIVITATEA EXISTENTĂ, REALIZATE ÎN CADRUL UNUI AN.\n** SE VA COMPLETA CU SUPRAFAŢA CULTURII(MP) CU CIUPERCI, ACTIVITATE EXISTENTĂ; ÎN CAZUL ÎN CARE ÎN CADRUL CIUPERCĂRIEI SE UTILIZEAZĂ UN SISTEM DE CULTURĂ ÎN STELAJE, SE VA COMPLETA SUPRAFAŢA CULTURII(MP) FORMATĂ DIN SUPRAFAŢA UNUI STELAJ(MP)xNUMĂR DE STELAJE\n*** SE VA COMPLETA CU NUMĂRUL DE CICLURI PREVĂZUT A SE REALIZA ÎN STUDIUL DE FEZABILITATE, ÎN CADRUL UNUI AN.\n**** SE VA COMPLETA CU SUPRAFAŢA CULTURII(MP) CU CIUPERCI, ÎN URMA REALIZĂRII INVESTIŢIEI; ÎN CAZUL ÎN CARE ÎN CADRUL CIUPERCĂRIEI SE UTILIZEAZĂ UN SISTEM DE CULTURĂ ÎN STELAJE, SE VA COMPLETA SUPRAFAŢA CULTURII(MP) FORMATĂ DIN SUPRAFAŢA UNUI STELAJ(MP)xNUMĂR DE STELAJE"]
[]
["Coduri EUROSTAT",null,null,null,null,null,null,"Denumire specii animale",null,null,null,null,null,null,null,null,null,null,null,null,null,null,null,null,null,null,"SO 2013 euro/cap",null,null,null,null,null,null,"Număr capete",null,null,null,null,null,null,"SO activitate existentă",null,null,null,null,null,null,"Total capete animale în urma realizării investiţiei",null,null,null,null,null,null,"SO în urma realizării investiţiei"]
[0,null,null,null,null,null,null,1,null,null,null,null,null,null,null,null,null,null,null,null,null,null,null,null,null,null,2,null,null,null,null,null,null,3,null,null,null,null,null,null,4,null,null,null,null,null,null,5,null,null,null,null,null,null,6]
["C_1",null,null,null,null,null,null,"Ecvidee",null,null,null,null,null,null,null,null,null,null,null,null,null,null,null,null,null,null,1404.31,null,null,null,null,null,null,null,null,null,null,null,null,null,{"$f":"AA979*AH979","v":0},null,null,null,null,null,null,null,null,null,null,null,null,null,{"$f":"AA979*AV979","v":0}]
["C_2_1",null,null,null,null,null,null,"Bovine sub 1 an - total",null,null,null,null,null,null,null,null,null,null,null,null,null,null,null,null,null,null,216.38,null,null,null,null,null,null,null,null,null,null,null,null,null,{"$f":"AA980*AH980","v":0},null,null,null,null,null,null,null,null,null,null,null,null,null,{"$f":"AA980*AV980","v":0}]
["C_2_2",null,null,null,null,null,null,"Bovine sub 2 ani - masculi",null,null,null,null,null,null,null,null,null,null,null,null,null,null,null,null,null,null,344.4,null,null,null,null,null,null,null,null,null,null,null,null,null,0,null,null,null,null,null,null,null,null,null,null,null,null,null,0]
["C_2_3",null,null,null,null,null,null,"Bovine sub 2 ani - femele",null,null,null,null,null,null,null,null,null,null,null,null,null,null,null,null,null,null,341.49,null,null,null,null,null,null,null,null,null,null,null,null,null,0,null,null,null,null,null,null,null,null,null,null,null,null,null,0]
["C_2_4",null,null,null,null,null,null,"Bovine de 2 ani şi peste - masculi",null,null,null,null,null,null,null,null,null,null,null,null,null,null,null,null,null,null,817.88,null,null,null,null,null,null,null,null,null,null,null,null,null,0,null,null,null,null,null,null,null,null,null,null,null,null,null,0]
["C_2_5",null,null,null,null,null,null,"Bovine de 2 ani si peste - femele (juninci pentru îngrăşat, juninci pentru reproducţie)",null,null,null,null,null,null,null,null,null,null,null,null,null,null,null,null,null,null,801.38,null,null,null,null,null,null,null,null,null,null,null,null,null,0,null,null,null,null,null,null,null,null,null,null,null,null,null,0]
["C_2_6",null,null,null,null,null,null,"Vaci, bivolite pentru lapte",null,null,null,null,null,null,null,null,null,null,null,null,null,null,null,null,null,null,1200.46,null,null,null,null,null,null,null,null,null,null,null,null,null,0,null,null,null,null,null,null,null,null,null,null,null,null,null,0]
["C_2_99",null,null,null,null,null,null,"Bovine de 2 ani şi peste - alte vaci",null,null,null,null,null,null,null,null,null,null,null,null,null,null,null,null,null,null,515.85,null,null,null,null,null,null,null,null,null,null,null,null,null,0,null,null,null,null,null,null,null,null,null,null,null,null,null,0]
["C_3_1_99",null,null,null,null,null,null,"Oi - alte oi : miei, berbeci, oi reformate - oi sterpe care urmează a fi îngrăşate în vederea sacrificării",null,null,null,null,null,null,null,null,null,null,null,null,null,null,null,null,null,null,26.72,null,null,null,null,null,null,null,null,null,null,null,null,null,0,null,null,null,null,null,null,null,null,null,null,null,null,null,0]
["C_3_2_1",null,null,null,null,null,null,"Capre – capre montate - capre montate femele destinate reproducerii, capre reformate care urmează să fete",null,null,null,null,null,null,null,null,null,null,null,null,null,null,null,null,null,null,112.98,null,null,null,null,null,null,null,null,null,null,null,null,null,0,null,null,null,null,null,null,null,null,null,null,null,null,null,0]
["C_3_2_99",null,null,null,null,null,null,"Capre – alte capre: iezi, ţapi, capre reformate destinate sacrificării",null,null,null,null,null,null,null,null,null,null,null,null,null,null,null,null,null,null,39.67,null,null,null,null,null,null,null,null,null,null,null,null,null,0,null,null,null,null,null,null,null,null,null,null,null,null,null,0]
["C_4_1_1",null,null,null,null,null,null,"Porcine - tineret porcin sub 20 kg",null,null,null,null,null,null,null,null,null,null,null,null,null,null,null,null,null,null,33.36,null,null,null,null,null,null,null,null,null,null,null,null,null,0,null,null,null,null,null,null,null,null,null,null,null,null,null,0]
["C_4_1_2",null,null,null,null,null,null,"Porcine - scroafe pentru reproducţie peste 50 kg",null,null,null,null,null,null,null,null,null,null,null,null,null,null,null,null,null,null,262.55,null,null,null,null,null,null,null,null,null,null,null,null,null,0,null,null,null,null,null,null,null,null,null,null,null,null,null,0]
["C_4_1_99",null,null,null,null,null,null,"Porcine - alte porcine: porci la îngrăşat, vieri, scroafe destinate sacrificării",null,null,null,null,null,null,null,null,null,null,null,null,null,null,null,null,null,null,388.08,null,null,null,null,null,null,null,null,null,null,null,null,null,0,null,null,null,null,null,null,null,null,null,null,null,null,null,0]
["C_5_1",null,null,null,null,null,null,"Pui pentru carne *",null,null,null,null,null,null,null,null,null,null,null,null,null,null,null,null,null,null,473.59,null,null,null,null,null,null,null,null,null,null,null,null,null,0,null,null,null,null,null,null,null,null,null,null,null,null,null,0]
["C_5_2",null,null,null,null,null,null,"Găini ouătoare *",null,null,null,null,null,null,null,null,null,null,null,null,null,null,null,null,null,null,2156,null,null,null,null,null,null,null,null,null,null,null,null,null,0,null,null,null,null,null,null,null,null,null,null,null,null,null,0]
["C_5_3_1",null,null,null,null,null,null,"Curcani şi curci *",null,null,null,null,null,null,null,null,null,null,null,null,null,null,null,null,null,null,4205.5600000000004,null,null,null,null,null,null,null,null,null,null,null,null,null,0,null,null,null,null,null,null,null,null,null,null,null,null,null,0]
["C_5_3_2",null,null,null,null,null,null,"Raţe *",null,null,null,null,null,null,null,null,null,null,null,null,null,null,null,null,null,null,2824.99,null,null,null,null,null,null,null,null,null,null,null,null,null,0,null,null,null,null,null,null,null,null,null,null,null,null,null,0]
["C_5_3_3",null,null,null,null,null,null,"Gâşte *",null,null,null,null,null,null,null,null,null,null,null,null,null,null,null,null,null,null,3602.66,null,null,null,null,null,null,null,null,null,null,null,null,null,0,null,null,null,null,null,null,null,null,null,null,null,null,null,0]
["C_5_3_4",null,null,null,null,null,null,"Struţi *",null,null,null,null,null,null,null,null,null,null,null,null,null,null,null,null,null,null,30083.5,null,null,null,null,null,null,null,null,null,null,null,null,null,0,null,null,null,null,null,null,null,null,null,null,null,null,null,0]
["C_5_3_99",null,null,null,null,null,null,"Alte păsări: bibilici, porumbei, potârnichi, fazani, prepeliţe *",null,null,null,null,null,null,null,null,null,null,null,null,null,null,null,null,null,null,900.34,null,null,null,null,null,null,null,null,null,null,null,null,null,0,null,null,null,null,null,null,null,null,null,null,null,null,null,0]
["C_6",null,null,null,null,null,null,"Iepuri (femele iepuri)",null,null,null,null,null,null,null,null,null,null,null,null,null,null,null,null,null,null,13.91,null,null,null,null,null,null,null,null,null,null,null,null,null,0,null,null,null,null,null,null,null,null,null,null,null,null,null,0]
["C_7",null,null,null,null,null,null,"Familii de albine",null,null,null,null,null,null,null,null,null,null,null,null,null,null,null,null,null,null,59.62,null,null,null,null,null,null,null,null,null,null,null,null,null,0,null,null,null,null,null,null,null,null,null,null,null,null,null,0]
[null,null,null,null,null,null,null,"TOTAL zootehnic",null,null,null,null,null,null,null,null,null,null,null,null,null,null,null,null,null,null,null,null,null,null,null,null,null,null,null,null,null,null,null,null,{"$f":"SUM(AO979:AU1001)","v":0},null,null,null,null,null,null,null,null,null,null,null,null,null,{"$f":"SUM(BC979:BI1001)","v":0}]
[null,null,null,null,null,null,null,"TOTAL GENERAL",null,null,null,null,null,null,null,null,null,null,null,null,null,null,null,null,null,null,null,null,null,null,null,null,null,null,null,null,null,null,null,null,{"$f":"AO973+AO1002","v":0},null,null,null,null,null,null,null,null,null,null,null,null,null,{"$f":"BC973+BC1002","v":0}]
[]
["* Valoarea SO se referă la 100 capete"]
[{"$cut":{"chars":18110,"head":"DEFINIŢIA ŞI PRINCIPIILE DE CALCULARE A PRODUCŢIILOR STANDARD\nSO 2013\nExploataţia profesională este o exploataţie agricolă suficient de mare încât să ofere o activitate de bază pentru şeful exploataţiei şi un venit suficient pentru\nsusţinerea lui şi a familiei sale.\n(a) Valoarea producției standard reprezintă valoarea monetară a producției agricole brute la prețul de la poarta exploatației. Această valoare este suma\ndintre valoarea produsului principal (produselor principale) și cea a produsului secundar (produselor secundare). Valorile se calculează înmulțind producția\nper unitate cu prețul de la poarta exploatației. TVA-ul, taxele pe produse și plățile directe nu sunt incluse.\n(b) Perioada de producție Producțiile standard corespund unei perioade de producție de 12 luni (an calendaristic sau an de producție agricolă). Pentru\nprodusele vegetale și animale în cazul cărora perioada de producție este mai mică de 12 luni sau depășește această perioadă, se calculează o producție\nstandard corespunzătoare creșterii sau producției pe o perioadă de 12 luni.\n(c) Unități\n1. Producțiile standard corespunzătoare caracteristicilor culturilor se determină pe baza suprafeței exprimate în hectare.\nCu toate acestea, pentru ciuperci, producțiile standard se determină pe baza producției brute pentru toate recoltele anuale succesive și se exprimă per 100\nm2 de suprafață cultivată. În vederea utilizării lor în contextul RICA, aceste producții standard pentru ciuperci se împart la numărul de recolte anuale\nsuccesive care este comunicat Comisiei Europene.\n2. Producțiile standard corespunzătoare caracteristicilor efectivului de animale se determină pe cap de animal, cu excepția păsărilor de curte, pentru care se\nexprimă per 100 de capete, și a albinelor, pentru care se determină per stup.\n3. Datele de bază pentru determinarea producțiilor standard, precum și producțiile standard calculate se stabilesc în euro. Pentru statele membre care nu au\naderat la uniunea economică și monetară, producțiile standard se convertesc în euro, utilizându-se cursurile de schimb medii pentru perioada de referință.\nAceste cursuri de schimb medii se calculează pe baza cursurilor de schimb oficiale publicate de Comisie (Eurostat).\n(d) Defalcarea producțiilor standard\nÎn funcție de caracteristicile culturii vegetale și ale efectivului de animale producțiile standard se determină pentru toate caracteristicile agricole care sunt în\nexploatația agricolă.\nDimensiunea economică a unei exploataţii agricole reprezintă valoarea SO totală a exploataţiei, exprimată în euro, corespunzătoare sumei SO calculată\npentru fiecare dintre producţiile vegetale ori animale obţinute în exploataţia respectivă într-o perioadă de un an calendaristic sau an agricol.\nÎn cadrul măsurilor de Finanţare din cadrul Programului Naţional de Dezvoltare Rurală este necesară determinarea dimensiunii economice a exploataţiilor\nagricole care accesează fondurile europene.\nAceste instrucţiuni sprijină experţii verificatori de la nivel central şi pe cei judeţeni în rezolvarea atribuţiilor ce le revin în procesul de verificare a dimensiunii\neconomice, dimensiune rezultată în urma aplicării coeficienţilor standard output SO.\nAceştia se introduc ca atare şi se aplică la efectivul din teren la data aplicării cererii de Finanţare pentru măsurile de dezvoltare rurală. Pentru cazul\nexploataţiilor de îngrăşare a animalelor în mai multe cicluri pe an, dimensiunea economică se calculează în baza unui număr mediu.\n1.Culturi\nPentru toate tipurile de culturi (excepţie ciupercile) se aplică formula:\nSO 2013 = nr. ha cultura x coeficient cultura SO 2013\nIndiferent ce se obţine dintr-o cultură - făina, mălai, tărâţe, conserve, compot, dulceaţă, ţuică) - acestea sunt produse procesate fiind considerate ca venituri\ndin alte activităţi ale exploataţiei agricole şi care nu intră în calculul dimensionării economice. Excepţie face obţinerea vinului.\nPentru exploatații care au mai multe culturi în cadrul unei categorii, cum ar fi ”Legume proaspete pepeni și căpșuni - în câmp deschis \" sau - ”Fructe din zone cu\nclimă temperată”, coe"}}]
[]
[]
[]
[]
[]
[]
[]
["· dacă în exploatație nu se găsesc vaci de lapte atunci se iau în considerare producțiile standard corespunzătoare viţeilor sub 1 an pentru numărul care\nexistă în acel moment în exploataţie.\n· dacă în exploataţie sunt bovine femele care au fătat codul C_2_99, ţinute exclusiv sau în principal pentru producția de viței și al căror lapte nu este utilizat\npentru consumul uman sau obținerea de produse lactate, calculul dimensiunii economice se face prin însumarea producţiilor standard pentru bovine femele\ncare au fătat codul C_2_99 şi a producţiilor standard pentru viţeii sub 1 an al căror număr depăşeşte numărul bovinelor femele care au fătat cod C_2_99.\nExemple de calcul:\n1) Exploataţia deţine următoarele categorii de bovine:\n- 10 vaci de lapte care au fătat 12 viţei,\n- 2 tauri mai mari de doi ani,\n- 3 viţele mai mari de 2 ani destinate sacrificării,\n- 3 bovine femele care au fătat 3 viţei, bovine ţinute exclusiv pentru producţia de viţei\nDimensiunea economică a exploataţiei va fi:\nSO 2013 = 10 x 1200,46 + 2 x 216,38 + 2 x 817,88 + 3 x 801,38 + 3 x 515,85 = 18024,81 Euro\n2) Exploataţia deţine următoarele categorii de bovine:\n- 25 viţei bovine sub un an achiziţionaţi\n- 7 bovine femele care au fătat 9 viţei, bovine ţinute exclusiv pentru producţia de viţei\nDimensiunea economică a exploataţiei va fi:\nSO 2013 = 25 x 216,38 + 7 x 515,85 +2 x 216,38 = 9453,21 Euro\nExploataţia de creştere ovine şi caprine\nÎn concordanţă cu codurile utilizate pentru coeficienţii producție standard ( standard output, SO) se disting următoarele categorii de ovine şi caprine:\nC_3_1_1. Oi, femele de reproducție. Oi de un an sau mai mult destinate reproducției.\nC_3_1_99. Alte ovine. Ovine de toate vârstele, cu excepția oilor.\nC_3_2_1. Caprine, femele de reproducție\nC_3_2_99. Alte caprine. Caprine, altele decât femelele de reproducție.\nProducțiile standard corespunzătoare altor ovine - miei se iau în considerare la calcularea producției standard totale a exploatației numai în cazul în care în\nexploatație nu există nicio femelă ovină de reproducție.\nProducțiile standard corespunzătoare altor caprine - iezi se iau în considerare la calcularea producției standard totale a exploatației numai în cazul în care în\nexploatație nu există nicio femelă caprină de reproducție\nAcest lucru se datorează faptului că mieii/iezii sunt consideraţi producţia principală a oilor/caprelor, valoarea acestora fiind inclusă în coeficientul standard\noutput al oilor, respectiv caprelor.\nExemplu de calcul:\nExploataţia deţine următoarele categorii de ovine şi caprine:\n- 250 oi,\n- 270 miei,\n- 10 berbeci,\n- 12 oi sterpe,\n- 25 iezi\nSO 2013 = 250 x 54,91 + 10 x 26,72 +12 x26,72 + 25 x 39,67 = 15307,09 Euro\nExploataţia de creştere porcine :\nÎn concordanţă cu codurile utilizate pentru coeficienţii producție standard ( standard output, SO) se disting următoarele categorii de porcine:\nC_4_1. Purcei cu greutatea în viu sub 20 kg Purcei cu greutatea în viu sub 20 kg.\nC_4_2. Scroafe de reproducție de 50 kg și peste această greutate Scroafe de reproducție de 50 de kilograme sau mai mult, cu excepția scroafelor reformate\n(a se vedea categoria C_4_99, „Alte porcine”).\nC_4_99. Porci pentru îngrășat Porci pentru îngrășat cu greutatea în viu de 20 kg sau mai mult, cu excepția scroafelor reformate și a vierilor reformați (a se\nvedea categoria C_4_99, „Alte porcine”).\nC_4_99. Alte porcine Porci cu greutatea în viu de 20 kg sau mai mult, cu excepția scroafelor de reproducție (a se vedea categoria C_4_2) și a porcilor pentru\nîngrășat (a se vedea categoria C_4_99).\nProducțiile standard corespunzătoare purceilor se iau în considerare la calcularea producției standard totale a exploatației numai în cazul în care în\nexploatație nu există nicio scroafă de reproducție.\nAcest lucru se datorează faptului că purceii sub 20 kg sunt consideraţi producţia principală a scroafelor de reproducţie, valoarea acestora fiind inclusă în\ncoeficientul standard output al scroafelor.\nExemplu de calcul:\nExploataţia deţine:\n- 12 scroafe,\n- 40 purcei sub 20 kg,\n- 35 porci pentru îngrăşat,\n- 2 vieri\nSO 2013 = 12 x 262,55 + 35 x 388,08 + 2 x 388,08 = 17509,56 Euro\nIn cazul în care exploataţia îşi desfăşoară activitatea pe mai multe cicluri de producţie (îngrăşare), calculul dimensiunii se va face astfel:\n- SO 2013 total = număr mediu porci îngrăşat x SO 2013 porci îngrăşat unde numărul mediu este exprimat ca număr cu o zecimală şi se calculează\nproporţional cu durata prezenţei porcilor de îngrăşat în exploataţie în timpul anului;\n- Numărul mediu = nr. total porci îngrăşat x numărul de zile (sau luni) prezenţi în exploataţie/365zile (sau 12 luni)\nExemplu de calcul: exploataţia îngraşă porci în trei cicluri prin achiziţionarea unui nr. total de 1800 porci de îngrăşat:\n- Numărul mediu = 1800 x 112 zile prezenţi în exploataţie/365 zile an = 552,3 porci îngrăşat\n- Va rezulta dimensiunea exploataţiei ca fiind:\nSO 2013 TOTAL = 552,3 x 388,08 = 214336,58 euro.\nExploataţia de creştere păsări de curte\nÎn concordanţă cu codurile utilizate pentru coeficienții producție standard ( standard output, SO) se disting următoarele categorii de păsări de curte:\nC_5_1 pui pentru carne\nC_5_2 găini ouătoare: puicuțele (găini tinere care nu au început să ouă), găinile ouătoare, găinile reformate și cocoșii de reproducție pentru găini ouătoare.\nC_5_3_1 Curcani şi curci\nC_5_3_2 Raţe\nC_5_3_3 Gâşte\nC_5_3_4 Struţi\nC_5_3_99 Alte păsări: bibilici, porumbei, potârnichi, fazani, prepeliţe\nNu se includ puişorii de o zi în nicio categorie de păsări.\nPuişorii de o zi, care nu reprezintă o categorie, ca atare, dar sunt incluşi în categoria reziduală \"Alte animale\", sunt principalul produs al găinilor\nde reproducție. Pentru acest lucru nu se calculează coeficient SO aferent acestei categorii.\nExploataţiile cu incubatoare pentru obţinerea puişorilor de o zi ar trebui să-şi dimensioneze unitatea prin alte metode decât cea a utilizării coeficienţilor SO,\neventual cu producţia de puişori(valoare sau număr) previzionată.\n- Exploataţiile care îşi desfăşoară activitatea pe mai multe cicluri de producţie de pui de carne într-un an contabil se vor dimensiona la depunerea cererii de\nfinanţare cu efectivul mediu de păsări (a tuturor ciclurilor) conform următoarei formule:\nSO 2013 total = număr mediu pui de carne x SO 2013 pui carne/100 unde numărul mediu este exprimat în cazul păsărilor ca număr întreg şi se\ncalculează proporţional cu durata prezenţei lor în exploataţie în timpul anului\nExemplu de calcul\nExploataţia achiziţionează 1000000 pui de carne în timpul unui an în mai multe cicluri:\n- Numărul mediu = nr. total păsări x numărul de luni prezente în exploataţie/12 luni = 1000000 x 2/12 = 166667 pui de carne\n- Coeficientul standard output SO aferent categoriei C_5_1 Pui de carne = 473,59 euro/100 capete\n- Va rezulta dimensiunea exploataţiei ca fiind:\nSO 2013 TOTAL = 166667 x 473,59/100 = 789318,25 euro.\nRegulamentele care stau la baza calculului SO sunt următoarele:\n• Regulamentul (CE) nr. 1217/2009 al Consiliului privind crearea unei reţele de colectare de informaţii contabile privind veniturile şi activitatea\neconomică a exploataţiilor agricole în Uniunea Europeană;\n• Documentul Comitetului Comunitar RICA RI/CC 1680 v.4 Martie 2015 privind Definițiile chestionarului utilizat în anchetă;\n• Regulamentul de punere în aplicare (UE) 220/ 3 februarie 2015 al Comisiei de stabilire a normelor de aplicare a Regulamentului (CE) nr.\n1217/2009 al Consiliului privind crearea unei rețele de colectare de informații contabile privind veniturile și activitatea economică a exploatațiilor agricole în\nUniunea Europeană;\n• Documentul Comitetului Comunitar RICA RI/CC 1500 v.4 Iunie 2016 Manual de tipologie"]
[]
[]
["F. DECLARAŢIE PE PROPRIA RĂSPUNDERE A SOLICITANTULUI"]
["Prin această declaraţie solicitantul"]
[]
["care solicită asistență financiară nerambursabilă prin programul FEADR pentru proiectul intitulat"]
[]
["prin reprezentant legal"]
[]
["cunoscând prevederile legii penale cu privire la falsul în declarații:"]
[null,null,null,"1. Declar că proiectul propus asistenței financiare nerambursabile FEADR nu beneficiază de altă finanțare din programe de finanțare nerambursabilă. De asemenea mă angajez ca în cazul în care proiectul va fi selectat pentru finanțare FEADR, nu voi depune acest proiect la nici un alt program de finanțare nerambursabilă la care proiectul poate fi în întregime sau parțial eligibil pentru asistență."]
[]
[null,null,null,"2. Declar că îndeplinesc condițiile de eligibilitate prevăzute în fișa sub-măsurii și Ghidul Solicitantului și mă angajez să le respect pe perioada de valabilitate a contractului de finanțare și monitorizare a investiției, inclusiv criteriile de selecție pentru care proiectul a fost punctat."]
[null,null,null,"3. Declar că toate informațiile din prezenta cerere de finanțare și din documentele anexate sunt corecte și mă angajez să respect condițiile cerute în reglementările referitoare la prezentul program și pe cele legate de proiectul anexat și să furnizez periodic, la cerere, documentele justificative necesare."]
[null,null,null,"4. Declar pe propria răspundere că orice modificări aduse dreptului de proprietate sau de folosinţă vor fi notificate AFIR în termen de trei zile de la data încheierii lor. De asemenea, mă angajez, ca pe perioada de valabilitate a contractului de finanţare şi monitorizare a investiţiei să nu diminuez suprafaţa şi/sau infrastructura cuprinsă în proiect."]
[null,null,null,"5. Declar că eu și organizația mea (UAT sau ONG) nu ne aflăm într-unul din următoarele cazuri:"]
[null,null,null,"Acuzat din cauza unei greșeli privind conduita profesională având ca soluție finală res judicata (împotriva căreia nici un apel nu este posibil)"]
[null,null,null,"Vinovat de grave deficiențe de conduită profesională dovedite prin orice mijloace pe care Agenția le poate justifica."]
[null,null,null,"Vinovat de faptul că nu am prezentat informaţiile cerute de Autoritatea Contractantă ca o condiţie de participare la licitaţie sau contractare"]
[null,null,null,"Încălcarea prevederilor contractuale prin care nu mi-am îndeplinit obligațiile contractuale în legătură cu un alt contract cu Agenția sau alte contracte finanțate din fonduri comunitare."]
[null,null,null,"Încercarea de a obține informații confidențiale sau de influențare a Agenției în timpul procesului de evaluare a proiectului și nu voi face presiuni la adresa evaluatorului."]
["6.",null,null,null,null,"Declar că organizaţia pe care o reprezint ARE datorii către institutii de credit şi/sau instituţii financiare bancare / nebancare pentru care prezint graficul de rambursare"]
[null,null,null,null,null,"Declar că organizaţia pe care o reprezint NU are datorii către instituţii de credit şi/sau instituţii financiare bancare / nebancare"]
["7.",null,null,null,null,"Declar pe propria răspundere că în cazul în care nu respect oricare din punctele prevazute în această declaraţie proiectul să devină neeligibil în baza criteriului \"Eligibilitatea solicitantului\" sau contractul să fie reziliat"]
["8.",null,null,null,null,"Declar pe propria răspundere că:"]
[null,null,null,null,null,"Nu sunt înregistrat în scopuri TVA și că mă angajez să notific Agenției orice modificare a situatiei privind înregistrarea ca plătitor de TVA, în maximum 10 (zece) zile de la data înregistrării în scopuri TVA."]
[null,null,null,null,null,"Sunt înregistrat în scopuri de TVA (certificat de înregistrare fiscală în scopuri de TVA)."]
["9.",null,null,null,null,"Declar pe propria răspundere că nu am înscrisuri care privesc sancțiuni economico-financiare în cazierul judiciar pe care mă oblig să îl depun la încheierea contractului de finanţare . Prin prezenta îmi exprim consimțământul ca AFIR să solicite instituțiilor abilitate conform legii, extrasul de pe cazierul judiciar privind situația mea.\n(Până la reglementarea posibilităţii aplicării de către experţii evaluatori AFIR a normelor metodologice aferente Legii nr. 290/2004 privind cazierul judiciar, cu modificările şi completările ulterioare, solicitantul are obligaţia depunerii documentului justificativ mai sus enunţat.)"]
["10.",null,null,null,null,"Declar pe propria raspundere că nu am fapte înscrise în cazierul fiscal."]
["11.",null,null,null,null,"Declar pe propria răspundere că toate cheltuielile neeligibile vor fi suportate de solicitant şi că acestea vor fi realizate până la finalizarea proiectului."]
["12.",null,null,null,null,"Declar pe propria răspundere că dosarul cererii de finanţare în original, va fi identic cu dosarul cererii de finanţare depus online. În caz contrar, proiectul nu va fi contractat."]
["13.",null,null,null,null,"Declar că mă angajez să îndeplinesc - Cerinţele minime obligatorii de respectare a bunelor practici agricole privind gestionarea gunoiului de grajd."]
["14.",null,null,null,null,"Mă angajez ca în termenul prevăzut în „Notificărea beneficiarului privind selectarea cererii de finanţare şi semnarea contractului de finanţare”, să prezint documentul privind cofinanţarea proiectului şi Angajamentul responsabilului legal al proiectului că nu va utiliza în alte scopuri 50% din cofinanțarea privată, în cazul prezentării cofinanţării prin extras de cont."]
["15.",null,null,null,null,"Mă angajez ca în maxim 4 luni de la data primirii \"Notificării beneficiarului privind selectarea cererii de finantare și semnarea contractului de finanțare\" să prezint documentul ANPM pentru proiect. Prin excepţie de la acest termen, în cazul în care proiectul se supune procedurilor de evaluare a impactului asupra mediului şi de evaluare adecvată sau doar de evaluare adecvată, mă angajez să prezint Acordul de mediu/Avizul Natura 2000 în termen de maximum 7 luni de la primirea Notificării solicitantului privind selectarea cererii de finanţare şi semnarea contractului de finanţare."]
["16.",null,null,null,null,"Mă angajez ca pe durata de execuție a contractului să-mi menţin cel puţin încadrarea în dimensiunea SO a exploataţiei agricole, fără a reduce dimensiunea economică a exploatației agricole, prevazută la depunerea cererii de finanțare, cu mai mult de 15% și fără a scădea, în nicio situație, sub pragul minim de 4.000 SO stabilit prin condițiile de eligibilitate."]
["17.",null,null,null,null,"Sunt de acord ca AFIR sa publice pe site, să consulte și să prelucreze, prin operațiunile prevăzute de legislația în vigoare în vederea desfășurării activității specifice, datele mele cu caracter personal, furnizate AFIR, cu respectarea legislaţiei europene şi naţionale privind transparenţa, publicarea datelor cu caracter personal şi prelucrarea acestora."]
[]
[null,"Semnătura reprezentant legal şi ştampila (după caz)",null,null,null,null,null,null,null,null,null,null,null,null,null,null,null,null,null,null,null,null,null,null,null,null,null,null,null,null,null,null,null,null,null,null,null,null,null,null,null," Data:"]
[]
[]
[]
["Anexa INDICATORI DE MONITORIZARE"]
["Măsura 6 \"Sprijin pentru înființarea și dezvoltarea de structuri asociative în teritoriul G.A.L. Codrii Herței\""]
[]
["1. Cod RO"]
["2. Cod CAEN"]
["3. Tipul beneficiarului",null,null,null,null,null,null,null,null,null,null,null,null,null,null,null,null,"Solicitanţi înfiinţaţi în baza OUG 44/2008",null,null,null,null,null,null,null,null,null,null,null,"Bărbaţi",null,null,null,null,null,null,null,null,null,null,null,"< 40"]
[null,null,null,null,null,null,null,null,null,null,null,null,null,null,null,null,null,null,null,null,null,null,null,null,null,null,null,null,null,null,null,null,null,null,null,null,null,null,null,null,null,">= 40"]
[null,null,null,null,null,null,null,null,null,null,null,null,null,null,null,null,null,null,null,null,null,null,null,null,null,null,null,null,null,"Femei",null,null,null,null,null,null,null,null,null,null,null,"< 40"]
[null,null,null,null,null,null,null,null,null,null,null,null,null,null,null,null,null,null,null,null,null,null,null,null,null,null,null,null,null,null,null,null,null,null,null,null,null,null,null,null,null,">= 40"]
[null,null,null,null,null,null,null,null,null,null,null,null,null,null,null,null,null,"Persoană juridică"]
["4. Tipul de zonă",null,null,null,null,null,null,null,null,null,null,null,null,null,null,null,null,"Zonă normală"]
[null,null,null,null,null,null,null,null,null,null,null,null,null,null,null,null,null,"Zonă montană"]
[null,null,null,null,null,null,null,null,null,null,null,null,null,null,null,null,null,"Zonă constrângeri specifice"]
[null,null,null,null,null,null,null,null,null,null,null,null,null,null,null,null,null,"Zonă constrângeri semnificative"]
["5. Tipul producţiei",null,null,null,null,null,null,null,null,null,null,null,null,null,null,null,null,"Ecologică"]
[null,null,null,null,null,null,null,null,null,null,null,null,null,null,null,null,null,"Convenţională"]
["6. Numărul de exploataţii sprijinite"]
["7. Dimensiunea economică a exploataţiei",null,null,null,null,null,null,null,null,null,null,null,null,null,null,null,null,"4.000 - 11.999 SO (mică)"]
[null,null,null,null,null,null,null,null,null,null,null,null,null,null,null,null,null,"12.000 – 250.000 SO (medie)"]
[null,null,null,null,null,null,null,null,null,null,null,null,null,null,null,null,null,">250.000 SO (mare)"]
["8. Suprafaţa exploataţiilor agricole sprijinite (Ha)"]
["9. Suprafaţa vizată de investiţii pentru sisteme de irigaţii (Ha)"]
["10. Tip ramură agricolă",null,null,null,null,null,null,null,null,null,null,null,null,null,null,null,null,"Albine"]
[null,null,null,null,null,null,null,null,null,null,null,null,null,null,null,null,null,"Culturi de câmp"]
[null,null,null,null,null,null,null,null,null,null,null,null,null,null,null,null,null,"Horticultură"]
[null,null,null,null,null,null,null,null,null,null,null,null,null,null,null,null,null,"Viticultură"]
[null,null,null,null,null,null,null,null,null,null,null,null,null,null,null,null,null,"Creștere bovine pentru carne"]
[null,null,null,null,null,null,null,null,null,null,null,null,null,null,null,null,null,"Creștere bovine pentru lapte"]
[null,null,null,null,null,null,null,null,null,null,null,null,null,null,null,null,null,"Creștere ovine și caprine"]
[null,null,null,null,null,null,null,null,null,null,null,null,null,null,null,null,null,"Porcine"]
[null,null,null,null,null,null,null,null,null,null,null,null,null,null,null,null,null,"Păsări de curte"]
[null,null,null,null,null,null,null,null,null,null,null,null,null,null,null,null,null,"Mixte - culturi mixte"]
[null,null,null,null,null,null,null,null,null,null,null,null,null,null,null,null,null,"Mixte - culturi si animale cu exceptia albinelor"]
[null,null,null,null,null,null,null,null,null,null,null,null,null,null,null,null,null,"Albine"]
[null,null,null,null,null,null,null,null,null,null,null,null,null,null,null,null,null,"Altele"]
["11. Categoria investiţiei",null,null,null,null,null,null,null,null,null,null,null,null,null,null,null,null,"Utilaje şi echipamente"]
[null,null,null,null,null,null,null,null,null,null,null,null,null,null,null,null,null,"Construcţii agricole (inclusiv echipamentele asociate)"]
[null,null,null,null,null,null,null,null,null,null,null,null,null,null,null,null,null,"Alte investiţii agricole"]
["12. Tipul investiţiei",null,null,null,null,null,null,null,null,null,null,null,null,null,null,null,null," a) Construcția, extinderea, modernizarea și dotarea construcțiilor din cadrul fermei, destinate activității productive, inclusiv căi de acces în fermă, irigații în cadrul fermei și racordarea fermei la utilități;"]
[null,null,null,null,null,null,null,null,null,null,null,null,null,null,null,null,null,"b) Amenajarea și dotarea spațiilor de desfacere și comercializare a produselor agricole proprii, precum și alte cheltuieli de marketing, în cadrul unui lanț alimentar integrat;"]
[null,null,null,null,null,null,null,null,null,null,null,null,null,null,null,null,null,"c) Achiziționarea, inclusiv prin leasing de mașini/utilaje și echipamente noi, în limita valorii de piață a bunului respectiv;"]
[null,null,null,null,null,null,null,null,null,null,null,null,null,null,null,null,null,"d) Achiziționarea, inclusiv prin leasing, de mijloace de transport compacte, frigorifice, inclusiv remorci și semiremorci specializate în scopul comercializării produselor agricole proprii în cadrul unui lanț alimentar integrat;"]
[null,null,null,null,null,null,null,null,null,null,null,null,null,null,null,null,null,"e) Achiziționarea sau dezvoltarea de software și achiziționarea de brevete, licențe, drepturi de autor, mărci."]
[]
[]
["13. Număr capete de animale \n\nBeneficiarii ale caror tipuri de investitii NU vizeaza cresterea animalelor, vor completa fiecare subcategorie cu valoarea “0”; \nbeneficiarii ale caror tipuri de investitii vizeaza cresterea animalelor, vor completa valorile pe care le detin, in dreptul subcategoriilor corespunzatoare (ex: bovine, ovine, caprine, etc), iar restul subcategoriilor vor fi completate cu “0”. ",null,null,null,null,null,null,null,null,null,null,null,null,null,null,null,null,"Tauri, vaci şi alte bovine de mai mult de 2 ani şi cabaline de mai mult de 6 luni"]
[null,null,null,null,null,null,null,null,null,null,null,null,null,null,null,null,null,"Bovine între 6 luni şi 2 ani"]
[null,null,null,null,null,null,null,null,null,null,null,null,null,null,null,null,null,"Bovine de mai puţin de 6 luni"]
[null,null,null,null,null,null,null,null,null,null,null,null,null,null,null,null,null,"Ovine"]
[null,null,null,null,null,null,null,null,null,null,null,null,null,null,null,null,null,"Caprine"]
[null,null,null,null,null,null,null,null,null,null,null,null,null,null,null,null,null,"Scroafe de reproducţie > 50 kg"]
[null,null,null,null,null,null,null,null,null,null,null,null,null,null,null,null,null,"Alte porcine"]
[null,null,null,null,null,null,null,null,null,null,null,null,null,null,null,null,null,"Găini outoare"]
[null,null,null,null,null,null,null,null,null,null,null,null,null,null,null,null,null,"Alte păsări de curte"]
["11. Categoria investiţiei",null,null,null,null,null,null,null,null,null,null,null,null,null,null,null,null,"M01 - Transfer de cunoştinţe şi acţiuni de informare"]
[null,null,null,null,null,null,null,null,null,null,null,null,null,null,null,null,null,"M02 - Servicii de consiliere"]
[null,null,null,null,null,null,null,null,null,null,null,null,null,null,null,null,null,"M16 - Cooperare"]
[]
["*Pentru indicatorii de tip numeric care nu fac obiectul investiției se va completa valoarea zero.\nIndic. nr.1 - reprezintă codul de inregistrare al beneficiarului în Registrul Fermierului la APIA\nIndic. nr.2 - reprezintă codul CAEN pentru investiţia vizată prin proiect\nIndic. nr. 3, 4, 5, 7, 10, 12 - se va bifa doar o singura categorie/ categoria majoritară\nIndic. nr. 6 - se completează numărul exploataţiilor sprijinite prin proiect; in cazul investitiilor colective realizate de formele asociative ale fermierilor (cooperative/grupuri de producatori) se va mentiona nr. de exploatatii care fac parte din formele asociative implicate/sprijinite in proiect.\nIndic. nr. 8 - se completează suprafaţa (Ha) exploataţiilor agricole sprijinite prin proiect\nIndic. nr.9 - se completează suprafaţa (Ha) vizată de investiţii pentru sisteme de irigaţii\nIndic. nr. 11 - se va bifa categoria majoritară.\nÎn categoria \"Utilaje şi echipamente\" se vor încadra investiţii precum: investiţii privind achiziţia de tractoare, combine, maşini, utilaje, echipamente agricole etc, canalizare/ instalaţii de tratare a apelor uzate, instalaţii de irigat, instalatii pentru procesarea complexa a furajelor pentru animale.\nÎn categoria \"Construcţii agricole\" se vor încadra investiţii precum: construirea şi/ sau modernizarea clădirilor utilizate pentru producţia agricolă la nivel de fermă, fose septice si platforme gunoi de grajd, alte construcţii în fermă cum ar fi: sere, depozite, mici adaposturi pentru prepararea nutreturilor combinate, instalatii necesare depozitarii in conditii optime.\nÎn categoria \"Alte investiţii agricole\" se vor încadra tipurile de investiţii care nu se încadrează în primele două categorii.\nIndic. nr. 13 - Beneficiarii ale caror tipuri de investitii NU vizeaza cresterea animalelor, vor completa fiecare subcategorie cu valoarea “0”; beneficiarii ale caror tipuri de investitii vizeaza cresterea animalelor, vor completa valorile pe care le detin, in dreptul subcategoriilor corespunzatoare (ex: bovine, ovine, caprine, etc), iar restul subcategoriilor vor fi completate cu “0”.\nIndic. nr. 14 - se va completa din momentul demararii M01, M02, respectiv M16"]
[]
[]
[]
[]
[]
[]
["Factori de risc"]
["I1. Valoarea sprijinului public nerambursabil (EURO)",null,null,null,null,null,null,null,null,null,null,null,null,null,null,null,null,null,null,null,null,null,null,null,null,null,null,null,null,null,null,null,null,null,null,null,null,null,null,null,null,null,null,null,null,null,null,null,null,null,"Punctaj obţinut"]
["• proiecte cu valoarea sprijinului nerambursabil < 100 000 euro",null,null,null,null,null,null,null,null,null,null,null,null,null,null,null,null,null,null,null,null,null,null,null,null,null,null,null,null,null,null,null,null,null,null,null,null,null,null,null,null,null,null,null,null,null,null,null,null,null,2]
["• proiecte cu valoarea sprijinului nerambursabil între 100.000 – 500.000 euro",null,null,null,null,null,null,null,null,null,null,null,null,null,null,null,null,null,null,null,null,null,null,null,null,null,null,null,null,null,null,null,null,null,null,null,null,null,null,null,null,null,null,null,null,null,null,null,null,null,3]
["• proiecte cu valoarea sprijinului nerambursabil între 500.001 – 1.000.000 euro",null,null,null,null,null,null,null,null,null,null,null,null,null,null,null,null,null,null,null,null,null,null,null,null,null,null,null,null,null,null,null,null,null,null,null,null,null,null,null,null,null,null,null,null,null,null,null,null,null,4]
["• proiecte cu valoarea sprijinului nerambursabil între 1.000.001 – 2.000.000 euro",null,null,null,null,null,null,null,null,null,null,null,null,null,null,null,null,null,null,null,null,null,null,null,null,null,null,null,null,null,null,null,null,null,null,null,null,null,null,null,null,null,null,null,null,null,null,null,null,null,5]
[]
["I2. Complexitatea investiţiei"]
["Beneficiari Privaţi/Publici",null,null,null,null,null,null,null,null,null,null,null,null,null,null,null,null,null,null,null,null,null,null,null,null,null,null,null,null,null,null,null,null,null,null,null,null,null,null,null,null,null,null,null,null,null,null,null,null,null,"Punctaj obţinut"]
["• Investiţie nouă",null,null,null,null,null,null,null,null,null,null,null,null,null,null,null,null,null,null,null,null,null,null,null,null,null,null,null,null,null,null,null,null,null,null,null,null,null,null,null,null,null,null,null,null,null,null,null,null,null,5]
["• Modernizări cu C şi/sau M",null,null,null,null,null,null,null,null,null,null,null,null,null,null,null,null,null,null,null,null,null,null,null,null,null,null,null,null,null,null,null,null,null,null,null,null,null,null,null,null,null,null,null,null,null,null,null,null,null,4]
["• Modernizări prin achiziţie simplă(utilaje)",null,null,null,null,null,null,null,null,null,null,null,null,null,null,null,null,null,null,null,null,null,null,null,null,null,null,null,null,null,null,null,null,null,null,null,null,null,null,null,null,null,null,null,null,null,null,null,null,null,3]
[]
["I3. Intensitatea sprijinului (procent contribuţie publică)",null,null,null,null,null,null,null,null,null,null,null,null,null,null,null,null,null,null,null,null,null,null,null,null,null,null,null,null,null,null,null,null,null,null,null,null,null,null,null,null,null,null,null,null,null,null,null,null,null,"Punctaj obţinut"]
["70% -90%",null,null,null,null,null,null,null,null,null,null,null,null,null,null,null,null,null,null,null,null,null,null,null,null,null,null,null,null,null,null,null,null,null,null,null,null,null,null,null,null,null,null,null,null,null,null,null,null,null,5]
["50%-69%",null,null,null,null,null,null,null,null,null,null,null,null,null,null,null,null,null,null,null,null,null,null,null,null,null,null,null,null,null,null,null,null,null,null,null,null,null,null,null,null,null,null,null,null,null,null,null,null,null,4]
["<50%",null,null,null,null,null,null,null,null,null,null,null,null,null,null,null,null,null,null,null,null,null,null,null,null,null,null,null,null,null,null,null,null,null,null,null,null,null,null,null,null,null,null,null,null,null,null,null,null,null,1]
[]
["I4. Riscul proiectului d.p.d.v. al % raportului între cheltuielile suportate de solicitant şi Valoarea ajutorului nerambursabil.\nCheltuielile suportate de solicitant = Total valoare proiect (fără TVA) – Valoarea\najutorului nerambursabil solicitat.\n\n        Total valoare proiect(fără TVA)-Valoarea ajutorului nerambursabil solicitat\n% = --------------------------------------------------------------------------------------- x 100\n                                Valoarea ajutorului nerambursabil solicitat",null,null,null,null,null,null,null,null,null,null,null,null,null,null,null,null,null,null,null,null,null,null,null,null,null,null,null,null,null,null,null,null,null,null,null,null,null,null,null,null,null,null,null,null,null,null,null,null,null,"Punctaj obţinut"]
["• > 200%",null,null,null,null,null,null,null,null,null,null,null,null,null,null,null,null,null,null,null,null,null,null,null,null,null,null,null,null,null,null,null,null,null,null,null,null,null,null,null,null,null,null,null,null,null,null,null,null,null,5]
["• Între 176 şi 200%",null,null,null,null,null,null,null,null,null,null,null,null,null,null,null,null,null,null,null,null,null,null,null,null,null,null,null,null,null,null,null,null,null,null,null,null,null,null,null,null,null,null,null,null,null,null,null,null,null,4]
["• Între 151 şi 175%",null,null,null,null,null,null,null,null,null,null,null,null,null,null,null,null,null,null,null,null,null,null,null,null,null,null,null,null,null,null,null,null,null,null,null,null,null,null,null,null,null,null,null,null,null,null,null,null,null,3]
["• Între 121 şi 150%",null,null,null,null,null,null,null,null,null,null,null,null,null,null,null,null,null,null,null,null,null,null,null,null,null,null,null,null,null,null,null,null,null,null,null,null,null,null,null,null,null,null,null,null,null,null,null,null,null,2]
["• < 121%",null,null,null,null,null,null,null,null,null,null,null,null,null,null,null,null,null,null,null,null,null,null,null,null,null,null,null,null,null,null,null,null,null,null,null,null,null,null,null,null,null,null,null,null,null,null,null,null,null,1]
[]
["I5. Capacitatea societăţii de a manageria proiectul, experienţă în derularea afacerilor",null,null,null,null,null,null,null,null,null,null,null,null,null,null,null,null,null,null,null,null,null,null,null,null,null,null,null,null,null,null,null,null,null,null,null,null,null,null,null,null,null,null,null,null,null,null,null,null,null,"Punctaj obţinut"]
["• Firmă nouă sau fără activitate",null,null,null,null,null,null,null,null,null,null,null,null,null,null,null,null,null,null,null,null,null,null,null,null,null,null,null,null,null,null,null,null,null,null,null,null,null,null,null,null,null,null,null,null,null,null,null,null,null,5]
["• Firmă cu experienţă dar care nu a participat la alt proiect comunitar sau nu a obţinut asistenţă financiară nerambursabilă din partea altui instrument financiar",null,null,null,null,null,null,null,null,null,null,null,null,null,null,null,null,null,null,null,null,null,null,null,null,null,null,null,null,null,null,null,null,null,null,null,null,null,null,null,null,null,null,null,null,null,null,null,null,null,4]
["• Firmă cu experienţă care a finalizat un proiect comunitar sau a obţinut din asistenţă financiară nerambursabilă din partea altui instrument financiar",null,null,null,null,null,null,null,null,null,null,null,null,null,null,null,null,null,null,null,null,null,null,null,null,null,null,null,null,null,null,null,null,null,null,null,null,null,null,null,null,null,null,null,null,null,null,null,null,null,3]
["TOTAL",null,null,null,null,null,null,null,null,null,null,null,null,null,null,null,null,null,null,null,null,null,null,null,null,null,null,null,null,null,null,null,null,null,null,null,null,null,null,null,null,null,null,null,null,null,null,null,null,null,{"$f":"BJ1*0.3+BJ2*0.25+BJ3*0.2+BJ4*0.15+BJ5*0.1","v":3.1}]
[]
[null,null,"Codul unic de înregistrare APIA"]
[null,null,"În cazul în care nu aveți un cod unic de înregistrare APIA, completați acest formular."]
["FORMULAR"]
["de înscriere în Registrul unic de identificare pentru solicitanţii de finanţare prin măsurile"]
["Programului naţional de dezvoltare rurală 2014 - 2020"]
[]
["Denumire solicitant:"]
[]
["Categorie Solicitant:"]
[]
["Sediul / Adresa"]
[]
["Ţara",null,null,null,null,"România",null,null,null,null,null,null,null,null,"Judeţul",null,null,null,null,null,null,null,null,null,null,null,null,null,null,null,null,null,null,"oraşul"]
[]
["comuna",null,null,null,null,null,null,null,null,null,null,null,null,null,null,null,null,null,null,null,null,"satul",null,null,null,null,null,null,null,null,null,null,null,null,null,null,null,null,null,"strada"]
[]
["nr.",null,null,null,null,null,null,null,"bl.",null,null,null,null,null,"et.",null,null,null,null,"ap.",null,null,null,null,null,"sectorul",null,null,null,null,null,null,null,null,null,null,null,null,"codul poştal"]
[]
["Număr de telefon",null,null,null,null,null,null,null,null,null,null,null,null,null,null,null,null,null,null,null,null,null,null,"Fax",null,null,null,null,null,null,null,null,null,null,null,null,null,null,"E-mail"]
[]
["Număr de înregistrare în registrul comerțului/Registrul asociațiilor și fundațiilor"]
[]
["CUI / CIF"]
[]
["Cod CAEN pentru activitatea principală"]
[]
["Cod CAEN pentru activitatea secundară pentru care se solicită înregistrarea în Registrul unic de identificare"]
[]
["Cod IBAN"]
[]
["deschis la Banca"]
[]
["Sucursala / Agenție"]
[]
["Prin reprezentant legal, doamna/domnul"]
[]
["cu CNP",null,null,null,null,null,null,null,null,null,null,null,null,null,null,"solicit înscrierea în Registrul unic de îdentificare - Agenţia de Plăţi şi Intervenţie pentru Agricultură."]
[]
["Am luat la cunoştinţă că orice modificare a informaţiilor de mai sus trebuie furnizată către APIA în termen de maximum 10 zile\nlucrătoare de la producerea acestora.\nDeclar pe propria răspundere că cele de mai sus sunt conforme cu realitatea.\nSunt de acord ca datele din cerere să fie introduse în baza de date a Sistemului Integrat de Administrare şi Control, procesate şi\nverificate în vederea înscrierii în Registrul unic de identificare şi transmise autorităţilor responsabile în vederea elaborării de studii\nstatistice şi de evaluări economice, în condiţiile Legii nr. 677-2001 pentru protecţia persoanelor cu privire la prelucrarea datelor cu\ncaracter personal şi libera circulaţie a acestor date, cu modificarile şi completările ulterioare."]
[]
["Reprezentant legal",null,null,null,null,null,null,null,null,null,null,null,null,null,null,null,null,null,null,null,null,null,null,null,null,null,null,null,null,null,null,null,null,null,null,null,null,null,null,null,null,null,null,"Data:"]
[]
["Numele şi prenumele"]
[]
["Semnătura "]

{"sheet":"Anexa 1 HG_907","index":1,"n_rows":98,"n_cols":52,"rows_kept":98,"cut":false,"hidden":false,"merged":[[0,7,0,41],[1,7,1,41],[1,42,2,60],[2,7,2,41],[3,7,3,41],[3,42,3,50],[3,51,3,60],[9,0,9,3],[9,4,9,41],[9,42,9,50],[9,51,9,60],[10,0,10,3],[10,4,10,41],[10,42,10,50],[10,51,10,60],[4,7,4,60],[5,0,5,60],[6,0,6,60],[7,0,7,60],[8,0,8,3],[8,4,8,41],[8,42,8,50],[8,51,8,60],[13,0,13,3],[13,4,13,41],[13,42,13,50],[13,51,13,60],[14,0,14,3],[14,4,14,41],[14,42,14,50],[14,51,14,60],[11,0,11,3],[11,4,11,41],[11,42,11,50],[11,51,11,60],[12,0,12,3],[12,4,12,41],[12,42,12,50],[12,51,12,60],[17,0,17,3],[17,4,17,41],[17,42,17,50],[17,51,17,60],[18,0,18,3],[18,4,18,41],[18,42,18,50],[18,51,18,60],[15,0,15,3],[15,4,15,41],[15,42,15,50],[15,51,15,60],[16,0,16,3],[16,4,16,41],[16,42,16,50],[16,51,16,60],[21,0,21,3],[21,4,21,41],[21,42,21,50],[21,51,21,60],[22,0,22,3],[22,4,22,41],[22,42,22,50],[22,51,22,60],[19,0,19,3],[19,4,19,41],[19,42,19,50],[19,51,19,60],[20,0,20,3],[20,4,20,41],[20,42,20,50],[20,51,20,60],[25,0,25,3],[25,4,25,41],[25,42,25,50],[25,51,25,60],[26,0,26,3],[26,4,26,41],[26,42,26,50],[26,51,26,60],[23,0,23,3],[23,4,23,41],[23,42,23,50],[23,51,23,60],[24,0,24,3],[24,4,24,41],[24,42,24,50],[24,51,24,60],[29,0,29,3],[29,4,29,41],[29,42,29,50],[29,51,29,60],[30,0,30,3],[30,4,30,41],[30,42,30,50],[30,51,30,60],[27,0,27,3],[27,4,27,41],[27,42,27,50],[27,51,27,60],[28,0,28,3],[28,4,28,41],[28,42,28,50],[28,51,28,60],[33,0,33,3],[33,4,33,41],[33,42,33,50],[33,51,33,60],[34,0,34,3],[34,4,34,41],[34,42,34,50],[34,51,34,60],[31,0,31,3],[31,4,31,41],[31,42,31,50],[31,51,31,60],[32,0,32,3],[32,4,32,41],[32,42,32,50],[32,51,32,60],[37,0,37,3],[37,4,37,41],[37,42,37,50],[37,51,37,60],[38,0,38,3],[38,4,38,41],[38,42,38,50],[38,51,38,60],[35,0,35,3],[35,4,35,41],[35,42,35,50],[35,51,35,60],[36,0,36,3],[36,4,36,41],[36,42,36,50],[36,51,36,60],[41,0,41,3],[41,4,41,41],[41,42,41,50],[41,51,41,60],[42,0,42,3],[42,4,42,41],[42,42,42,50],[42,51,42,60],[39,0,39,3],[39,4,39,41],[39,42,39,50],[39,51,39,60],[40,0,40,3],[40,4,40,41],[40,42,40,50],[40,51,40,60],[45,0,45,41],[45,42,45,50],[45,51,45,60],[46,0,46,41],[46,42,46,50],[46,51,46,60],[43,0,43,3],[43,4,43,41],[43,42,43,50],[43,51,43,60],[44,0,44,3],[44,4,44,41],[44,42,44,50],[44,51,44,60],[53,7,53,41],[53,42,53,50],[53,51,53,60],[54,7,54,60],[55,0,55,60],[56,0,56,60],[47,0,47,41],[47,42,47,60],[49,0,49,42],[50,7,50,41],[51,7,51,41],[51,42,52,60],[52,7,52,41],[60,0,60,3],[60,4,60,41],[60,42,60,50],[60,51,60,60],[61,0,61,3],[61,4,61,41],[61,42,61,50],[61,51,61,60],[57,0,57,60],[58,0,58,3],[58,4,58,41],[58,42,58,50],[58,51,58,60],[59,0,59,3],[59,4,59,41],[59,42,59,50],[59,51,59,60],[64,0,64,3],[64,4,64,41],[64,42,64,50],[64,51,64,60],[65,0,65,3],[65,4,65,41],[65,42,65,50],[65,51,65,60],[62,0,62,3],[62,4,62,41],[62,42,62,50],[62,51,62,60],[63,0,63,3],[63,4,63,41],[63,42,63,50],[63,51,63,60],[68,0,68,3],[68,4,68,41],[68,42,68,50],[68,51,68,60],[69,0,69,3],[69,4,69,41],[69,42,69,50],[69,51,69,60],[66,0,66,3],[66,4,66,41],[66,42,66,50],[66,51,66,60],[67,0,67,3],[67,4,67,41],[67,42,67,50],[67,51,67,60],[72,0,72,3],[72,4,72,41],[72,42,72,50],[72,51,72,60],[73,0,73,3],[73,4,73,41],[73,42,73,50],[73,51,73,60],[70,0,70,3],[70,4,70,41],[70,42,70,50],[70,51,70,60],[71,0,71,3],[71,4,71,41],[71,42,71,50],[71,51,71,60],[76,0,76,3],[76,4,76,41],[76,42,76,50],[76,51,76,60],[77,0,77,3],[77,4,77,41],[77,42,77,50],[77,51,77,60],[74,0,74,3],[74,4,74,41],[74,42,74,50],[74,51,74,60],[75,0,75,3],[75,4,75,41],[75,42,75,50],[75,51,75,60],[80,0,80,3],[80,4,80,41],[80,42,80,50],[80,51,80,60],[81,0,81,3],[81,4,81,41],[81,42,81,50],[81,51,81,60],[78,0,78,3],[78,4,78,41],[78,42,78,50],[78,51,78,60],[79,0,79,3],[79,4,79,41],[79,42,79,50],[79,51,79,60],[84,0,84,3],[84,4,84,41],[84,42,84,50],[84,51,84,60],[85,0,85,3],[85,4,85,41],[85,42,85,50],[85,51,85,60],[82,0,82,3],[82,4,82,41],[82,42,82,50],[82,51,82,60],[83,0,83,3],[83,4,83,41],[83,42,83,50],[83,51,83,60],[88,0,88,3],[88,4,88,41],[88,42,88,50],[88,51,88,60],[89,0,89,3],[89,4,89,41],[89,42,89,50],[89,51,89,60],[86,0,86,3],[86,4,86,41],[86,42,86,50],[86,51,86,60],[87,0,87,3],[87,4,87,41],[87,42,87,50],[87,51,87,60],[92,0,92,3],[92,4,92,41],[92,42,92,50],[92,51,92,60],[93,0,93,3],[93,4,93,41],[93,42,93,50],[93,51,93,60],[90,0,90,3],[90,4,90,41],[90,42,90,50],[90,51,90,60],[91,0,91,3],[91,4,91,41],[91,42,91,50],[91,51,91,60],[96,0,96,41],[96,42,96,50],[96,51,96,60],[97,0,97,41],[97,42,97,60],[99,0,99,42],[94,0,94,3],[94,4,94,41],[94,42,94,50],[94,51,94,60],[95,0,95,41],[95,42,95,50],[95,51,95,60]]}
[null,null,null,null,null,null,null,"MINISTERUL AGRICULTURII ŞI DEZVOLTĂRII RURALE"]
[null,null,null,null,null,null,null,null,null,null,null,null,null,null,null,null,null,null,null,null,null,null,null,null,null,null,null,null,null,null,null,null,null,null,null,null,null,null,null,null,null,null,"Anexa A1 HG_907"]
[null,null,null,null,null,null,null,"AGENŢIA PENTRU FINANŢAREA INVESTIŢIILOR RURALE"]
[null,null,null,null,null,null,null,null,null,null,null,null,null,null,null,null,null,null,null,null,null,null,null,null,null,null,null,null,null,null,null,null,null,null,null,null,null,null,null,null,null,null,null,null,null,null,null,null,null,null,null,"Aprilie 2017"]
[null,null,null,null,null,null,null,"Deviz financiar- Capitolul 3 - Cheltuieli pentru proiectare şi asistenţa tehnică - EURO"]
["Nr.2"]
[]
["(Titlu deviz)"]
["Nr.crt",null,null,null,"Specificaţie",null,null,null,null,null,null,null,null,null,null,null,null,null,null,null,null,null,null,null,null,null,null,null,null,null,null,null,null,null,null,null,null,null,null,null,null,null,"Valoare eligibilă",null,null,null,null,null,null,null,null,"Valoare\nneeligibilă"]
["3.1",null,null,null,"Cheltuieli pentru studii ",null,null,null,null,null,null,null,null,null,null,null,null,null,null,null,null,null,null,null,null,null,null,null,null,null,null,null,null,null,null,null,null,null,null,null,null,null,{"$f":"SUM(AQ11:AY13)","v":0},null,null,null,null,null,null,null,null,{"$f":"SUM(AZ11:BI13)","v":0}]
[null,null,null,null,"3.1.1 Studii de teren: studii geotehnice, geologice, hidrologice, hidrogeotehnice, fotogrammetrice, topografica şi de stabilitate ale terenului pe care se amplasează obiectivul de investiţie"]
[null,null,null,null,"3.1.2 Raport privind impactul asupra mediului"]
[null,null,null,null,"3.1.3 Studii de specialitate necesare în funcţie de specificul investiţiei"]
["3.2",null,null,null,"Documentaţii-suport şi cheltuieli pentru obţinerea de avize, acorduri şi autorizaţii",null,null,null,null,null,null,null,null,null,null,null,null,null,null,null,null,null,null,null,null,null,null,null,null,null,null,null,null,null,null,null,null,null,null,null,null,null,{"$f":"SUM(AQ15:AY23)","v":0},null,null,null,null,null,null,null,null,{"$f":"SUM(AZ15:BI23)","v":0}]
[null,null,null,null,"1. obţinerea/prelungirea valabilităţii ceritificatului de urbanism"]
[null,null,null,null,"2. obţinerea/prelungirea valabilităţii autorizaţiei de construire/desfiinţare"]
[null,null,null,null,"3. obţinerea avizelor şi acordurilor pentru racorduri şi branşamente la reţele publice de alimentare cu apă, canalizare, alimentare cu gaze, alimentare cu agent termic, energie electrică, telefonie"]
[null,null,null,null,"4. obţinerea certificatului de nomenclatură stradală şi adresă"]
[null,null,null,null,"5. întocmirea documentaţiei, obţinerea numărului cadastral provizoriu şi înregistrarea terenului în cartea funciară"]
[null,null,null,null,"6. obţinerea actului administrativ al autorităţii competente pentru protecţia mediului"]
[null,null,null,null,"7. obţinerea avizului de protecţie civilă"]
[null,null,null,null,"8. avizul de specialitate în cazul obiectivelor de patrimoniu"]
[null,null,null,null,"9. alte avize, acorduri şi autorizaţii"]
["3.3",null,null,null,"Cheltuieli pentru expertizarea tehnică a construcţiilor existente, a structurilor şi/sau, după caz, a proiectelor tehnice, inclusiv întocmirea de către expertul tehnic a raportului de expertiză tehnică"]
["3.4",null,null,null,"Cheltuieli pentru certificarea performanţei energetice şi auditul energetic al clădirilor"]
["3.5",null,null,null,"Cheltuieli pentru proiectare",null,null,null,null,null,null,null,null,null,null,null,null,null,null,null,null,null,null,null,null,null,null,null,null,null,null,null,null,null,null,null,null,null,null,null,null,null,{"$f":"SUM(AQ27:AY32)","v":0},null,null,null,null,null,null,null,null,{"$f":"SUM(AZ27:BI32)","v":0}]
[null,null,null,null,"3.5.1 Temă de proiectare"]
[null,null,null,null,"3.5.2 Studiu de prefezabilitate"]
[null,null,null,null,"3.5.3 Studiu de fezabilitate/documentaţie de avizare a lucrărilor de intervenţii şi deviz general"]
[null,null,null,null,"3.5.4 Documentaţiile tehnice necesare în vederea obţinerii avizelor/acordurilor/ autorizaţiilor"]
[null,null,null,null,"3.5.5 Verificarea tehnică de calitate a proiectului tehnic şi a detaliilor de execuţie"]
[null,null,null,null,"3.5.6 Proiect tehnic şi detalii de execuţie"]
["3.6",null,null,null,"Cheltuieli aferente organizării şi derulării procedurilor de achiziţii publice",null,null,null,null,null,null,null,null,null,null,null,null,null,null,null,null,null,null,null,null,null,null,null,null,null,null,null,null,null,null,null,null,null,null,null,null,null,{"$f":"SUM(AQ34:AY37)","v":0},null,null,null,null,null,null,null,null,{"$f":"SUM(AZ34:BI37)","v":0}]
[null,null,null,null,"1. Cheltuieli aferente întocmirii documentaţiei de atribuire şi multiplicării acesteia (exclusiv cele cumpărate de ofertanţi)"]
[null,null,null,null,"2. Cheltuieli cu onorariile, transportul, cazarea şi diurna membrilor desemnaţi în comisiile de evaluare"]
[null,null,null,null,"3. Anunţuri de intenţie, de participare şi de atribuire a contractelor, corespondenţă prin poştă, fax, poştă electronică în legătură cu procedurile de achiziţie publică"]
[null,null,null,null,"4. Cheltuieli aferente organizării şi derulării procedurilor de achiziţii publice"]
["3.7",null,null,null,"Cheltuieli pentru consultanţă",null,null,null,null,null,null,null,null,null,null,null,null,null,null,null,null,null,null,null,null,null,null,null,null,null,null,null,null,null,null,null,null,null,null,null,null,null,{"$f":"SUM(AQ39:AY40)","v":0},null,null,null,null,null,null,null,null,{"$f":"SUM(AZ39:BI40)","v":0}]
[null,null,null,null,"3.7.1 Managementul de proiect pentru obiectivul de investiţii"]
[null,null,null,null,"3.7.2 Auditul financiar"]
["3.8",null,null,null,"Cheltuieli pentru asistenţă tehnică",null,null,null,null,null,null,null,null,null,null,null,null,null,null,null,null,null,null,null,null,null,null,null,null,null,null,null,null,null,null,null,null,null,null,null,null,null,{"$f":"AQ42+AQ45","v":0},null,null,null,null,null,null,null,null,{"$f":"AZ42+AZ45","v":0}]
[null,null,null,null,"3.8.1. Asistenţă tehnică din partea proiectantului",null,null,null,null,null,null,null,null,null,null,null,null,null,null,null,null,null,null,null,null,null,null,null,null,null,null,null,null,null,null,null,null,null,null,null,null,null,{"$f":"SUM(AQ43:AY44)","v":0},null,null,null,null,null,null,null,null,{"$f":"SUM(AZ43:BI44)","v":0}]
[null,null,null,null,"\n1.1. pe perioada de execuţie a lucrărilor"]
[null,null,null,null,"1.2. pentru participarea proiectantului la fazele incluse în programul de control al lucrărilor de execuţie, avizat de către Inspectoratul de Stat în Construcţii"]
[null,null,null,null,"3.8.2 Dirigenţie de şantier, asigurată de personal tehnic de specialitate, autorizat"]
["Total valoare fără TVA",null,null,null,null,null,null,null,null,null,null,null,null,null,null,null,null,null,null,null,null,null,null,null,null,null,null,null,null,null,null,null,null,null,null,null,null,null,null,null,null,null,{"$f":"AQ10+AQ14+AQ24+AQ25+AQ26+AQ33+AQ38+AQ41","v":0},null,null,null,null,null,null,null,null,{"$f":"AZ10+AZ14+AZ24+AZ25+AZ26+AZ33+AZ38+AZ41","v":0}]
["Valoare TVA (aferentă cheltuielilor eligibile şi neeligibile)"]
["TOTAL DEVIZ FINANCIAR 1 (inclusiv TVA)",null,null,null,null,null,null,null,null,null,null,null,null,null,null,null,null,null,null,null,null,null,null,null,null,null,null,null,null,null,null,null,null,null,null,null,null,null,null,null,null,null,{"$f":"SUM(AQ46:BI47)","v":0}]
[]
[]
[null,null,null,null,null,null,null,"MINISTERUL AGRICULTURII ŞI DEZVOLTĂRII RURALE"]
[null,null,null,null,null,null,null,null,null,null,null,null,null,null,null,null,null,null,null,null,null,null,null,null,null,null,null,null,null,null,null,null,null,null,null,null,null,null,null,null,null,null,"Anexa A1 HG_907"]
[null,null,null,null,null,null,null,"AGENŢIA PENTRU FINANŢAREA INVESTIŢIILOR RURALE"]
[null,null,null,null,null,null,null,null,null,null,null,null,null,null,null,null,null,null,null,null,null,null,null,null,null,null,null,null,null,null,null,null,null,null,null,null,null,null,null,null,null,null,null,null,null,null,null,null,null,null,null,"Aprilie 2017"]
[null,null,null,null,null,null,null,"Deviz financiar- Capitolul 3 - Cheltuieli pentru proiectare şi asistenţa tehnică - EURO"]
["Nr.3"]
[]
["(Titlu deviz)"]
["Nr.crt",null,null,null,"Specificaţie",null,null,null,null,null,null,null,null,null,null,null,null,null,null,null,null,null,null,null,null,null,null,null,null,null,null,null,null,null,null,null,null,null,null,null,null,null,"Valoare eligibilă",null,null,null,null,null,null,null,null,"Valoare\nneeligibilă"]
["3.1",null,null,null,"Cheltuieli pentru studii ",null,null,null,null,null,null,null,null,null,null,null,null,null,null,null,null,null,null,null,null,null,null,null,null,null,null,null,null,null,null,null,null,null,null,null,null,null,{"$f":"SUM(AQ61:AY63)","v":0},null,null,null,null,null,null,null,null,{"$f":"SUM(AZ61:BI63)","v":0}]
[null,null,null,null,"3.1.1 Studii de teren: studii geotehnice, geologice, hidrologice, hidrogeotehnice, fotogrammetrice, topografica şi de stabilitate ale terenului pe care se amplasează obiectivul de investiţie"]
[null,null,null,null,"3.1.2 Raport privind impactul asupra mediului"]
[null,null,null,null,"3.1.3 Studii de specialitate necesare în funcţie de specificul investiţiei"]
["3.2",null,null,null,"Documentaţii-suport şi cheltuieli pentru obţinerea de avize, acorduri şi autorizaţii",null,null,null,null,null,null,null,null,null,null,null,null,null,null,null,null,null,null,null,null,null,null,null,null,null,null,null,null,null,null,null,null,null,null,null,null,null,{"$f":"SUM(AQ65:AY73)","v":0},null,null,null,null,null,null,null,null,{"$f":"SUM(AZ65:BI73)","v":0}]
[null,null,null,null,"1. obţinerea/prelungirea valabilităţii ceritificatului de urbanism"]
[null,null,null,null,"2. obţinerea/prelungirea valabilităţii autorizaţiei de construire/desfiinţare"]
[null,null,null,null,"3. obţinerea avizelor şi acordurilor pentru racorduri şi branşamente la reţele publice de alimentare cu apă, canalizare, alimentare cu gaze, alimentare cu agent termic, energie electrică, telefonie"]
[null,null,null,null,"4. obţinerea certificatului de nomenclatură stradală şi adresă"]
[null,null,null,null,"5. întocmirea documentaţiei, obţinerea numărului cadastral provizoriu şi înregistrarea terenului în cartea funciară"]
[null,null,null,null,"6. obţinerea actului administrativ al autorităţii competente pentru protecţia mediului"]
[null,null,null,null,"7. obţinerea avizului de protecţie civilă"]
[null,null,null,null,"8. avizul de specialitate în cazul obiectivelor de patrimoniu"]
[null,null,null,null,"9. alte avize, acorduri şi autorizaţii"]
["3.3",null,null,null,"Cheltuieli pentru expertizarea tehnică a construcţiilor existente, a structurilor şi/sau, după caz, a proiectelor tehnice, inclusiv întocmirea de către expertul tehnic a raportului de expertiză tehnică"]
["3.4",null,null,null,"Cheltuieli pentru certificarea performanţei energetice şi auditul energetic al clădirilor"]
["3.5",null,null,null,"Cheltuieli pentru proiectare",null,null,null,null,null,null,null,null,null,null,null,null,null,null,null,null,null,null,null,null,null,null,null,null,null,null,null,null,null,null,null,null,null,null,null,null,null,{"$f":"SUM(AQ77:AY82)","v":0},null,null,null,null,null,null,null,null,{"$f":"SUM(AZ77:BI82)","v":0}]
[null,null,null,null,"3.5.1 Temă de proiectare"]
[null,null,null,null,"3.5.2 Studiu de prefezabilitate"]
[null,null,null,null,"3.5.3 Studiu de fezabilitate/documentaţie de avizare a lucrărilor de intervenţii şi deviz general"]
[null,null,null,null,"3.5.4 Documentaţiile tehnice necesare în vederea obţinerii avizelor/acordurilor/ autorizaţiilor"]
[null,null,null,null,"3.5.5 Verificarea tehnică de calitate a proiectului tehnic şi a detaliilor de execuţie"]
[null,null,null,null,"3.5.6 Proiect tehnic şi detalii de execuţie"]
["3.6",null,null,null,"Cheltuieli aferente organizării şi derulării procedurilor de achiziţii publice",null,null,null,null,null,null,null,null,null,null,null,null,null,null,null,null,null,null,null,null,null,null,null,null,null,null,null,null,null,null,null,null,null,null,null,null,null,{"$f":"SUM(AQ84:AY87)","v":0},null,null,null,null,null,null,null,null,{"$f":"SUM(AZ84:BI87)","v":0}]
[null,null,null,null,"1. Cheltuieli aferente întocmirii documentaţiei de atribuire şi multiplicării acesteia (exclusiv cele cumpărate de ofertanţi)"]
[null,null,null,null,"2. Cheltuieli cu onorariile, transportul, cazarea şi diurna membrilor desemnaţi în comisiile de evaluare"]
[null,null,null,null,"3. Anunţuri de intenţie, de participare şi de atribuire a contractelor, corespondenţă prin poştă, fax, poştă electronică în legătură cu procedurile de achiziţie publică"]
[null,null,null,null,"4. Cheltuieli aferente organizării şi derulării procedurilor de achiziţii publice"]
["3.7",null,null,null,"Cheltuieli pentru consultanţă",null,null,null,null,null,null,null,null,null,null,null,null,null,null,null,null,null,null,null,null,null,null,null,null,null,null,null,null,null,null,null,null,null,null,null,null,null,{"$f":"SUM(AQ89:AY90)","v":0},null,null,null,null,null,null,null,null,{"$f":"SUM(AZ89:BI90)","v":0}]
[null,null,null,null,"3.7.1 Managementul de proiect pentru obiectivul de investiţii"]
[null,null,null,null,"3.7.2 Auditul financiar"]
["3.8",null,null,null,"Cheltuieli pentru asistenţă tehnică",null,null,null,null,null,null,null,null,null,null,null,null,null,null,null,null,null,null,null,null,null,null,null,null,null,null,null,null,null,null,null,null,null,null,null,null,null,{"$f":"AQ92+AQ95","v":0},null,null,null,null,null,null,null,null,{"$f":"AZ92+AZ95","v":0}]
[null,null,null,null,"3.8.1. Asistenţă tehnică din partea proiectantului",null,null,null,null,null,null,null,null,null,null,null,null,null,null,null,null,null,null,null,null,null,null,null,null,null,null,null,null,null,null,null,null,null,null,null,null,null,{"$f":"SUM(AQ93:AY94)","v":0},null,null,null,null,null,null,null,null,{"$f":"SUM(AZ93:BI94)","v":0}]
[null,null,null,null,"\n1.1. pe perioada de execuţie a lucrărilor"]
[null,null,null,null,"1.2. pentru participarea proiectantului la fazele incluse în programul de control al lucrărilor de execuţie, avizat de către Inspectoratul de Stat în Construcţii"]
[null,null,null,null,"3.8.2 Dirigenţie de şantier, asigurată de personal tehnic de specialitate, autorizat"]
["Total valoare fără TVA",null,null,null,null,null,null,null,null,null,null,null,null,null,null,null,null,null,null,null,null,null,null,null,null,null,null,null,null,null,null,null,null,null,null,null,null,null,null,null,null,null,{"$f":"AQ60+AQ64+AQ74+AQ75+AQ76+AQ83+AQ88+AQ91","v":0},null,null,null,null,null,null,null,null,{"$f":"AZ60+AZ64+AZ74+AZ75+AZ76+AZ83+AZ88+AZ91","v":0}]
["Valoare TVA (aferentă cheltuielilor eligibile şi neeligibile)"]
["TOTAL DEVIZ FINANCIAR 1 (inclusiv TVA)",null,null,null,null,null,null,null,null,null,null,null,null,null,null,null,null,null,null,null,null,null,null,null,null,null,null,null,null,null,null,null,null,null,null,null,null,null,null,null,null,null,{"$f":"SUM(AQ96:BI97)","v":0}]

{"sheet":"Anexa 2 HG_907","index":2,"n_rows":63,"n_cols":52,"rows_kept":63,"cut":false,"hidden":false,"merged":[[4,7,4,60],[5,0,5,60],[6,0,6,60],[7,0,7,60],[8,0,8,3],[8,4,8,41],[8,42,8,60],[0,7,0,41],[1,7,1,41],[1,42,2,60],[2,7,2,41],[3,7,3,41],[3,42,3,50],[3,51,3,60],[11,0,11,3],[11,4,11,41],[11,42,11,50],[11,51,11,60],[12,0,12,3],[12,4,12,41],[12,42,12,50],[12,51,12,60],[9,0,9,3],[9,4,9,41],[9,42,9,50],[9,51,9,60],[10,0,10,41],[10,42,10,50],[10,51,10,60],[15,0,15,3],[15,4,15,41],[15,42,15,50],[15,51,15,60],[16,0,16,3],[16,4,16,41],[16,42,16,50],[16,51,16,60],[13,0,13,3],[13,4,13,41],[13,42,13,50],[13,51,13,60],[14,0,14,3],[14,4,14,41],[14,42,14,50],[14,51,14,60],[17,0,17,60],[18,0,18,3],[18,4,18,41],[18,42,18,50],[18,51,18,60],[19,0,19,3],[19,4,19,41],[19,42,19,50],[19,51,19,60],[23,0,23,3],[23,4,23,41],[23,42,23,50],[23,51,23,60],[24,0,24,3],[24,4,24,41],[24,42,24,50],[24,51,24,60],[20,0,20,60],[21,0,21,3],[21,4,21,41],[21,42,21,50],[21,51,21,60],[22,0,22,3],[22,4,22,41],[22,42,22,50],[22,51,22,60],[27,0,27,41],[27,42,27,50],[27,51,27,60],[28,0,28,41],[28,42,28,60],[32,7,32,41],[25,0,25,3],[25,4,25,41],[25,42,25,50],[25,51,25,60],[26,0,26,41],[26,42,26,50],[26,51,26,60],[36,7,36,60],[37,0,37,60],[38,0,38,60],[39,0,39,60],[40,0,40,3],[40,4,40,41],[40,42,40,60],[33,7,33,41],[33,42,34,60],[34,7,34,41],[35,7,35,41],[35,42,35,50],[35,51,35,60],[43,0,43,3],[43,4,43,41],[43,42,43,50],[43,51,43,60],[44,0,44,3],[44,4,44,41],[44,42,44,50],[44,51,44,60],[41,0,41,3],[41,4,41,41],[41,42,41,50],[41,51,41,60],[42,0,42,41],[42,42,42,50],[42,51,42,60],[47,0,47,3],[47,4,47,41],[47,42,47,50],[47,51,47,60],[48,0,48,3],[48,4,48,41],[48,42,48,50],[48,51,48,60],[45,0,45,3],[45,4,45,41],[45,42,45,50],[45,51,45,60],[46,0,46,3],[46,4,46,41],[46,42,46,50],[46,51,46,60],[49,0,49,60],[50,0,50,3],[50,4,50,41],[50,42,50,50],[50,51,50,60],[51,0,51,3],[51,4,51,41],[51,42,51,50],[51,51,51,60],[55,0,55,3],[55,4,55,41],[55,42,55,50],[55,51,55,60],[56,0,56,3],[56,4,56,41],[56,42,56,50],[56,51,56,60],[52,0,52,60],[53,0,53,3],[53,4,53,41],[53,42,53,50],[53,51,53,60],[54,0,54,3],[54,4,54,41],[54,42,54,50],[54,51,54,60],[59,0,59,41],[59,42,59,50],[59,51,59,60],[60,0,60,41],[60,42,60,60],[57,0,57,3],[57,4,57,41],[57,42,57,50],[57,51,57,60],[58,0,58,41],[58,42,58,50],[58,51,58,60]]}
[null,null,null,null,null,null,null,"MINISTERUL AGRICULTURII ŞI DEZVOLTĂRII RURALE"]
[null,null,null,null,null,null,null,null,null,null,null,null,null,null,null,null,null,null,null,null,null,null,null,null,null,null,null,null,null,null,null,null,null,null,null,null,null,null,null,null,null,null,"Anexa A2 HG_907"]
[null,null,null,null,null,null,null,"AGENŢIA PENTRU FINANŢAREA INVESTIŢIILOR RURALE"]
[null,null,null,null,null,null,null,null,null,null,null,null,null,null,null,null,null,null,null,null,null,null,null,null,null,null,null,null,null,null,null,null,null,null,null,null,null,null,null,null,null,null,null,null,null,null,null,null,null,null,null,"Aprilie 2017"]
[null,null,null,null,null,null,null,"DEVIZUL OBIECTULUI *"]
["Nr.2"]
[]
[]
["Nr. crt.",null,null,null,"Denumire",null,null,null,null,null,null,null,null,null,null,null,null,null,null,null,null,null,null,null,null,null,null,null,null,null,null,null,null,null,null,null,null,null,null,null,null,null,"Valoarea pe categorii de lucrări, fară TVA - EURO"]
[null,null,null,null,"Cap. 4 - Cheltuieli pentru investiţia de bază",null,null,null,null,null,null,null,null,null,null,null,null,null,null,null,null,null,null,null,null,null,null,null,null,null,null,null,null,null,null,null,null,null,null,null,null,null,"Valoare eligibilă",null,null,null,null,null,null,null,null,"Valoare\nneeligibilă"]
["I - LUCRĂRI DE CONSTRUCŢII ŞI INSTALAŢII"]
["4.1",null,null,null,"Construcţii şi instalaţii"]
[null,null,null,null,"4.1.1 Terasamente, sistematizare pe verticală şi amenajări exterioare"]
[null,null,null,null,"4.1.2 Rezistenţă"]
[null,null,null,null,"4.1.3 Arhitectură"]
[null,null,null,null,"4.1.4 Instalaţii"]
[null,null,null,null,"TOTAL I ( fără TVA)",null,null,null,null,null,null,null,null,null,null,null,null,null,null,null,null,null,null,null,null,null,null,null,null,null,null,null,null,null,null,null,null,null,null,null,null,null,{"$f":"SUM(AQ12:AY16)","v":0},null,null,null,null,null,null,null,null,{"$f":"SUM(AZ12:BI16)","v":0}]
["II - MONTAJ"]
["4.2",null,null,null,"Montaj utilaje, echipamente tehnologice şi funcţionale"]
[null,null,null,null,"TOTAL II ( fără TVA)",null,null,null,null,null,null,null,null,null,null,null,null,null,null,null,null,null,null,null,null,null,null,null,null,null,null,null,null,null,null,null,null,null,null,null,null,null,{"$f":"SUM(AQ19)","v":0},null,null,null,null,null,null,null,null,{"$f":"SUM(AZ19)","v":0}]
["III - PROCURARE"]
["4.3",null,null,null,"Utilaje, echipamente tehnologice şi funcţionale care necesită montaj"]
["4.4",null,null,null,"Utilaje, echipamente tehnologice şi funcţionale care nu necesită montaj şi echipamente de transport"]
["4.5",null,null,null,"Dotări"]
["4.6",null,null,null,"Active necorporale"]
[null,null,null,null,"TOTAL III ( fără TVA)",null,null,null,null,null,null,null,null,null,null,null,null,null,null,null,null,null,null,null,null,null,null,null,null,null,null,null,null,null,null,null,null,null,null,null,null,null,{"$f":"SUM(AQ22:AY25)","v":0},null,null,null,null,null,null,null,null,{"$f":"SUM(AZ22:BI25)","v":0}]
["TOTAL ( TOTAL I + TOTAL II +TOTAL III) fără TVA",null,null,null,null,null,null,null,null,null,null,null,null,null,null,null,null,null,null,null,null,null,null,null,null,null,null,null,null,null,null,null,null,null,null,null,null,null,null,null,null,null,{"$f":"AQ26+AQ20+AQ17","v":0},null,null,null,null,null,null,null,null,{"$f":"AZ26+AZ20+AZ17","v":0}]
["TVA aferent cheltuielilor eligibile şi neeligibile"]
["TOTAL DEVIZ PE OBIECT (inclusiv TVA)",null,null,null,null,null,null,null,null,null,null,null,null,null,null,null,null,null,null,null,null,null,null,null,null,null,null,null,null,null,null,null,null,null,null,null,null,null,null,null,null,null,{"$f":"AQ27+AZ27+AQ28+AZ28","v":0}]
[]
[null,"*) Se înscrie denumirea obiectului de construcţie sau intervenţie"]
[]
[null,null,null,null,null,null,null,"MINISTERUL AGRICULTURII ŞI DEZVOLTĂRII RURALE"]
[null,null,null,null,null,null,null,null,null,null,null,null,null,null,null,null,null,null,null,null,null,null,null,null,null,null,null,null,null,null,null,null,null,null,null,null,null,null,null,null,null,null,"Anexa A2 HG_907"]
[null,null,null,null,null,null,null,"AGENŢIA PENTRU FINANŢAREA INVESTIŢIILOR RURALE"]
[null,null,null,null,null,null,null,null,null,null,null,null,null,null,null,null,null,null,null,null,null,null,null,null,null,null,null,null,null,null,null,null,null,null,null,null,null,null,null,null,null,null,null,null,null,null,null,null,null,null,null,"Aprilie 2017"]
[null,null,null,null,null,null,null,"DEVIZUL OBIECTULUI *"]
["Nr.3"]
[]
[]
["Nr. crt.",null,null,null,"Denumire",null,null,null,null,null,null,null,null,null,null,null,null,null,null,null,null,null,null,null,null,null,null,null,null,null,null,null,null,null,null,null,null,null,null,null,null,null,"Valoarea pe categorii de lucrări, fară TVA - EURO"]
[null,null,null,null,"Cap. 4 - Cheltuieli pentru investiţia de bază",null,null,null,null,null,null,null,null,null,null,null,null,null,null,null,null,null,null,null,null,null,null,null,null,null,null,null,null,null,null,null,null,null,null,null,null,null,"Valoare eligibilă",null,null,null,null,null,null,null,null,"Valoare\nneeligibilă"]
["I - LUCRĂRI DE CONSTRUCŢII ŞI INSTALAŢII"]
["4.1",null,null,null,"Construcţii şi instalaţii"]
[null,null,null,null,"4.1.1 Terasamente, sistematizare pe verticală şi amenajări exterioare"]
[null,null,null,null,"4.1.2 Rezistenţă"]
[null,null,null,null,"4.1.3 Arhitectură"]
[null,null,null,null,"4.1.4 Instalaţii"]
[null,null,null,null,"TOTAL I ( fără TVA)",null,null,null,null,null,null,null,null,null,null,null,null,null,null,null,null,null,null,null,null,null,null,null,null,null,null,null,null,null,null,null,null,null,null,null,null,null,{"$f":"SUM(AQ44:AY48)","v":0},null,null,null,null,null,null,null,null,{"$f":"SUM(AZ44:BI48)","v":0}]
["II - MONTAJ"]
["4.2",null,null,null,"Montaj utilaje, echipamente tehnologice şi funcţionale"]
[null,null,null,null,"TOTAL II ( fără TVA)",null,null,null,null,null,null,null,null,null,null,null,null,null,null,null,null,null,null,null,null,null,null,null,null,null,null,null,null,null,null,null,null,null,null,null,null,null,{"$f":"SUM(AQ51)","v":0},null,null,null,null,null,null,null,null,{"$f":"SUM(AZ51)","v":0}]
["III - PROCURARE"]
["4.3",null,null,null,"Utilaje, echipamente tehnologice şi funcţionale care necesită montaj"]
["4.4",null,null,null,"Utilaje, echipamente tehnologice şi funcţionale care nu necesită montaj şi echipamente de transport"]
["4.5",null,null,null,"Dotări"]
["4.6",null,null,null,"Active necorporale"]
[null,null,null,null,"TOTAL III ( fără TVA)",null,null,null,null,null,null,null,null,null,null,null,null,null,null,null,null,null,null,null,null,null,null,null,null,null,null,null,null,null,null,null,null,null,null,null,null,null,{"$f":"SUM(AQ54:AY57)","v":0},null,null,null,null,null,null,null,null,{"$f":"SUM(AZ54:BI57)","v":0}]
["TOTAL ( TOTAL I + TOTAL II +TOTAL III) fără TVA",null,null,null,null,null,null,null,null,null,null,null,null,null,null,null,null,null,null,null,null,null,null,null,null,null,null,null,null,null,null,null,null,null,null,null,null,null,null,null,null,null,{"$f":"AQ58+AQ52+AQ49","v":0},null,null,null,null,null,null,null,null,{"$f":"AZ58+AZ52+AZ49","v":0}]
["TVA aferent cheltuielilor eligibile şi neeligibile"]
["TOTAL DEVIZ PE OBIECT (inclusiv TVA)",null,null,null,null,null,null,null,null,null,null,null,null,null,null,null,null,null,null,null,null,null,null,null,null,null,null,null,null,null,null,null,null,null,null,null,null,null,null,null,null,null,{"$f":"AQ59+AZ59+AQ60+AZ60","v":0}]
[]
[null,"*) Se înscrie denumirea obiectului de construcţie sau intervenţie"]

{"sheet":"Anexa 3 HG_907","index":3,"n_rows":82,"n_cols":52,"rows_kept":82,"cut":false,"hidden":false,"merged":[[1,7,1,41],[1,42,2,60],[2,7,2,41],[3,7,3,41],[3,42,3,50],[3,51,3,60],[4,7,4,60],[5,0,5,60],[6,0,6,60],[7,0,7,60],[8,0,8,60],[9,0,9,3],[9,4,9,41],[9,42,9,50],[9,51,9,60],[12,0,12,3],[12,4,12,41],[12,42,12,50],[12,51,12,60],[13,0,13,3],[13,4,13,41],[13,42,13,50],[13,51,13,60],[10,0,10,3],[10,4,10,41],[10,42,10,50],[10,51,10,60],[11,0,11,3],[11,4,11,41],[11,42,11,50],[11,51,11,60],[16,0,16,3],[16,4,16,41],[16,42,16,50],[16,51,16,60],[17,0,17,3],[17,4,17,41],[17,42,17,50],[17,51,17,60],[14,0,14,3],[14,4,14,41],[14,42,14,50],[14,51,14,60],[15,0,15,3],[15,4,15,41],[15,42,15,50],[15,51,15,60],[20,0,20,3],[20,4,20,41],[20,42,20,50],[20,51,20,60],[21,0,21,41],[21,42,21,60],[18,0,18,3],[18,4,18,41],[18,42,18,50],[18,51,18,60],[19,0,19,3],[19,4,19,41],[19,42,19,50],[19,51,19,60],[22,0,22,3],[22,4,22,41],[22,42,22,50],[22,51,22,60],[23,0,23,60],[24,0,24,3],[24,4,24,41],[24,42,24,50],[24,51,24,60],[25,0,25,60],[26,0,26,3],[26,4,26,41],[26,42,26,50],[26,51,26,60],[27,0,27,3],[27,4,27,41],[27,42,27,50],[27,51,27,60],[30,0,30,3],[30,4,30,41],[30,42,30,50],[30,51,30,60],[31,0,31,3],[31,4,31,41],[31,42,31,50],[31,51,31,60],[28,0,28,3],[28,4,28,41],[28,42,28,50],[28,51,28,60],[29,0,29,3],[29,4,29,41],[29,42,29,50],[29,51,29,60],[34,0,34,3],[34,4,34,41],[34,42,34,50],[34,51,34,60],[35,0,35,3],[35,4,35,41],[35,42,35,50],[35,51,35,60],[32,0,32,3],[32,4,32,41],[32,42,32,50],[32,51,32,60],[33,0,33,3],[33,4,33,41],[33,42,33,50],[33,51,33,60],[38,0,38,3],[38,4,38,41],[38,42,38,50],[38,51,38,60],[39,0,39,3],[39,4,39,41],[39,42,39,60],[36,0,36,3],[36,4,36,41],[36,42,36,50],[36,51,36,60],[37,0,37,3],[37,4,37,41],[37,42,37,50],[37,51,37,60],[49,0,49,60],[50,0,50,60],[51,0,51,3],[51,4,51,41],[51,42,51,50],[51,51,51,60],[82,0,82,44],[43,7,43,41],[43,42,44,60],[44,7,44,41],[45,7,45,41],[45,42,45,50],[45,51,45,60],[46,7,46,60],[47,0,47,60],[48,0,48,60],[54,0,54,3],[54,4,54,41],[54,42,54,50],[54,51,54,60],[55,0,55,3],[55,4,55,41],[55,42,55,50],[55,51,55,60],[52,0,52,3],[52,4,52,41],[52,42,52,50],[52,51,52,60],[53,0,53,3],[53,4,53,41],[53,42,53,50],[53,51,53,60],[58,0,58,3],[58,4,58,41],[58,42,58,50],[58,51,58,60],[59,0,59,3],[59,4,59,41],[59,42,59,50],[59,51,59,60],[56,0,56,3],[56,4,56,41],[56,42,56,50],[56,51,56,60],[57,0,57,3],[57,4,57,41],[57,42,57,50],[57,51,57,60],[62,0,62,3],[62,4,62,41],[62,42,62,50],[62,51,62,60],[63,0,63,41],[63,42,63,60],[60,0,60,3],[60,4,60,41],[60,42,60,50],[60,51,60,60],[61,0,61,3],[61,4,61,41],[61,42,61,50],[61,51,61,60],[64,0,64,3],[64,4,64,41],[64,42,64,50],[64,51,64,60],[65,0,65,60],[66,0,66,3],[66,4,66,41],[66,42,66,50],[66,51,66,60],[67,0,67,60],[68,0,68,3],[68,4,68,41],[68,42,68,50],[68,51,68,60],[69,0,69,3],[69,4,69,41],[69,42,69,50],[69,51,69,60],[72,0,72,3],[72,4,72,41],[72,42,72,50],[72,51,72,60],[73,0,73,3],[73,4,73,41],[73,42,73,50],[73,51,73,60],[70,0,70,3],[70,4,70,41],[70,42,70,50],[70,51,70,60],[71,0,71,3],[71,4,71,41],[71,42,71,50],[71,51,71,60],[76,0,76,3],[76,4,76,41],[76,42,76,50],[76,51,76,60],[77,0,77,3],[77,4,77,41],[77,42,77,50],[77,51,77,60],[74,0,74,3],[74,4,74,41],[74,42,74,50],[74,51,74,60],[75,0,75,3],[75,4,75,41],[75,42,75,50],[75,51,75,60],[80,0,80,3],[80,4,80,41],[80,42,80,50],[80,51,80,60],[81,0,81,3],[81,4,81,41],[81,42,81,60],[78,0,78,3],[78,4,78,41],[78,42,78,50],[78,51,78,60],[79,0,79,3],[79,4,79,41],[79,42,79,50],[79,51,79,60]]}
[]
[null,null,null,null,null,null,null,"MINISTERUL AGRICULTURII ŞI DEZVOLTĂRII RURALE",null,null,null,null,null,null,null,null,null,null,null,null,null,null,null,null,null,null,null,null,null,null,null,null,null,null,null,null,null,null,null,null,null,null,"Anexa A3 HG_907"]
[]
[null,null,null,null,null,null,null,"AGENŢIA PENTRU FINANŢAREA INVESTIŢIILOR RURALE",null,null,null,null,null,null,null,null,null,null,null,null,null,null,null,null,null,null,null,null,null,null,null,null,null,null,null,null,null,null,null,null,null,null,null,null,null,null,null,null,null,null,null,"Aprilie 2017"]
[]
["Nr.2"]
[]
[]
["Deviz capitolul 2- Cheltuieli pentru asigurarea utilităţilor necesare obiectivului - EURO"]
["Nr. crt.",null,null,null,"Specificaţie",null,null,null,null,null,null,null,null,null,null,null,null,null,null,null,null,null,null,null,null,null,null,null,null,null,null,null,null,null,null,null,null,null,null,null,null,null,"Valoare eligibilă",null,null,null,null,null,null,null,null,"Valoare\nneeligibilă"]
[1,null,null,null,"Alimentare cu apă"]
[2,null,null,null,"Canalizare"]
[3,null,null,null,"Alimentare cu gaze naturale"]
[4,null,null,null,"Alimentare cu agent termic"]
[5,null,null,null,"Alimentare cu energie electrică"]
[6,null,null,null,"Telecomunicaţii (telefonie, radio-tv,etc)"]
[7,null,null,null,"Drumuri de acces"]
[8,null,null,null,"Căi ferate industriale"]
[9,null,null,null,"Alte utilitati"]
[null,null,null,null,"TOTAL DEVIZ CAPITOLUL 2",null,null,null,null,null,null,null,null,null,null,null,null,null,null,null,null,null,null,null,null,null,null,null,null,null,null,null,null,null,null,null,null,null,null,null,null,null,{"$f":"SUM(AQ11:AY19)","v":0},null,null,null,null,null,null,null,null,{"$f":"SUM(AZ11:BI19)","v":0}]
[null,null,null,null,"Valoare TVA aferentă cheltuielilor eligibile şi neeligibile"]
["TOTAL DEVIZ CAPITOLUL 2 (inclusiv TVA)",null,null,null,null,null,null,null,null,null,null,null,null,null,null,null,null,null,null,null,null,null,null,null,null,null,null,null,null,null,null,null,null,null,null,null,null,null,null,null,null,null,{"$f":"AQ20+AZ20+AQ21+AZ21","v":0}]
[]
[" Deviz capitolul 5 - Alte cheltuieli - EURO"]
["Nr. crt.",null,null,null,"Specificaţie",null,null,null,null,null,null,null,null,null,null,null,null,null,null,null,null,null,null,null,null,null,null,null,null,null,null,null,null,null,null,null,null,null,null,null,null,null,"Valoare eligibilă",null,null,null,null,null,null,null,null,"Valoare\nneeligibilă"]
[]
["5.1 ",null,null,null,"Organizare de şantier",null,null,null,null,null,null,null,null,null,null,null,null,null,null,null,null,null,null,null,null,null,null,null,null,null,null,null,null,null,null,null,null,null,null,null,null,null,{"$f":"SUM(AQ28:AY29)","v":0},null,null,null,null,null,null,null,null,{"$f":"SUM(AZ28:BI29)","v":0}]
[null,null,null,null,"5.1.1 Lucrări de construcţii şi instalaţii aferente organizării de şantier"]
[null,null,null,null,"5.1.2 Cheltuieli conexe organizării de şantier"]
["5.2",null,null,null,"Comisioane, cote, taxe, costul creditului",null,null,null,null,null,null,null,null,null,null,null,null,null,null,null,null,null,null,null,null,null,null,null,null,null,null,null,null,null,null,null,null,null,null,null,null,null,{"$f":"SUM(AQ32:AY35)","v":0},null,null,null,null,null,null,null,null,{"$f":"SUM(AZ31:BI35)","v":0}]
[null,null,null,null,"5.2.1. Comisioanele şi dobânzile aferente creditului băncii finanţatoare"]
[null,null,null,null,"5.2.2. Cota aferentă ISC pentru controlul calităţii lucrărilor de construcţii"]
[null,null,null,null,"5.2.3. Cota aferentă ISC pentru controlul statului în amenajarea teritoriului, urbanism şi pentru autorizarea lucrărilor de construcţii"]
[null,null,null,null,"5.2.4. Cota aferentă Casei Sociale a Constructorilor - CSC"]
[null,null,null,null,"5.2.5. Taxe pentru acorduri, avize conforme şi autorizaţia de construire/ desfiinţare"]
["5.3",null,null,null," Cheltuieli diverse si neprevazute"]
["5.4",null,null,null," Cheltuieli pentru informare şi publicitate"]
[null,null,null,null,"TOTAL DEVIZ CAPITOLUL 5",null,null,null,null,null,null,null,null,null,null,null,null,null,null,null,null,null,null,null,null,null,null,null,null,null,null,null,null,null,null,null,null,null,null,null,null,null,{"$f":"AQ27+AQ30+AQ36","v":0},null,null,null,null,null,null,null,null,{"$f":"AZ27+AZ30+AZ36+AZ37","v":0}]
[null,null,null,null,"VALOARE TVA aferentă cheltuielilor eligibile şi neeligibile"]
[null,null,null,null,"TOTAL DEVIZ CAPITOLUL 5 ( inclusiv TVA)",null,null,null,null,null,null,null,null,null,null,null,null,null,null,null,null,null,null,null,null,null,null,null,null,null,null,null,null,null,null,null,null,null,null,null,null,null,{"$f":"AQ38+AZ38+AQ39+AZ39","v":0}]
[]
[]
[]
[null,null,null,null,null,null,null,"MINISTERUL AGRICULTURII ŞI DEZVOLTĂRII RURALE",null,null,null,null,null,null,null,null,null,null,null,null,null,null,null,null,null,null,null,null,null,null,null,null,null,null,null,null,null,null,null,null,null,null,"Anexa A3 HG_907"]
[]
[null,null,null,null,null,null,null,"AGENŢIA PENTRU FINANŢAREA INVESTIŢIILOR RURALE",null,null,null,null,null,null,null,null,null,null,null,null,null,null,null,null,null,null,null,null,null,null,null,null,null,null,null,null,null,null,null,null,null,null,null,null,null,null,null,null,null,null,null,"Aprilie 2017"]
[]
["Nr.3"]
[]
[]
["Deviz capitolul 2- Cheltuieli pentru asigurarea utilităţilor necesare obiectivului - EURO"]
["Nr. crt.",null,null,null,"Specificaţie",null,null,null,null,null,null,null,null,null,null,null,null,null,null,null,null,null,null,null,null,null,null,null,null,null,null,null,null,null,null,null,null,null,null,null,null,null,"Valoare eligibilă",null,null,null,null,null,null,null,null,"Valoare\nneeligibilă"]
[1,null,null,null,"Alimentare cu apă"]
[2,null,null,null,"Canalizare"]
[3,null,null,null,"Alimentare cu gaze naturale"]
[4,null,null,null,"Alimentare cu agent termic"]
[5,null,null,null,"Alimentare cu energie electrică"]
[6,null,null,null,"Telecomunicaţii (telefonie, radio-tv,etc)"]
[7,null,null,null,"Drumuri de acces"]
[8,null,null,null,"Căi ferate industriale"]
[9,null,null,null,"Alte utilitati"]
[null,null,null,null,"TOTAL DEVIZ CAPITOLUL 2",null,null,null,null,null,null,null,null,null,null,null,null,null,null,null,null,null,null,null,null,null,null,null,null,null,null,null,null,null,null,null,null,null,null,null,null,null,{"$f":"SUM(AQ53:AY61)","v":0},null,null,null,null,null,null,null,null,{"$f":"SUM(AZ53:BI61)","v":0}]
[null,null,null,null,"Valoare TVA aferentă cheltuielilor eligibile şi neeligibile"]
["TOTAL DEVIZ CAPITOLUL 2 (inclusiv TVA)",null,null,null,null,null,null,null,null,null,null,null,null,null,null,null,null,null,null,null,null,null,null,null,null,null,null,null,null,null,null,null,null,null,null,null,null,null,null,null,null,null,{"$f":"AQ62+AZ62+AQ63+AZ63","v":0}]
[]
[" Deviz capitolul 5 - Alte cheltuieli - EURO"]
["Nr. crt.",null,null,null,"Specificaţie",null,null,null,null,null,null,null,null,null,null,null,null,null,null,null,null,null,null,null,null,null,null,null,null,null,null,null,null,null,null,null,null,null,null,null,null,null,"Valoare eligibilă",null,null,null,null,null,null,null,null,"Valoare\nneeligibilă"]
[]
["5.1 ",null,null,null,"Organizare de şantier",null,null,null,null,null,null,null,null,null,null,null,null,null,null,null,null,null,null,null,null,null,null,null,null,null,null,null,null,null,null,null,null,null,null,null,null,null,{"$f":"SUM(AQ70:AY71)","v":0},null,null,null,null,null,null,null,null,{"$f":"SUM(AZ70:BI71)","v":0}]
[null,null,null,null,"5.1.1 Lucrări de construcţii şi instalaţii aferente organizării de şantier"]
[null,null,null,null,"5.1.2 Cheltuieli conexe organizării de şantier"]
["5.2",null,null,null,"Comisioane, cote, taxe, costul creditului",null,null,null,null,null,null,null,null,null,null,null,null,null,null,null,null,null,null,null,null,null,null,null,null,null,null,null,null,null,null,null,null,null,null,null,null,null,{"$f":"SUM(AQ74:AY77)","v":0},null,null,null,null,null,null,null,null,{"$f":"SUM(AZ73:BI77)","v":0}]
[null,null,null,null,"5.2.1. Comisioanele şi dobânzile aferente creditului băncii finanţatoare"]
[null,null,null,null,"5.2.2. Cota aferentă ISC pentru controlul calităţii lucrărilor de construcţii"]
[null,null,null,null,"5.2.3. Cota aferentă ISC pentru controlul statului în amenajarea teritoriului, urbanism şi pentru autorizarea lucrărilor de construcţii"]
[null,null,null,null,"5.2.4. Cota aferentă Casei Sociale a Constructorilor - CSC"]
[null,null,null,null,"5.2.5. Taxe pentru acorduri, avize conforme şi autorizaţia de construire/ desfiinţare"]
["5.3",null,null,null," Cheltuieli diverse si neprevazute"]
["5.4",null,null,null," Cheltuieli pentru informare şi publicitate"]
[null,null,null,null,"TOTAL DEVIZ CAPITOLUL 5",null,null,null,null,null,null,null,null,null,null,null,null,null,null,null,null,null,null,null,null,null,null,null,null,null,null,null,null,null,null,null,null,null,null,null,null,null,{"$f":"AQ69+AQ72+AQ78","v":0},null,null,null,null,null,null,null,null,{"$f":"AZ69+AZ72+AZ78+AZ79","v":0}]
[null,null,null,null,"VALOARE TVA aferentă cheltuielilor eligibile şi neeligibile"]
[null,null,null,null,"TOTAL DEVIZ CAPITOLUL 5 ( inclusiv TVA)",null,null,null,null,null,null,null,null,null,null,null,null,null,null,null,null,null,null,null,null,null,null,null,null,null,null,null,null,null,null,null,null,null,null,null,null,null,{"$f":"AQ80+AZ80+AQ81+AZ81","v":0}]

{"sheet":"Sheet1","index":4,"n_rows":0,"n_cols":0,"rows_kept":0,"cut":false,"hidden":false,"merged":[]}